Workbook

Sheet はじめに
A2: 起動費等の事後精算の覚書にもとづき、 「不約定単価内訳兼起動費事後精算情報様式」（以下「様式」という。）をご提出・ご報告いただき、精算を行います。
A4: １.記載箇所について
B6: シート名「入力シート」にご記載をお願いします。
A8: ２.記載方法について
B10: シート名「入力シート」の『行数変更』ボタン押下により、起動費等の事後精算の対象に応じた行数を設定ください。
B11: 様式は提供期間の属する月次単位とし、精算の対象となる系統コードごと、30分コマごとにご作成ください。
B12: なお、詳細な記載方法は、別シートの「記載例」・「入力方法等の規制」・「精算パターン（持ち下げ供出機区分）毎の入力内容規制」をご参照ください。
B13: シート名「入力シート」に必要な情報を記載いただけましたら、『CSV変換』ボタン押下のうえ、出力したデータを任意のフォルダへ保存ください（『CSV変換』ボタン押下時にエラーメッセージが表示された場合は、シート名「エラーメッセージ一覧」を参照ください。）
A15: ３.「ファイル名称」について
B17: シート名「入力シート」の『CSV変換』ボタン押下により出力したファイル名称は変更しないようお願いします。
B18: 例：202504_A000_3_不約定単価内訳兼起動費事後精算情報様式.csv
A20: ４.提出期日について
B22: 様式のご提出は、提供期間が属する月の翌月の第１営業日までに属地TSOへメールでご提出ください。
B23: なお、ご提出いただくデータは、様式の作成に用いた本ツールおよびシート名「入力シート」の『CSV変換』ボタン押下により出力したCSVデータをご提出ください。

Sheet 入力シート
B2: 取引年月 | D2: 0
B3: MMSコード
B4: 対象エリア
B5: ファイル名称 | C5: =$C$2&"_"&$C$3&"_"&LEFT($C$4,1)&"_不約定単価内訳兼起動費事後精算情報様式" -> ___不約定単価内訳兼起動費事後精算情報様式
B7: 事象NO | C7: 精算パターン | D7: 余力活用契約対象リソース区分 | E7: 取引日 | F7: 時刻コード | G7: 持ち下げ供出機区分 | H7: 系統コード | I7: 商品区分 | J7: 売り入札ID | K7: 約定番号 | L7: 約定識別ID | M7: MMS起動費単価 | N7: 加重平均前のΔkW単価 | O7: 加重平均起動費未回収分相当額 | P7: 最低出力までの発電電力量の機会費用単価 | Q7: 発電計画 | R7: 最低出力 | S7: 約定希望ΔkW | T7: ΔkW約定量 | U7: 最低出力までの発電電力量の機会費用単価×(約定希望ΔkW-ΔkW約定量) | V7: 最低出力維持した場合の費用合計 | W7: 停止・再起動にかかる費用 | X7: 事象毎の最終行 | Y7: 妥当性確認 | Z7: 応札状況 | AA7: 約定状況 | AB7: 並解列状態(実績) | AC7: 起動費未回収分相当額 | AD7: 最低出力までの発電電力量の機会費用 | AE7: 停止・再起動にかかる費用 | AH7: 精算対象 申請小計 | AI7: 起動費未回収分相当額 | AJ7: 最低出力までの発電電力量の機会費用 | AK7: 停止・再起動にかかる費用 | AL7: 合計
M8: （円/kW） | N8: （円/kW） | O8: （円/kW） | P8: （円/kW） | Q8: （kWh） | R8: （kWh） | S8: （kW） | T8: （kW） | U8: （円） | V8: （円） | W8: （円） | AC8: （円） | AD8: （円） | AE8: （円） | AI8: （円） | AJ8: （円） | AK8: （円） | AL8: （円）
B9: ※起動費未回収が発生した事象ごとにNOを付定すること。 | D9: ※対象の場合は「１」，非対象の場合は「０」を入力 | G9: ※持ち下げ供出機を加重平均で入札した場合に選択 | K9: ※１持ち下げ供出機区分が該当する場合，起動供出機の約定番号を記載すること ※２同一時刻コードにおいて，複数の約定番号がある場合は，いずれか1つを記載すること。 | L9: ※1持ち下げ供出機区分に該当する場合，起動供出機の約定識別IDを記載すること ※2同一時刻コードにおいて，約定番号に紐づく約定識別IDが複数存在する場合は，いずれか1つを記載すること ※3電源差し替えを実施した場合，差替え元の約定識別IDを記載すること(持ち下げ供出機区分に該当する場合,起動供出機の初回約定識別IDを記載すること) | M9: ※MMSに登録された起動費単価分を原則用いること | N9: ※持ち下げ供出機区分が該当する場合に記載すること | O9: ※ 持ち下げ供出機区分が該当する場合に記載すること | P9: ※１卸電力市場価格（スポット市場価格：実績）と限界費用との差額を用いること ※２加重平均で入札した場合は，最低出力までの発電電力量の加重平均機会費用相当額を記載すること ※３加重平均で入札し，持ち下げ供出機の情報を記載する場合は，持ち下げ供出機のΔkW単価に含めた起動供出機の最低出力までの発電電力量の加重平均機会費用相当額を記載すること。ただし，精算パターンが「持ち下げ・起動供出機:全量不落」の場合は持ち下げ供出機のみが不落となったときに記載すること。 | U9: ※加重平均で入札した場合は，最低出力までの発電電力量の加重平均機会費用相当額×(約定希望ΔkW-ΔkW約定量) | V9: ※精算パターン「約定間全量不落(約定間停止・再起動)」を選択した場合，事象NOごとの最終行に合計値表示 | W9: ※１停止・再起動費は最後のブロックに記載すること ※２ 余力活用契約を締結している電源でBG計画上停止・再起動としていたが、実績は停止しなかった場合も、BG計画上の「停止・再起動費」を記載すること | AC9: ※加重平均で入札した場合は，加重平均起動費未回収分相当額 | AD9: ※加重平均で入札した場合は，最低出力までの発電電力量の加重平均機会費用相当額 | AE9: ※約定間全量不落時において，停止・再起動するよりも，最低出力維持した方が経済的だった場合，後者を事後精算対象とする。 | AI9: =SUM(AC:AC) -> 0 | AJ9: =SUM(AD:AD) -> 0 | AK9: =SUM(AE:AE) -> 0 | AL9: =ROUNDDOWN(SUM(AI9:AK9),0) -> 0

Sheet 精算パターンマトリクス表
C2: 事象 | D2: 持ち下げ供出機区分 | E2: 契約 | F2: 発電計画 | G2: ＴＳＯ運用 | H2: 精算の範囲 | N2: 精算パターン
H3: 起動費 | I3: 機会費用 | J3: ー | K3: ー | L3: ー | M3: ー
C5: 一部不落 | D5: ー | E5: いかなる場合も起動費事後精算対象のため省略 | H5: ● | I5: ● | J5: ー | K5: ー | L5: ー | M5: ー | N5: ③
C6: 全量不落 | H6: ● | I6: ー | J6: ー | K6: ー | L6: ー | M6: ー | N6: ②
C7: 約定間一部不落 | H7: ● | I7: ● | J7: ー | K7: ー | L7: ー | M7: ー | N7: ③
C8: 事象 | D8: 持ち下げ供出機区分 | E8: 契約 | F8: 発電計画 | G8: ＴＳＯ運用 | H8: 約定間不落ブロックの起動費 | I8: 約定間不落ブロックの機会費用 | J8: 停止・再起動費 | K8: 妥当性確認 | L8: 余力活用でのＶ１・Ｖ２精算 | M8: 余力活用でのＶ３精算 | N8: 精算パターン
C10: 約定間全量不落 | D10: ー | E10: 需給調整市場 | F10: 最低出力で連続運転 | G10: ー | H10: ● | I10: ● | J10: ー | K10: ー | L10: ー | M10: ー | N10: ①
E11: 需給調整市場+余力活用契約 | G11: 停止・再起動 | H11: ● | I11: ● | J11: ー | K11: ー | L11: ● | M11: ● | N11: ⑦
E12: 需給調整市場+余力活用契約 | G12: 発電計画どおり | H12: ● | I12: ● | J12: ー | K12: ー | L12: ー | M12: ー | N12: ①
E13: 需給調整市場 | F13: 停止・再起動 | G13: ー | H13: ● | I13: ●※１ | J13: ●※２ | K13: ● | L13: ー | M13: ー | N13: ④
E14: 需給調整市場+余力活用契約 | G14: 発電計画どおり | H14: ● | I14: ●※１ | J14: ●※２ | K14: ● | L14: ー | M14: ー | N14: ④
E15: 需給調整市場+余力活用契約 | G15: 最低出力で連続運転 | H15: ● | I15: ●※１ | J15: ●※２ | K15: ● | L15: ● | M15: ● | N15: ⑤
H16: ※１約定間全量不落時において，停止・再起動するよりも，最低出力維持した方が経済的だった場合、後者を事後精算対象とする。
H17: ※２約定間全量不落時において，最低出力維持するよりも，停止・再起動した方が経済的だった場合、後者を事後精算対象とする。
C18: 起動供出機と持ち下げ供出機の単価を加重平均にて入札した場合
C19: 事象 | D19: 持ち下げ供出機区分 | E19: 契約 | F19: 発電計画 | G19: ＴＳＯ運用 | H19: 精算の範囲 | N19: 精算パターン
H20: 加重平均の起動費 | I20: 機会費用 | J20: ー | K20: ー | L20: ー | M20: ー
C22: 一部不落 | D22: 該当(持ち下げ供出機) | E22: いかなる場合も起動費事後精算対象のため省略 | H22: ●※３ | I22: ー | J22: ー | K22: ー | L22: ー | M22: ー | N22: ⑥
D23: 該当(起動供出機) | H23: ●※４ | I23: ● | J23: ー | K23: ー | L23: ー | M23: ー
C24: 全量不落 | D24: 該当(持ち下げ供出機) | H24: ●※３ | I24: ー | J24: ー | K24: ー | L24: ー | M24: ー
D25: 該当(起動供出機) | H25: ●※４ | I25: ー | J25: ー | K25: ー | L25: ー | M25: ー
C26: 約定間一部不落 | D26: 該当(持ち下げ供出機) | H26: ●※３ | I26: ー | J26: ー | K26: ー | L26: ー | M26: ー
D27: 該当(起動供出機) | H27: ●※４ | I27: ● | J27: ー | K27: ー | L27: ー | M27: ー
C28: 事象 | D28: 持ち下げ供出機区分 | E28: 契約 | F28: 発電計画 | G28: ＴＳＯ運用 | H28: 約定間不落ブロックの加重平均の起動費 | I28: 約定間不落ブロックの機会費用 | J28: 停止・再起動費 | K28: 妥当性確認 | L28: 余力活用でのＶ１・Ｖ２精算 | M28: 余力活用でのＶ３精算 | N28: 精算パターン
C30: 約定間全量不落 | D30: 該当(持ち下げ供出機) | E30: 需給調整市場 | F30: 最低出力で連続運転 | G30: ー | H30: ●※３ | I30: ー | J30: ー | K30: ー | L30: ー | M30: ー | N30: ①
D31: 該当(起動供出機) | H31: ●※４ | I31: ● | J31: ー | K31: ー | L31: ー | M31: ー | N31: ①
D32: 該当(持ち下げ供出機) | E32: 需給調整市場+余力活用契約 | G32: 停止・再起動 | H32: ●※３ | I32: ー | J32: ー | K32: ー | L32: ー | M32: ー | N32: ⑦
D33: 該当(起動供出機) | H33: ●※４ | I33: ● | J33: ー | K33: ー | L33: ● | M33: ● | N33: ⑦
D34: 該当(持ち下げ供出機) | E34: 需給調整市場+余力活用契約 | G34: 発電計画どおり | H34: ●※３ | I34: ー | J34: ー | K34: ー | L34: ー | M34: ー | N34: ①
D35: 該当(起動供出機) | H35: ●※４ | I35: ● | J35: ー | K35: ー | L35: ー | M35: ー | N35: ①
D36: 該当(持ち下げ供出機) | E36: 需給調整市場 | F36: 停止・再起動 | G36: ー | H36: ●※３ | I36: ー | J36: ー | K36: ー | L36: ー | M36: ー | N36: ④
D37: 該当(起動供出機) | H37: ●※４ | I37: ●※１ | J37: ●※２ | K37: ● | L37: ー | M37: ー | N37: ④
D38: 該当(持ち下げ供出機) | E38: 需給調整市場+余力活用契約 | G38: 発電計画どおり | H38: ●※３ | I38: ー | J38: ー | K38: ー | L38: ー | M38: ー | N38: ④
D39: 該当(起動供出機) | H39: ●※４ | I39: ●※１ | J39: ●※２ | K39: ● | L39: ー | M39: ー | N39: ④
D40: 該当(持ち下げ供出機) | E40: 需給調整市場+余力活用契約 | G40: 最低出力で連続運転 | H40: ●※３ | I40: ー | J40: ー | K40: ー | L40: ー | M40: ー | N40: ⑤
D41: 該当(起動供出機) | H41: ●※４ | I41: ●※1 | J41: ●※２ | K41: ● | L41: ● | M41: ● | N41: ⑤
H42: ※１約定間全量不落時において，停止・再起動するよりも，最低出力維持した方が経済的だった場合、後者を事後精算対象とする。
H43: ※２約定間全量不落時において，最低出力維持するよりも，停止・再起動した方が経済的だった場合、後者を事後精算対象とする。
H44: ※３持ち下げ供出機に織り込んだ起動供出機の起動費単価分を記載すること。
H45: ※４加重平均のΔKW価格から加重平均前のΔKW価格のうち，機会費用，一定額等を差し引いた価格を記載すること。

Sheet 記載例_精算パターン① 約定間全量不落(最低出力維持)
B2: 取引年月 | C2: 202504
B3: MMSコード | C3: A000
B4: 対象エリア | C4: 3：東京
B5: ファイル名称 | C5: =$C$2&"_"&$C$3&"_"&LEFT($C$4,1)&"_不約定単価内訳兼起動費事後精算情報様式" -> 202504_A000_3_不約定単価内訳兼起動費事後精算情報様式
B7: =入力シート!B7 -> 事象NO | C7: =入力シート!C7 -> 精算パターン | D7: =入力シート!D7 -> 余力活用契約対象リソース区分 | E7: =入力シート!E7 -> 取引日 | F7: =入力シート!F7 -> 時刻コード | G7: =入力シート!G7 -> 持ち下げ供出機区分 | H7: =入力シート!H7 -> 系統コード | I7: =入力シート!I7 -> 商品区分 | J7: =入力シート!J7 -> 売り入札ID | K7: =入力シート!K7 -> 約定番号 | L7: =入力シート!L7 -> 約定識別ID | M7: =入力シート!M7 -> MMS起動費単価 | N7: =入力シート!N7 -> 加重平均前のΔkW単価 | O7: =入力シート!O7 -> 加重平均起動費未回収分相当額 | P7: =入力シート!P7 -> 最低出力までの発電電力量の機会費用単価 | Q7: =入力シート!Q7 -> 発電計画 | R7: =入力シート!R7 -> 最低出力 | S7: =入力シート!S7 -> 約定希望ΔkW | T7: =入力シート!T7 -> ΔkW約定量 | U7: =入力シート!U7 -> 最低出力までの発電電力量の機会費用単価×(約定希望ΔkW-ΔkW約定量) | V7: =入力シート!V7 -> 最低出力維持した場合の費用合計 | W7: =入力シート!W7 -> 停止・再起動にかかる費用 | X7: =入力シート!X7 -> 事象毎の最終行 | Y7: =入力シート!Y7 -> 妥当性確認 | Z7: =入力シート!Z7 -> 応札状況 | AA7: =入力シート!AA7 -> 約定状況 | AB7: =入力シート!AB7 -> 並解列状態(実績) | AC7: =入力シート!AC7 -> 起動費未回収分相当額 | AD7: =入力シート!AD7 -> 最低出力までの発電電力量の機会費用 | AE7: =入力シート!AE7 -> 停止・再起動にかかる費用 | AH7: =入力シート!AH7 -> 精算対象 申請小計 | AI7: =入力シート!AI7 -> 起動費未回収分相当額 | AJ7: =入力シート!AJ7 -> 最低出力までの発電電力量の機会費用 | AK7: =入力シート!AK7 -> 停止・再起動にかかる費用 | AL7: =入力シート!AL7 -> 合計
M8: （円/kW） | N8: （円/kW） | O8: （円/kW） | P8: （円/kW） | Q8: （kWh） | R8: （kWh） | S8: （kW） | T8: （kW） | U8: （円） | V8: （円） | W8: （円） | AC8: （円） | AD8: （円） | AE8: （円） | AI8: （円） | AJ8: （円） | AK8: （円） | AL8: （円）
B9: =IF(入力シート!B9<>"",入力シート!B9,"") -> ※起動費未回収が発生した事象ごとにNOを付定すること。 | C9: =IF(入力シート!C9<>"",入力シート!C9,"") ->  | D9: =IF(入力シート!D9<>"",入力シート!D9,"") -> ※対象の場合は「１」，非対象の場合は「０」を入力 | E9: =IF(入力シート!E9<>"",入力シート!E9,"") ->  | F9: =IF(入力シート!F9<>"",入力シート!F9,"") ->  | G9: =IF(入力シート!G9<>"",入力シート!G9,"") -> ※持ち下げ供出機を加重平均で入札した場合に選択 | H9: =IF(入力シート!H9<>"",入力シート!H9,"") ->  | I9: =IF(入力シート!I9<>"",入力シート!I9,"") ->  | J9: =IF(入力シート!J9<>"",入力シート!J9,"") ->  | K9: =IF(入力シート!K9<>"",入力シート!K9,"") -> ※１持ち下げ供出機区分が該当する場合，起動供出機の約定番号を記載すること ※２同一時刻コードにおいて，複数の約定番号がある場合は，いずれか1つを記載すること。 | L9: =IF(入力シート!L9<>"",入力シート!L9,"") -> ※1持ち下げ供出機区分に該当する場合，起動供出機の約定識別IDを記載すること ※2同一時刻コードにおいて，約定番号に紐づく約定識別IDが複数存在する場合は，いずれか1つを記載すること ※3電源差し替えを実施した場合，差替え元の約定識別IDを記載すること(持ち下げ供出機区分に該当する場合,起動供出機の初回約定識別IDを記載すること) | M9: =IF(入力シート!M9<>"",入力シート!M9,"") -> ※MMSに登録された起動費単価分を原則用いること | N9: =IF(入力シート!N9<>"",入力シート!N9,"") -> ※持ち下げ供出機区分が該当する場合に記載すること | O9: =IF(入力シート!O9<>"",入力シート!O9,"") -> ※ 持ち下げ供出機区分が該当する場合に記載すること | P9: =IF(入力シート!P9<>"",入力シート!P9,"") -> ※１卸電力市場価格（スポット市場価格：実績）と限界費用との差額を用いること ※２加重平均で入札した場合は，最低出力までの発電電力量の加重平均機会費用相当額を記載すること ※３加重平均で入札し，持ち下げ供出機の情報を記載する場合は，持ち下げ供出機のΔkW単価に含めた起動供出機の最低出力までの発電電力量の加重平均機会費用相当額を記載すること。ただし，精算パターンが「持ち下げ・起動供出機:全量不落」の場合は持ち下げ供出機のみが不落となったときに記載すること。 | Q9: =IF(入力シート!Q9<>"",入力シート!Q9,"") ->  | R9: =IF(入力シート!R9<>"",入力シート!R9,"") ->  | S9: =IF(入力シート!S9<>"",入力シート!S9,"") ->  | T9: =IF(入力シート!T9<>"",入力シート!T9,"") ->  | U9: =IF(入力シート!U9<>"",入力シート!U9,"") -> ※加重平均で入札した場合は，最低出力までの発電電力量の加重平均機会費用相当額×(約定希望ΔkW-ΔkW約定量) | V9: =IF(入力シート!V9<>"",入力シート!V9,"") -> ※精算パターン「約定間全量不落(約定間停止・再起動)」を選択した場合，事象NOごとの最終行に合計値表示 | W9: =IF(入力シート!W9<>"",入力シート!W9,"") -> ※１停止・再起動費は最後のブロックに記載すること ※２ 余力活用契約を締結している電源でBG計画上停止・再起動としていたが、実績は停止しなかった場合も、BG計画上の「停止・再起動費」を記載すること | X9: =IF(入力シート!X9<>"",入力シート!X9,"") ->  | Y9: =IF(入力シート!Y9<>"",入力シート!Y9,"") ->  | Z9: =IF(入力シート!Z9<>"",入力シート!Z9,"") ->  | AA9: =IF(入力シート!AA9<>"",入力シート!AA9,"") ->  | AB9: =IF(入力シート!AB9<>"",入力シート!AB9,"") ->  | AC9: =IF(入力シート!AC9<>"",入力シート!AC9,"") -> ※加重平均で入札した場合は，加重平均起動費未回収分相当額 | AD9: =IF(入力シート!AD9<>"",入力シート!AD9,"") -> ※加重平均で入札した場合は，最低出力までの発電電力量の加重平均機会費用相当額 | AE9: =IF(入力シート!AE9<>"",入力シート!AE9,"") -> ※約定間全量不落時において，停止・再起動するよりも，最低出力維持した方が経済的だった場合，後者を事後精算対象とする。 | AI9: =SUM($AC10:$AC2831) -> 3329000 | AJ9: =SUM($AD10:$AD2831) -> 225000 | AK9: =SUM($AE10:$AE2831) -> 0 | AL9: =ROUNDDOWN(SUM(AI9:AK9),0) -> 3554000
B10: 1 | C10: 1：約定間全量不落（最低出力維持） | D10: 0：非対象 | E10: 20250401 | F10: 4 | H10: ○A○○○ | I10: 2：三次調整力② | J10: ○○○○○○ | M10: 33.29 | P10: 2.25 | Q10: 20000 | R10: 20000 | S10: 50000 | T10: 0 | U10: =P10*(S10-T10) -> 112500 | V10: =IF(W10 > 0, SUMIFS(U:U, B:B, B10, Y:Y, 1), 0) -> 0 | X10: =IF(ISNUMBER(B10), IF(COUNTIF($B$10:$B10, B10)=COUNTIF($B:$B, B10), "1", "0"), "") -> 0 | Y10: =IF(OR($C10=List!$C$5,$C10=List!$C$6,$C10=List!$C$11,$C10=List!$C$13), 1, 0) -> 0 | Z10: =_xlfn.IFS(S10="","未応札",S10>0,"応札") -> 応札 | AA10: =_xlfn.IFS(T10=0,"未約定",T10=S10,"約定",T10<S10,"一部約定") -> 未約定 | AB10: 1：並列 | AC10: =IF(Z10="応札",IF($AA10="未約定",IF(OR($G10=List!$F$2:$F$3), $O10*$S10, $M10*$S10),IF($AA10="一部約定",IF(OR($G10=List!$F$2:$F$3), $O10*($S10-$T10), $M10*($S10-$T10)),"")),"") -> 1664500 | AD10: =IF(ISBLANK($Q10),IF(OR($AA10="一部約定",$AA10="未約定"),$P10*($S10-$T10),""),IF($Q10=0,"", IF(OR($AA10="一部約定", $AA10="未約定"), $P10*($S10-$T10), ""))) -> 112500 | AE10: =IF(AND($Z10="応札",$AA10="未約定"), IF($V10<>0, IF($W10<$V10, IF($W10<>0, $W10, ""), IF($V10<>0, $V10, "")), IF($W10<>0, $W10, "")), "") -> 
B11: 1 | C11: 1：約定間全量不落（最低出力維持） | D11: 0：非対象 | E11: 20250401 | F11: 5 | H11: ○A○○○ | I11: 2：三次調整力② | J11: ○○○○○○ | M11: 33.29 | P11: 2.25 | Q11: 20000 | R11: 20000 | S11: 50000 | T11: 0 | U11: =P11*(S11-T11) -> 112500 | V11: =IF(W11 > 0, SUMIFS(U:U, B:B, B11, Y:Y, 1), 0) -> 0 | X11: =IF(ISNUMBER(B11), IF(COUNTIF($B$10:$B11, B11)=COUNTIF($B:$B, B11), "1", "0"), "") -> 1 | Y11: =IF(OR($C11=List!$C$5,$C11=List!$C$6,$C11=List!$C$11,$C11=List!$C$13), 1, 0) -> 0 | Z11: =_xlfn.IFS(S11="","未応札",S11>0,"応札") -> 応札 | AA11: =_xlfn.IFS(T11=0,"未約定",T11=S11,"約定",T11<S11,"一部約定") -> 未約定 | AB11: 1：並列 | AC11: =IF(Z11="応札",IF($AA11="未約定",IF(OR($G11=List!$F$2:$F$3), $O11*$S11, $M11*$S11),IF($AA11="一部約定",IF(OR($G11=List!$F$2:$F$3), $O11*($S11-$T11), $M11*($S11-$T11)),"")),"") -> 1664500 | AD11: =IF(ISBLANK($Q11),IF(OR($AA11="一部約定",$AA11="未約定"),$P11*($S11-$T11),""),IF($Q11=0,"", IF(OR($AA11="一部約定", $AA11="未約定"), $P11*($S11-$T11), ""))) -> 112500 | AE11: =IF(AND($Z11="応札",$AA11="未約定"), IF($V11<>0, IF($W11<$V11, IF($W11<>0, $W11, ""), IF($V11<>0, $V11, "")), IF($W11<>0, $W11, "")), "") -> 
U12: 0 | V12: 0 | X12: =IF(ISNUMBER(B12), IF(COUNTIF($B$10:$B12, B12)=COUNTIF($B:$B, B12), "1", "0"), "") ->  | Y12: =IF(OR($C12=List!$C$5,$C12=List!$C$6,$C12=List!$C$11,$C12=List!$C$13), 1, 0) -> 0 | Z12: =_xlfn.IFS(S12="","未応札",S12>0,"応札") -> 未応札 | AA12: =_xlfn.IFS(T12=0,"未約定",T12=S12,"約定",T12<S12,"一部約定") -> 未約定 | AC12: =IF(Z12="応札",IF($AA12="未約定",IF(OR($G12=List!$F$2:$F$3), $O12*$S12, $M12*$S12),IF($AA12="一部約定",IF(OR($G12=List!$F$2:$F$3), $O12*($S12-$T12), $M12*($S12-$T12)),"")),"") ->  | AD12: 0
U13: 0 | V13: 0 | X13: =IF(ISNUMBER(B13), IF(COUNTIF($B$10:$B13, B13)=COUNTIF($B:$B, B13), "1", "0"), "") ->  | Y13: =IF(OR($C13=List!$C$5,$C13=List!$C$6,$C13=List!$C$11,$C13=List!$C$13), 1, 0) -> 0 | Z13: =_xlfn.IFS(S13="","未応札",S13>0,"応札") -> 未応札 | AA13: =_xlfn.IFS(T13=0,"未約定",T13=S13,"約定",T13<S13,"一部約定") -> 未約定 | AC13: =IF(Z13="応札",IF($AA13="未約定",IF(OR($G13=List!$F$2:$F$3), $O13*$S13, $M13*$S13),IF($AA13="一部約定",IF(OR($G13=List!$F$2:$F$3), $O13*($S13-$T13), $M13*($S13-$T13)),"")),"") ->  | AD13: 0
U14: 0 | V14: 0 | X14: =IF(ISNUMBER(B14), IF(COUNTIF($B$10:$B14, B14)=COUNTIF($B:$B, B14), "1", "0"), "") ->  | Y14: =IF(OR($C14=List!$C$5,$C14=List!$C$6,$C14=List!$C$11,$C14=List!$C$13), 1, 0) -> 0 | Z14: =_xlfn.IFS(S14="","未応札",S14>0,"応札") -> 未応札 | AA14: =_xlfn.IFS(T14=0,"未約定",T14=S14,"約定",T14<S14,"一部約定") -> 未約定 | AC14: =IF(Z14="応札",IF($AA14="未約定",IF(OR($G14=List!$F$2:$F$3), $O14*$S14, $M14*$S14),IF($AA14="一部約定",IF(OR($G14=List!$F$2:$F$3), $O14*($S14-$T14), $M14*($S14-$T14)),"")),"") ->  | AD14: 0
U15: 0 | V15: 0 | X15: =IF(ISNUMBER(B15), IF(COUNTIF($B$10:$B15, B15)=COUNTIF($B:$B, B15), "1", "0"), "") ->  | Y15: =IF(OR($C15=List!$C$5,$C15=List!$C$6,$C15=List!$C$11,$C15=List!$C$13), 1, 0) -> 0 | Z15: =_xlfn.IFS(S15="","未応札",S15>0,"応札") -> 未応札 | AA15: =_xlfn.IFS(T15=0,"未約定",T15=S15,"約定",T15<S15,"一部約定") -> 未約定 | AC15: =IF(Z15="応札",IF($AA15="未約定",IF(OR($G15=List!$F$2:$F$3), $O15*$S15, $M15*$S15),IF($AA15="一部約定",IF(OR($G15=List!$F$2:$F$3), $O15*($S15-$T15), $M15*($S15-$T15)),"")),"") ->  | AD15: 0
U16: 0 | V16: 0 | X16: =IF(ISNUMBER(B16), IF(COUNTIF($B$10:$B16, B16)=COUNTIF($B:$B, B16), "1", "0"), "") ->  | Y16: =IF(OR($C16=List!$C$5,$C16=List!$C$6,$C16=List!$C$11,$C16=List!$C$13), 1, 0) -> 0 | Z16: =_xlfn.IFS(S16="","未応札",S16>0,"応札") -> 未応札 | AA16: =_xlfn.IFS(T16=0,"未約定",T16=S16,"約定",T16<S16,"一部約定") -> 未約定 | AC16: =IF(Z16="応札",IF($AA16="未約定",IF(OR($G16=List!$F$2:$F$3), $O16*$S16, $M16*$S16),IF($AA16="一部約定",IF(OR($G16=List!$F$2:$F$3), $O16*($S16-$T16), $M16*($S16-$T16)),"")),"") ->  | AD16: 0
U17: 0 | V17: 0 | X17: =IF(ISNUMBER(B17), IF(COUNTIF($B$10:$B17, B17)=COUNTIF($B:$B, B17), "1", "0"), "") ->  | Y17: =IF(OR($C17=List!$C$5,$C17=List!$C$6,$C17=List!$C$11,$C17=List!$C$13), 1, 0) -> 0 | Z17: =_xlfn.IFS(S17="","未応札",S17>0,"応札") -> 未応札 | AA17: =_xlfn.IFS(T17=0,"未約定",T17=S17,"約定",T17<S17,"一部約定") -> 未約定 | AC17: =IF(Z17="応札",IF($AA17="未約定",IF(OR($G17=List!$F$2:$F$3), $O17*$S17, $M17*$S17),IF($AA17="一部約定",IF(OR($G17=List!$F$2:$F$3), $O17*($S17-$T17), $M17*($S17-$T17)),"")),"") ->  | AD17: 0
U18: 0 | V18: 0 | X18: =IF(ISNUMBER(B18), IF(COUNTIF($B$10:$B18, B18)=COUNTIF($B:$B, B18), "1", "0"), "") ->  | Y18: =IF(OR($C18=List!$C$5,$C18=List!$C$6,$C18=List!$C$11,$C18=List!$C$13), 1, 0) -> 0 | Z18: =_xlfn.IFS(S18="","未応札",S18>0,"応札") -> 未応札 | AA18: =_xlfn.IFS(T18=0,"未約定",T18=S18,"約定",T18<S18,"一部約定") -> 未約定 | AC18: =IF(Z18="応札",IF($AA18="未約定",IF(OR($G18=List!$F$2:$F$3), $O18*$S18, $M18*$S18),IF($AA18="一部約定",IF(OR($G18=List!$F$2:$F$3), $O18*($S18-$T18), $M18*($S18-$T18)),"")),"") ->  | AD18: 0
U19: 0 | V19: 0 | X19: =IF(ISNUMBER(B19), IF(COUNTIF($B$10:$B19, B19)=COUNTIF($B:$B, B19), "1", "0"), "") ->  | Y19: =IF(OR($C19=List!$C$5,$C19=List!$C$6,$C19=List!$C$11,$C19=List!$C$13), 1, 0) -> 0 | Z19: =_xlfn.IFS(S19="","未応札",S19>0,"応札") -> 未応札 | AA19: =_xlfn.IFS(T19=0,"未約定",T19=S19,"約定",T19<S19,"一部約定") -> 未約定 | AC19: =IF(Z19="応札",IF($AA19="未約定",IF(OR($G19=List!$F$2:$F$3), $O19*$S19, $M19*$S19),IF($AA19="一部約定",IF(OR($G19=List!$F$2:$F$3), $O19*($S19-$T19), $M19*($S19-$T19)),"")),"") ->  | AD19: 0
U20: 0 | V20: 0 | X20: =IF(ISNUMBER(B20), IF(COUNTIF($B$10:$B20, B20)=COUNTIF($B:$B, B20), "1", "0"), "") ->  | Y20: =IF(OR($C20=List!$C$5,$C20=List!$C$6,$C20=List!$C$11,$C20=List!$C$13), 1, 0) -> 0 | Z20: =_xlfn.IFS(S20="","未応札",S20>0,"応札") -> 未応札 | AA20: =_xlfn.IFS(T20=0,"未約定",T20=S20,"約定",T20<S20,"一部約定") -> 未約定 | AC20: =IF(Z20="応札",IF($AA20="未約定",IF(OR($G20=List!$F$2:$F$3), $O20*$S20, $M20*$S20),IF($AA20="一部約定",IF(OR($G20=List!$F$2:$F$3), $O20*($S20-$T20), $M20*($S20-$T20)),"")),"") ->  | AD20: 0
U21: 0 | V21: 0 | X21: =IF(ISNUMBER(B21), IF(COUNTIF($B$10:$B21, B21)=COUNTIF($B:$B, B21), "1", "0"), "") ->  | Y21: =IF(OR($C21=List!$C$5,$C21=List!$C$6,$C21=List!$C$11,$C21=List!$C$13), 1, 0) -> 0 | Z21: =_xlfn.IFS(S21="","未応札",S21>0,"応札") -> 未応札 | AA21: =_xlfn.IFS(T21=0,"未約定",T21=S21,"約定",T21<S21,"一部約定") -> 未約定 | AC21: =IF(Z21="応札",IF($AA21="未約定",IF(OR($G21=List!$F$2:$F$3), $O21*$S21, $M21*$S21),IF($AA21="一部約定",IF(OR($G21=List!$F$2:$F$3), $O21*($S21-$T21), $M21*($S21-$T21)),"")),"") ->  | AD21: 0
U22: 0 | V22: 0 | X22: =IF(ISNUMBER(B22), IF(COUNTIF($B$10:$B22, B22)=COUNTIF($B:$B, B22), "1", "0"), "") ->  | Y22: =IF(OR($C22=List!$C$5,$C22=List!$C$6,$C22=List!$C$11,$C22=List!$C$13), 1, 0) -> 0 | Z22: =_xlfn.IFS(S22="","未応札",S22>0,"応札") -> 未応札 | AA22: =_xlfn.IFS(T22=0,"未約定",T22=S22,"約定",T22<S22,"一部約定") -> 未約定 | AC22: =IF(Z22="応札",IF($AA22="未約定",IF(OR($G22=List!$F$2:$F$3), $O22*$S22, $M22*$S22),IF($AA22="一部約定",IF(OR($G22=List!$F$2:$F$3), $O22*($S22-$T22), $M22*($S22-$T22)),"")),"") ->  | AD22: 0
U23: 0 | V23: 0 | X23: =IF(ISNUMBER(B23), IF(COUNTIF($B$10:$B23, B23)=COUNTIF($B:$B, B23), "1", "0"), "") ->  | Y23: =IF(OR($C23=List!$C$5,$C23=List!$C$6,$C23=List!$C$11,$C23=List!$C$13), 1, 0) -> 0 | Z23: =_xlfn.IFS(S23="","未応札",S23>0,"応札") -> 未応札 | AA23: =_xlfn.IFS(T23=0,"未約定",T23=S23,"約定",T23<S23,"一部約定") -> 未約定 | AC23: =IF(Z23="応札",IF($AA23="未約定",IF(OR($G23=List!$F$2:$F$3), $O23*$S23, $M23*$S23),IF($AA23="一部約定",IF(OR($G23=List!$F$2:$F$3), $O23*($S23-$T23), $M23*($S23-$T23)),"")),"") ->  | AD23: 0
U24: 0 | V24: 0 | X24: =IF(ISNUMBER(B24), IF(COUNTIF($B$10:$B24, B24)=COUNTIF($B:$B, B24), "1", "0"), "") ->  | Y24: =IF(OR($C24=List!$C$5,$C24=List!$C$6,$C24=List!$C$11,$C24=List!$C$13), 1, 0) -> 0 | Z24: =_xlfn.IFS(S24="","未応札",S24>0,"応札") -> 未応札 | AA24: =_xlfn.IFS(T24=0,"未約定",T24=S24,"約定",T24<S24,"一部約定") -> 未約定 | AC24: =IF(Z24="応札",IF($AA24="未約定",IF(OR($G24=List!$F$2:$F$3), $O24*$S24, $M24*$S24),IF($AA24="一部約定",IF(OR($G24=List!$F$2:$F$3), $O24*($S24-$T24), $M24*($S24-$T24)),"")),"") ->  | AD24: 0
U25: 0 | V25: 0 | X25: =IF(ISNUMBER(B25), IF(COUNTIF($B$10:$B25, B25)=COUNTIF($B:$B, B25), "1", "0"), "") ->  | Y25: =IF(OR($C25=List!$C$5,$C25=List!$C$6,$C25=List!$C$11,$C25=List!$C$13), 1, 0) -> 0 | Z25: =_xlfn.IFS(S25="","未応札",S25>0,"応札") -> 未応札 | AA25: =_xlfn.IFS(T25=0,"未約定",T25=S25,"約定",T25<S25,"一部約定") -> 未約定 | AC25: =IF(Z25="応札",IF($AA25="未約定",IF(OR($G25=List!$F$2:$F$3), $O25*$S25, $M25*$S25),IF($AA25="一部約定",IF(OR($G25=List!$F$2:$F$3), $O25*($S25-$T25), $M25*($S25-$T25)),"")),"") ->  | AD25: 0
U26: 0 | V26: 0 | X26: =IF(ISNUMBER(B26), IF(COUNTIF($B$10:$B26, B26)=COUNTIF($B:$B, B26), "1", "0"), "") ->  | Y26: =IF(OR($C26=List!$C$5,$C26=List!$C$6,$C26=List!$C$11,$C26=List!$C$13), 1, 0) -> 0 | Z26: =_xlfn.IFS(S26="","未応札",S26>0,"応札") -> 未応札 | AA26: =_xlfn.IFS(T26=0,"未約定",T26=S26,"約定",T26<S26,"一部約定") -> 未約定 | AC26: =IF(Z26="応札",IF($AA26="未約定",IF(OR($G26=List!$F$2:$F$3), $O26*$S26, $M26*$S26),IF($AA26="一部約定",IF(OR($G26=List!$F$2:$F$3), $O26*($S26-$T26), $M26*($S26-$T26)),"")),"") ->  | AD26: 0
U27: 0 | V27: 0 | X27: =IF(ISNUMBER(B27), IF(COUNTIF($B$10:$B27, B27)=COUNTIF($B:$B, B27), "1", "0"), "") ->  | Y27: =IF(OR($C27=List!$C$5,$C27=List!$C$6,$C27=List!$C$11,$C27=List!$C$13), 1, 0) -> 0 | Z27: =_xlfn.IFS(S27="","未応札",S27>0,"応札") -> 未応札 | AA27: =_xlfn.IFS(T27=0,"未約定",T27=S27,"約定",T27<S27,"一部約定") -> 未約定 | AC27: =IF(Z27="応札",IF($AA27="未約定",IF(OR($G27=List!$F$2:$F$3), $O27*$S27, $M27*$S27),IF($AA27="一部約定",IF(OR($G27=List!$F$2:$F$3), $O27*($S27-$T27), $M27*($S27-$T27)),"")),"") ->  | AD27: 0
U28: 0 | V28: 0 | X28: =IF(ISNUMBER(B28), IF(COUNTIF($B$10:$B28, B28)=COUNTIF($B:$B, B28), "1", "0"), "") ->  | Y28: =IF(OR($C28=List!$C$5,$C28=List!$C$6,$C28=List!$C$11,$C28=List!$C$13), 1, 0) -> 0 | Z28: =_xlfn.IFS(S28="","未応札",S28>0,"応札") -> 未応札 | AA28: =_xlfn.IFS(T28=0,"未約定",T28=S28,"約定",T28<S28,"一部約定") -> 未約定 | AC28: =IF(Z28="応札",IF($AA28="未約定",IF(OR($G28=List!$F$2:$F$3), $O28*$S28, $M28*$S28),IF($AA28="一部約定",IF(OR($G28=List!$F$2:$F$3), $O28*($S28-$T28), $M28*($S28-$T28)),"")),"") ->  | AD28: 0
U29: 0 | V29: 0 | X29: =IF(ISNUMBER(B29), IF(COUNTIF($B$10:$B29, B29)=COUNTIF($B:$B, B29), "1", "0"), "") ->  | Y29: =IF(OR($C29=List!$C$5,$C29=List!$C$6,$C29=List!$C$11,$C29=List!$C$13), 1, 0) -> 0 | Z29: =_xlfn.IFS(S29="","未応札",S29>0,"応札") -> 未応札 | AA29: =_xlfn.IFS(T29=0,"未約定",T29=S29,"約定",T29<S29,"一部約定") -> 未約定 | AC29: =IF(Z29="応札",IF($AA29="未約定",IF(OR($G29=List!$F$2:$F$3), $O29*$S29, $M29*$S29),IF($AA29="一部約定",IF(OR($G29=List!$F$2:$F$3), $O29*($S29-$T29), $M29*($S29-$T29)),"")),"") ->  | AD29: 0
U30: 0 | V30: 0 | X30: =IF(ISNUMBER(B30), IF(COUNTIF($B$10:$B30, B30)=COUNTIF($B:$B, B30), "1", "0"), "") ->  | Y30: =IF(OR($C30=List!$C$5,$C30=List!$C$6,$C30=List!$C$11,$C30=List!$C$13), 1, 0) -> 0 | Z30: =_xlfn.IFS(S30="","未応札",S30>0,"応札") -> 未応札 | AA30: =_xlfn.IFS(T30=0,"未約定",T30=S30,"約定",T30<S30,"一部約定") -> 未約定 | AC30: =IF(Z30="応札",IF($AA30="未約定",IF(OR($G30=List!$F$2:$F$3), $O30*$S30, $M30*$S30),IF($AA30="一部約定",IF(OR($G30=List!$F$2:$F$3), $O30*($S30-$T30), $M30*($S30-$T30)),"")),"") ->  | AD30: 0
U31: 0 | V31: 0 | X31: =IF(ISNUMBER(B31), IF(COUNTIF($B$10:$B31, B31)=COUNTIF($B:$B, B31), "1", "0"), "") ->  | Y31: =IF(OR($C31=List!$C$5,$C31=List!$C$6,$C31=List!$C$11,$C31=List!$C$13), 1, 0) -> 0 | Z31: =_xlfn.IFS(S31="","未応札",S31>0,"応札") -> 未応札 | AA31: =_xlfn.IFS(T31=0,"未約定",T31=S31,"約定",T31<S31,"一部約定") -> 未約定 | AC31: =IF(Z31="応札",IF($AA31="未約定",IF(OR($G31=List!$F$2:$F$3), $O31*$S31, $M31*$S31),IF($AA31="一部約定",IF(OR($G31=List!$F$2:$F$3), $O31*($S31-$T31), $M31*($S31-$T31)),"")),"") ->  | AD31: 0
U32: 0 | V32: 0 | X32: =IF(ISNUMBER(B32), IF(COUNTIF($B$10:$B32, B32)=COUNTIF($B:$B, B32), "1", "0"), "") ->  | Y32: =IF(OR($C32=List!$C$5,$C32=List!$C$6,$C32=List!$C$11,$C32=List!$C$13), 1, 0) -> 0 | Z32: =_xlfn.IFS(S32="","未応札",S32>0,"応札") -> 未応札 | AA32: =_xlfn.IFS(T32=0,"未約定",T32=S32,"約定",T32<S32,"一部約定") -> 未約定 | AC32: =IF(Z32="応札",IF($AA32="未約定",IF(OR($G32=List!$F$2:$F$3), $O32*$S32, $M32*$S32),IF($AA32="一部約定",IF(OR($G32=List!$F$2:$F$3), $O32*($S32-$T32), $M32*($S32-$T32)),"")),"") ->  | AD32: 0
U33: 0 | V33: 0 | X33: =IF(ISNUMBER(B33), IF(COUNTIF($B$10:$B33, B33)=COUNTIF($B:$B, B33), "1", "0"), "") ->  | Y33: =IF(OR($C33=List!$C$5,$C33=List!$C$6,$C33=List!$C$11,$C33=List!$C$13), 1, 0) -> 0 | Z33: =_xlfn.IFS(S33="","未応札",S33>0,"応札") -> 未応札 | AA33: =_xlfn.IFS(T33=0,"未約定",T33=S33,"約定",T33<S33,"一部約定") -> 未約定 | AC33: =IF(Z33="応札",IF($AA33="未約定",IF(OR($G33=List!$F$2:$F$3), $O33*$S33, $M33*$S33),IF($AA33="一部約定",IF(OR($G33=List!$F$2:$F$3), $O33*($S33-$T33), $M33*($S33-$T33)),"")),"") ->  | AD33: 0
U34: 0 | V34: 0 | X34: =IF(ISNUMBER(B34), IF(COUNTIF($B$10:$B34, B34)=COUNTIF($B:$B, B34), "1", "0"), "") ->  | Y34: =IF(OR($C34=List!$C$5,$C34=List!$C$6,$C34=List!$C$11,$C34=List!$C$13), 1, 0) -> 0 | Z34: =_xlfn.IFS(S34="","未応札",S34>0,"応札") -> 未応札 | AA34: =_xlfn.IFS(T34=0,"未約定",T34=S34,"約定",T34<S34,"一部約定") -> 未約定 | AC34: =IF(Z34="応札",IF($AA34="未約定",IF(OR($G34=List!$F$2:$F$3), $O34*$S34, $M34*$S34),IF($AA34="一部約定",IF(OR($G34=List!$F$2:$F$3), $O34*($S34-$T34), $M34*($S34-$T34)),"")),"") ->  | AD34: 0
U35: 0 | V35: 0 | X35: =IF(ISNUMBER(B35), IF(COUNTIF($B$10:$B35, B35)=COUNTIF($B:$B, B35), "1", "0"), "") ->  | Y35: =IF(OR($C35=List!$C$5,$C35=List!$C$6,$C35=List!$C$11,$C35=List!$C$13), 1, 0) -> 0 | Z35: =_xlfn.IFS(S35="","未応札",S35>0,"応札") -> 未応札 | AA35: =_xlfn.IFS(T35=0,"未約定",T35=S35,"約定",T35<S35,"一部約定") -> 未約定 | AC35: =IF(Z35="応札",IF($AA35="未約定",IF(OR($G35=List!$F$2:$F$3), $O35*$S35, $M35*$S35),IF($AA35="一部約定",IF(OR($G35=List!$F$2:$F$3), $O35*($S35-$T35), $M35*($S35-$T35)),"")),"") ->  | AD35: 0
U36: 0 | V36: 0 | X36: =IF(ISNUMBER(B36), IF(COUNTIF($B$10:$B36, B36)=COUNTIF($B:$B, B36), "1", "0"), "") ->  | Y36: =IF(OR($C36=List!$C$5,$C36=List!$C$6,$C36=List!$C$11,$C36=List!$C$13), 1, 0) -> 0 | Z36: =_xlfn.IFS(S36="","未応札",S36>0,"応札") -> 未応札 | AA36: =_xlfn.IFS(T36=0,"未約定",T36=S36,"約定",T36<S36,"一部約定") -> 未約定 | AC36: =IF(Z36="応札",IF($AA36="未約定",IF(OR($G36=List!$F$2:$F$3), $O36*$S36, $M36*$S36),IF($AA36="一部約定",IF(OR($G36=List!$F$2:$F$3), $O36*($S36-$T36), $M36*($S36-$T36)),"")),"") ->  | AD36: 0
U37: 0 | V37: 0 | X37: =IF(ISNUMBER(B37), IF(COUNTIF($B$10:$B37, B37)=COUNTIF($B:$B, B37), "1", "0"), "") ->  | Y37: =IF(OR($C37=List!$C$5,$C37=List!$C$6,$C37=List!$C$11,$C37=List!$C$13), 1, 0) -> 0 | Z37: =_xlfn.IFS(S37="","未応札",S37>0,"応札") -> 未応札 | AA37: =_xlfn.IFS(T37=0,"未約定",T37=S37,"約定",T37<S37,"一部約定") -> 未約定 | AC37: =IF(Z37="応札",IF($AA37="未約定",IF(OR($G37=List!$F$2:$F$3), $O37*$S37, $M37*$S37),IF($AA37="一部約定",IF(OR($G37=List!$F$2:$F$3), $O37*($S37-$T37), $M37*($S37-$T37)),"")),"") ->  | AD37: 0
U38: 0 | V38: 0 | X38: =IF(ISNUMBER(B38), IF(COUNTIF($B$10:$B38, B38)=COUNTIF($B:$B, B38), "1", "0"), "") ->  | Y38: =IF(OR($C38=List!$C$5,$C38=List!$C$6,$C38=List!$C$11,$C38=List!$C$13), 1, 0) -> 0 | Z38: =_xlfn.IFS(S38="","未応札",S38>0,"応札") -> 未応札 | AA38: =_xlfn.IFS(T38=0,"未約定",T38=S38,"約定",T38<S38,"一部約定") -> 未約定 | AC38: =IF(Z38="応札",IF($AA38="未約定",IF(OR($G38=List!$F$2:$F$3), $O38*$S38, $M38*$S38),IF($AA38="一部約定",IF(OR($G38=List!$F$2:$F$3), $O38*($S38-$T38), $M38*($S38-$T38)),"")),"") ->  | AD38: 0
U39: 0 | V39: 0 | X39: =IF(ISNUMBER(B39), IF(COUNTIF($B$10:$B39, B39)=COUNTIF($B:$B, B39), "1", "0"), "") ->  | Y39: =IF(OR($C39=List!$C$5,$C39=List!$C$6,$C39=List!$C$11,$C39=List!$C$13), 1, 0) -> 0 | Z39: =_xlfn.IFS(S39="","未応札",S39>0,"応札") -> 未応札 | AA39: =_xlfn.IFS(T39=0,"未約定",T39=S39,"約定",T39<S39,"一部約定") -> 未約定 | AC39: =IF(Z39="応札",IF($AA39="未約定",IF(OR($G39=List!$F$2:$F$3), $O39*$S39, $M39*$S39),IF($AA39="一部約定",IF(OR($G39=List!$F$2:$F$3), $O39*($S39-$T39), $M39*($S39-$T39)),"")),"") ->  | AD39: 0

Sheet 記載例_精算パターン②全量不落
B2: 取引年月 | C2: 202504
B3: MMSコード | C3: A000
B4: 対象エリア | C4: 3：東京
B5: ファイル名称 | C5: =$C$2&"_"&$C$3&"_"&LEFT($C$4,1)&"_不約定単価内訳兼起動費事後精算情報様式" -> 202504_A000_3_不約定単価内訳兼起動費事後精算情報様式
B7: =入力シート!B7 -> 事象NO | C7: =入力シート!C7 -> 精算パターン | D7: =入力シート!D7 -> 余力活用契約対象リソース区分 | E7: =入力シート!E7 -> 取引日 | F7: =入力シート!F7 -> 時刻コード | G7: =入力シート!G7 -> 持ち下げ供出機区分 | H7: =入力シート!H7 -> 系統コード | I7: =入力シート!I7 -> 商品区分 | J7: =入力シート!J7 -> 売り入札ID | K7: =入力シート!K7 -> 約定番号 | L7: =入力シート!L7 -> 約定識別ID | M7: =入力シート!M7 -> MMS起動費単価 | N7: =入力シート!N7 -> 加重平均前のΔkW単価 | O7: =入力シート!O7 -> 加重平均起動費未回収分相当額 | P7: =入力シート!P7 -> 最低出力までの発電電力量の機会費用単価 | Q7: =入力シート!Q7 -> 発電計画 | R7: =入力シート!R7 -> 最低出力 | S7: =入力シート!S7 -> 約定希望ΔkW | T7: =入力シート!T7 -> ΔkW約定量 | U7: =入力シート!U7 -> 最低出力までの発電電力量の機会費用単価×(約定希望ΔkW-ΔkW約定量) | V7: =入力シート!V7 -> 最低出力維持した場合の費用合計 | W7: =入力シート!W7 -> 停止・再起動にかかる費用 | X7: =入力シート!X7 -> 事象毎の最終行 | Y7: =入力シート!Y7 -> 妥当性確認 | Z7: =入力シート!Z7 -> 応札状況 | AA7: =入力シート!AA7 -> 約定状況 | AB7: =入力シート!AB7 -> 並解列状態(実績) | AC7: =入力シート!AC7 -> 起動費未回収分相当額 | AD7: =入力シート!AD7 -> 最低出力までの発電電力量の機会費用 | AE7: =入力シート!AE7 -> 停止・再起動にかかる費用 | AH7: =入力シート!AH7 -> 精算対象 申請小計 | AI7: =入力シート!AI7 -> 起動費未回収分相当額 | AJ7: =入力シート!AJ7 -> 最低出力までの発電電力量の機会費用 | AK7: =入力シート!AK7 -> 停止・再起動にかかる費用 | AL7: =入力シート!AL7 -> 合計
M8: （円/kW） | N8: （円/kW） | O8: （円/kW） | P8: （円/kW） | Q8: （kWh） | R8: （kWh） | S8: （kW） | T8: （kW） | U8: （円） | V8: （円） | W8: （円） | AC8: （円） | AD8: （円） | AE8: （円） | AI8: （円） | AJ8: （円） | AK8: （円） | AL8: （円）
B9: =IF(入力シート!B9<>"",入力シート!B9,"") -> ※起動費未回収が発生した事象ごとにNOを付定すること。 | C9: =IF(入力シート!C9<>"",入力シート!C9,"") ->  | D9: =IF(入力シート!D9<>"",入力シート!D9,"") -> ※対象の場合は「１」，非対象の場合は「０」を入力 | E9: =IF(入力シート!E9<>"",入力シート!E9,"") ->  | F9: =IF(入力シート!F9<>"",入力シート!F9,"") ->  | G9: =IF(入力シート!G9<>"",入力シート!G9,"") -> ※持ち下げ供出機を加重平均で入札した場合に選択 | H9: =IF(入力シート!H9<>"",入力シート!H9,"") ->  | I9: =IF(入力シート!I9<>"",入力シート!I9,"") ->  | J9: =IF(入力シート!J9<>"",入力シート!J9,"") ->  | K9: =IF(入力シート!K9<>"",入力シート!K9,"") -> ※１持ち下げ供出機区分が該当する場合，起動供出機の約定番号を記載すること ※２同一時刻コードにおいて，複数の約定番号がある場合は，いずれか1つを記載すること。 | L9: =IF(入力シート!L9<>"",入力シート!L9,"") -> ※1持ち下げ供出機区分に該当する場合，起動供出機の約定識別IDを記載すること ※2同一時刻コードにおいて，約定番号に紐づく約定識別IDが複数存在する場合は，いずれか1つを記載すること ※3電源差し替えを実施した場合，差替え元の約定識別IDを記載すること(持ち下げ供出機区分に該当する場合,起動供出機の初回約定識別IDを記載すること) | M9: =IF(入力シート!M9<>"",入力シート!M9,"") -> ※MMSに登録された起動費単価分を原則用いること | N9: =IF(入力シート!N9<>"",入力シート!N9,"") -> ※持ち下げ供出機区分が該当する場合に記載すること | O9: =IF(入力シート!O9<>"",入力シート!O9,"") -> ※ 持ち下げ供出機区分が該当する場合に記載すること | P9: =IF(入力シート!P9<>"",入力シート!P9,"") -> ※１卸電力市場価格（スポット市場価格：実績）と限界費用との差額を用いること ※２加重平均で入札した場合は，最低出力までの発電電力量の加重平均機会費用相当額を記載すること ※３加重平均で入札し，持ち下げ供出機の情報を記載する場合は，持ち下げ供出機のΔkW単価に含めた起動供出機の最低出力までの発電電力量の加重平均機会費用相当額を記載すること。ただし，精算パターンが「持ち下げ・起動供出機:全量不落」の場合は持ち下げ供出機のみが不落となったときに記載すること。 | Q9: =IF(入力シート!Q9<>"",入力シート!Q9,"") ->  | R9: =IF(入力シート!R9<>"",入力シート!R9,"") ->  | S9: =IF(入力シート!S9<>"",入力シート!S9,"") ->  | T9: =IF(入力シート!T9<>"",入力シート!T9,"") ->  | U9: =IF(入力シート!U9<>"",入力シート!U9,"") -> ※加重平均で入札した場合は，最低出力までの発電電力量の加重平均機会費用相当額×(約定希望ΔkW-ΔkW約定量) | V9: =IF(入力シート!V9<>"",入力シート!V9,"") -> ※精算パターン「約定間全量不落(約定間停止・再起動)」を選択した場合，事象NOごとの最終行に合計値表示 | W9: =IF(入力シート!W9<>"",入力シート!W9,"") -> ※１停止・再起動費は最後のブロックに記載すること ※２ 余力活用契約を締結している電源でBG計画上停止・再起動としていたが、実績は停止しなかった場合も、BG計画上の「停止・再起動費」を記載すること | X9: =IF(入力シート!X9<>"",入力シート!X9,"") ->  | Y9: =IF(入力シート!Y9<>"",入力シート!Y9,"") ->  | Z9: =IF(入力シート!Z9<>"",入力シート!Z9,"") ->  | AA9: =IF(入力シート!AA9<>"",入力シート!AA9,"") ->  | AB9: =IF(入力シート!AB9<>"",入力シート!AB9,"") ->  | AC9: =IF(入力シート!AC9<>"",入力シート!AC9,"") -> ※加重平均で入札した場合は，加重平均起動費未回収分相当額 | AD9: =IF(入力シート!AD9<>"",入力シート!AD9,"") -> ※加重平均で入札した場合は，最低出力までの発電電力量の加重平均機会費用相当額 | AE9: =IF(入力シート!AE9<>"",入力シート!AE9,"") -> ※約定間全量不落時において，停止・再起動するよりも，最低出力維持した方が経済的だった場合，後者を事後精算対象とする。 | AI9: =SUM($AC10:$AC2831) -> 3027600 | AJ9: =SUM($AD10:$AD2831) -> 0 | AK9: =SUM($AE10:$AE2831) -> 0 | AL9: =ROUNDDOWN(SUM(AI9:AK9),0) -> 3027600
B10: 1 | C10: 2：全量不落 | D10: 0：非対象 | E10: 20250401 | F10: 2 | H10: ○B○○○ | I10: 2：三次調整力② | J10: ○○○○○○ | M10: 25.23 | Q10: 0 | R10: 0 | S10: 40000 | T10: 0 | U10: =P10*(S10-T10) -> 0 | V10: =IF(W10 > 0, SUMIFS(U:U, B:B, B10, Y:Y, 1), 0) -> 0 | X10: =IF(ISNUMBER(B10), IF(COUNTIF($B$10:$B10, B10)=COUNTIF($B:$B, B10), "1", "0"), "") -> 0 | Y10: =IF(OR($C10=List!$C$5,$C10=List!$C$6,$C10=List!$C$11,$C10=List!$C$13), 1, 0) -> 0 | Z10: =_xlfn.IFS(S10="","未応札",S10>0,"応札") -> 応札 | AA10: =_xlfn.IFS(T10=0,"未約定",T10=S10,"約定",T10<S10,"一部約定") -> 未約定 | AB10: 2：解列 | AC10: =IF(Z10="応札",IF($AA10="未約定",IF(OR($G10=List!$F$2:$F$3), $O10*$S10, $M10*$S10),IF($AA10="一部約定",IF(OR($G10=List!$F$2:$F$3), $O10*($S10-$T10), $M10*($S10-$T10)),"")),"") -> 1009200 | AD10: =IF(ISBLANK($Q10),IF(OR($AA10="一部約定",$AA10="未約定"),$P10*($S10-$T10),""),IF($Q10=0,"", IF(OR($AA10="一部約定", $AA10="未約定"), $P10*($S10-$T10), ""))) ->  | AE10: =IF(AND($Z10="応札",$AA10="未約定"), IF($V10<>0, IF($W10<$V10, IF($W10<>0, $W10, ""), IF($V10<>0, $V10, "")), IF($W10<>0, $W10, "")), "") -> 
B11: 1 | C11: 2：全量不落 | D11: 0：非対象 | E11: 20250401 | F11: 6 | H11: ○B○○○ | I11: 2：三次調整力② | J11: ○○○○○○ | M11: 25.23 | Q11: 0 | R11: 0 | S11: 40000 | T11: 0 | U11: =P11*(S11-T11) -> 0 | V11: =IF(W11 > 0, SUMIFS(U:U, B:B, B11, Y:Y, 1), 0) -> 0 | X11: =IF(ISNUMBER(B11), IF(COUNTIF($B$10:$B11, B11)=COUNTIF($B:$B, B11), "1", "0"), "") -> 0 | Y11: =IF(OR($C11=List!$C$5,$C11=List!$C$6,$C11=List!$C$11,$C11=List!$C$13), 1, 0) -> 0 | Z11: =_xlfn.IFS(S11="","未応札",S11>0,"応札") -> 応札 | AA11: =_xlfn.IFS(T11=0,"未約定",T11=S11,"約定",T11<S11,"一部約定") -> 未約定 | AB11: 2：解列 | AC11: =IF(Z11="応札",IF($AA11="未約定",IF(OR($G11=List!$F$2:$F$3), $O11*$S11, $M11*$S11),IF($AA11="一部約定",IF(OR($G11=List!$F$2:$F$3), $O11*($S11-$T11), $M11*($S11-$T11)),"")),"") -> 1009200 | AD11: =IF(ISBLANK($Q11),IF(OR($AA11="一部約定",$AA11="未約定"),$P11*($S11-$T11),""),IF($Q11=0,"", IF(OR($AA11="一部約定", $AA11="未約定"), $P11*($S11-$T11), ""))) ->  | AE11: =IF(AND($Z11="応札",$AA11="未約定"), IF($V11<>0, IF($W11<$V11, IF($W11<>0, $W11, ""), IF($V11<>0, $V11, "")), IF($W11<>0, $W11, "")), "") -> 
B12: 1 | C12: 2：全量不落 | D12: 0：非対象 | E12: 20250401 | F12: 7 | H12: ○B○○○ | I12: 2：三次調整力② | J12: ○○○○○○ | M12: 25.23 | Q12: 0 | R12: 0 | S12: 40000 | T12: 0 | U12: 0 | V12: 0 | X12: =IF(ISNUMBER(B12), IF(COUNTIF($B$10:$B12, B12)=COUNTIF($B:$B, B12), "1", "0"), "") -> 1 | Y12: =IF(OR($C12=List!$C$5,$C12=List!$C$6,$C12=List!$C$11,$C12=List!$C$13), 1, 0) -> 0 | Z12: =_xlfn.IFS(S12="","未応札",S12>0,"応札") -> 応札 | AA12: =_xlfn.IFS(T12=0,"未約定",T12=S12,"約定",T12<S12,"一部約定") -> 未約定 | AB12: 2：解列 | AC12: =IF(Z12="応札",IF($AA12="未約定",IF(OR($G12=List!$F$2:$F$3), $O12*$S12, $M12*$S12),IF($AA12="一部約定",IF(OR($G12=List!$F$2:$F$3), $O12*($S12-$T12), $M12*($S12-$T12)),"")),"") -> 1009200
U13: 0 | V13: 0 | X13: =IF(ISNUMBER(B13), IF(COUNTIF($B$10:$B13, B13)=COUNTIF($B:$B, B13), "1", "0"), "") ->  | Y13: =IF(OR($C13=List!$C$5,$C13=List!$C$6,$C13=List!$C$11,$C13=List!$C$13), 1, 0) -> 0 | Z13: =_xlfn.IFS(S13="","未応札",S13>0,"応札") -> 未応札 | AA13: =_xlfn.IFS(T13=0,"未約定",T13=S13,"約定",T13<S13,"一部約定") -> 未約定 | AC13: =IF(Z13="応札",IF($AA13="未約定",IF(OR($G13=List!$F$2:$F$3), $O13*$S13, $M13*$S13),IF($AA13="一部約定",IF(OR($G13=List!$F$2:$F$3), $O13*($S13-$T13), $M13*($S13-$T13)),"")),"") ->  | AD13: 0
U14: 0 | V14: 0 | X14: =IF(ISNUMBER(B14), IF(COUNTIF($B$10:$B14, B14)=COUNTIF($B:$B, B14), "1", "0"), "") ->  | Y14: =IF(OR($C14=List!$C$5,$C14=List!$C$6,$C14=List!$C$11,$C14=List!$C$13), 1, 0) -> 0 | Z14: =_xlfn.IFS(S14="","未応札",S14>0,"応札") -> 未応札 | AA14: =_xlfn.IFS(T14=0,"未約定",T14=S14,"約定",T14<S14,"一部約定") -> 未約定 | AC14: =IF(Z14="応札",IF($AA14="未約定",IF(OR($G14=List!$F$2:$F$3), $O14*$S14, $M14*$S14),IF($AA14="一部約定",IF(OR($G14=List!$F$2:$F$3), $O14*($S14-$T14), $M14*($S14-$T14)),"")),"") ->  | AD14: 0
U15: 0 | V15: 0 | X15: =IF(ISNUMBER(B15), IF(COUNTIF($B$10:$B15, B15)=COUNTIF($B:$B, B15), "1", "0"), "") ->  | Y15: =IF(OR($C15=List!$C$5,$C15=List!$C$6,$C15=List!$C$11,$C15=List!$C$13), 1, 0) -> 0 | Z15: =_xlfn.IFS(S15="","未応札",S15>0,"応札") -> 未応札 | AA15: =_xlfn.IFS(T15=0,"未約定",T15=S15,"約定",T15<S15,"一部約定") -> 未約定 | AC15: =IF(Z15="応札",IF($AA15="未約定",IF(OR($G15=List!$F$2:$F$3), $O15*$S15, $M15*$S15),IF($AA15="一部約定",IF(OR($G15=List!$F$2:$F$3), $O15*($S15-$T15), $M15*($S15-$T15)),"")),"") ->  | AD15: 0
U16: 0 | V16: 0 | X16: =IF(ISNUMBER(B16), IF(COUNTIF($B$10:$B16, B16)=COUNTIF($B:$B, B16), "1", "0"), "") ->  | Y16: =IF(OR($C16=List!$C$5,$C16=List!$C$6,$C16=List!$C$11,$C16=List!$C$13), 1, 0) -> 0 | Z16: =_xlfn.IFS(S16="","未応札",S16>0,"応札") -> 未応札 | AA16: =_xlfn.IFS(T16=0,"未約定",T16=S16,"約定",T16<S16,"一部約定") -> 未約定 | AC16: =IF(Z16="応札",IF($AA16="未約定",IF(OR($G16=List!$F$2:$F$3), $O16*$S16, $M16*$S16),IF($AA16="一部約定",IF(OR($G16=List!$F$2:$F$3), $O16*($S16-$T16), $M16*($S16-$T16)),"")),"") ->  | AD16: 0
U17: 0 | V17: 0 | X17: =IF(ISNUMBER(B17), IF(COUNTIF($B$10:$B17, B17)=COUNTIF($B:$B, B17), "1", "0"), "") ->  | Y17: =IF(OR($C17=List!$C$5,$C17=List!$C$6,$C17=List!$C$11,$C17=List!$C$13), 1, 0) -> 0 | Z17: =_xlfn.IFS(S17="","未応札",S17>0,"応札") -> 未応札 | AA17: =_xlfn.IFS(T17=0,"未約定",T17=S17,"約定",T17<S17,"一部約定") -> 未約定 | AC17: =IF(Z17="応札",IF($AA17="未約定",IF(OR($G17=List!$F$2:$F$3), $O17*$S17, $M17*$S17),IF($AA17="一部約定",IF(OR($G17=List!$F$2:$F$3), $O17*($S17-$T17), $M17*($S17-$T17)),"")),"") ->  | AD17: 0
U18: 0 | V18: 0 | X18: =IF(ISNUMBER(B18), IF(COUNTIF($B$10:$B18, B18)=COUNTIF($B:$B, B18), "1", "0"), "") ->  | Y18: =IF(OR($C18=List!$C$5,$C18=List!$C$6,$C18=List!$C$11,$C18=List!$C$13), 1, 0) -> 0 | Z18: =_xlfn.IFS(S18="","未応札",S18>0,"応札") -> 未応札 | AA18: =_xlfn.IFS(T18=0,"未約定",T18=S18,"約定",T18<S18,"一部約定") -> 未約定 | AC18: =IF(Z18="応札",IF($AA18="未約定",IF(OR($G18=List!$F$2:$F$3), $O18*$S18, $M18*$S18),IF($AA18="一部約定",IF(OR($G18=List!$F$2:$F$3), $O18*($S18-$T18), $M18*($S18-$T18)),"")),"") ->  | AD18: 0
U19: 0 | V19: 0 | X19: =IF(ISNUMBER(B19), IF(COUNTIF($B$10:$B19, B19)=COUNTIF($B:$B, B19), "1", "0"), "") ->  | Y19: =IF(OR($C19=List!$C$5,$C19=List!$C$6,$C19=List!$C$11,$C19=List!$C$13), 1, 0) -> 0 | Z19: =_xlfn.IFS(S19="","未応札",S19>0,"応札") -> 未応札 | AA19: =_xlfn.IFS(T19=0,"未約定",T19=S19,"約定",T19<S19,"一部約定") -> 未約定 | AC19: =IF(Z19="応札",IF($AA19="未約定",IF(OR($G19=List!$F$2:$F$3), $O19*$S19, $M19*$S19),IF($AA19="一部約定",IF(OR($G19=List!$F$2:$F$3), $O19*($S19-$T19), $M19*($S19-$T19)),"")),"") ->  | AD19: 0
U20: 0 | V20: 0 | X20: =IF(ISNUMBER(B20), IF(COUNTIF($B$10:$B20, B20)=COUNTIF($B:$B, B20), "1", "0"), "") ->  | Y20: =IF(OR($C20=List!$C$5,$C20=List!$C$6,$C20=List!$C$11,$C20=List!$C$13), 1, 0) -> 0 | Z20: =_xlfn.IFS(S20="","未応札",S20>0,"応札") -> 未応札 | AA20: =_xlfn.IFS(T20=0,"未約定",T20=S20,"約定",T20<S20,"一部約定") -> 未約定 | AC20: =IF(Z20="応札",IF($AA20="未約定",IF(OR($G20=List!$F$2:$F$3), $O20*$S20, $M20*$S20),IF($AA20="一部約定",IF(OR($G20=List!$F$2:$F$3), $O20*($S20-$T20), $M20*($S20-$T20)),"")),"") ->  | AD20: 0
U21: 0 | V21: 0 | X21: =IF(ISNUMBER(B21), IF(COUNTIF($B$10:$B21, B21)=COUNTIF($B:$B, B21), "1", "0"), "") ->  | Y21: =IF(OR($C21=List!$C$5,$C21=List!$C$6,$C21=List!$C$11,$C21=List!$C$13), 1, 0) -> 0 | Z21: =_xlfn.IFS(S21="","未応札",S21>0,"応札") -> 未応札 | AA21: =_xlfn.IFS(T21=0,"未約定",T21=S21,"約定",T21<S21,"一部約定") -> 未約定 | AC21: =IF(Z21="応札",IF($AA21="未約定",IF(OR($G21=List!$F$2:$F$3), $O21*$S21, $M21*$S21),IF($AA21="一部約定",IF(OR($G21=List!$F$2:$F$3), $O21*($S21-$T21), $M21*($S21-$T21)),"")),"") ->  | AD21: 0
U22: 0 | V22: 0 | X22: =IF(ISNUMBER(B22), IF(COUNTIF($B$10:$B22, B22)=COUNTIF($B:$B, B22), "1", "0"), "") ->  | Y22: =IF(OR($C22=List!$C$5,$C22=List!$C$6,$C22=List!$C$11,$C22=List!$C$13), 1, 0) -> 0 | Z22: =_xlfn.IFS(S22="","未応札",S22>0,"応札") -> 未応札 | AA22: =_xlfn.IFS(T22=0,"未約定",T22=S22,"約定",T22<S22,"一部約定") -> 未約定 | AC22: =IF(Z22="応札",IF($AA22="未約定",IF(OR($G22=List!$F$2:$F$3), $O22*$S22, $M22*$S22),IF($AA22="一部約定",IF(OR($G22=List!$F$2:$F$3), $O22*($S22-$T22), $M22*($S22-$T22)),"")),"") ->  | AD22: 0
U23: 0 | V23: 0 | X23: =IF(ISNUMBER(B23), IF(COUNTIF($B$10:$B23, B23)=COUNTIF($B:$B, B23), "1", "0"), "") ->  | Y23: =IF(OR($C23=List!$C$5,$C23=List!$C$6,$C23=List!$C$11,$C23=List!$C$13), 1, 0) -> 0 | Z23: =_xlfn.IFS(S23="","未応札",S23>0,"応札") -> 未応札 | AA23: =_xlfn.IFS(T23=0,"未約定",T23=S23,"約定",T23<S23,"一部約定") -> 未約定 | AC23: =IF(Z23="応札",IF($AA23="未約定",IF(OR($G23=List!$F$2:$F$3), $O23*$S23, $M23*$S23),IF($AA23="一部約定",IF(OR($G23=List!$F$2:$F$3), $O23*($S23-$T23), $M23*($S23-$T23)),"")),"") ->  | AD23: 0
U24: 0 | V24: 0 | X24: =IF(ISNUMBER(B24), IF(COUNTIF($B$10:$B24, B24)=COUNTIF($B:$B, B24), "1", "0"), "") ->  | Y24: =IF(OR($C24=List!$C$5,$C24=List!$C$6,$C24=List!$C$11,$C24=List!$C$13), 1, 0) -> 0 | Z24: =_xlfn.IFS(S24="","未応札",S24>0,"応札") -> 未応札 | AA24: =_xlfn.IFS(T24=0,"未約定",T24=S24,"約定",T24<S24,"一部約定") -> 未約定 | AC24: =IF(Z24="応札",IF($AA24="未約定",IF(OR($G24=List!$F$2:$F$3), $O24*$S24, $M24*$S24),IF($AA24="一部約定",IF(OR($G24=List!$F$2:$F$3), $O24*($S24-$T24), $M24*($S24-$T24)),"")),"") ->  | AD24: 0
U25: 0 | V25: 0 | X25: =IF(ISNUMBER(B25), IF(COUNTIF($B$10:$B25, B25)=COUNTIF($B:$B, B25), "1", "0"), "") ->  | Y25: =IF(OR($C25=List!$C$5,$C25=List!$C$6,$C25=List!$C$11,$C25=List!$C$13), 1, 0) -> 0 | Z25: =_xlfn.IFS(S25="","未応札",S25>0,"応札") -> 未応札 | AA25: =_xlfn.IFS(T25=0,"未約定",T25=S25,"約定",T25<S25,"一部約定") -> 未約定 | AC25: =IF(Z25="応札",IF($AA25="未約定",IF(OR($G25=List!$F$2:$F$3), $O25*$S25, $M25*$S25),IF($AA25="一部約定",IF(OR($G25=List!$F$2:$F$3), $O25*($S25-$T25), $M25*($S25-$T25)),"")),"") ->  | AD25: 0
U26: 0 | V26: 0 | X26: =IF(ISNUMBER(B26), IF(COUNTIF($B$10:$B26, B26)=COUNTIF($B:$B, B26), "1", "0"), "") ->  | Y26: =IF(OR($C26=List!$C$5,$C26=List!$C$6,$C26=List!$C$11,$C26=List!$C$13), 1, 0) -> 0 | Z26: =_xlfn.IFS(S26="","未応札",S26>0,"応札") -> 未応札 | AA26: =_xlfn.IFS(T26=0,"未約定",T26=S26,"約定",T26<S26,"一部約定") -> 未約定 | AC26: =IF(Z26="応札",IF($AA26="未約定",IF(OR($G26=List!$F$2:$F$3), $O26*$S26, $M26*$S26),IF($AA26="一部約定",IF(OR($G26=List!$F$2:$F$3), $O26*($S26-$T26), $M26*($S26-$T26)),"")),"") ->  | AD26: 0
U27: 0 | V27: 0 | X27: =IF(ISNUMBER(B27), IF(COUNTIF($B$10:$B27, B27)=COUNTIF($B:$B, B27), "1", "0"), "") ->  | Y27: =IF(OR($C27=List!$C$5,$C27=List!$C$6,$C27=List!$C$11,$C27=List!$C$13), 1, 0) -> 0 | Z27: =_xlfn.IFS(S27="","未応札",S27>0,"応札") -> 未応札 | AA27: =_xlfn.IFS(T27=0,"未約定",T27=S27,"約定",T27<S27,"一部約定") -> 未約定 | AC27: =IF(Z27="応札",IF($AA27="未約定",IF(OR($G27=List!$F$2:$F$3), $O27*$S27, $M27*$S27),IF($AA27="一部約定",IF(OR($G27=List!$F$2:$F$3), $O27*($S27-$T27), $M27*($S27-$T27)),"")),"") ->  | AD27: 0
U28: 0 | V28: 0 | X28: =IF(ISNUMBER(B28), IF(COUNTIF($B$10:$B28, B28)=COUNTIF($B:$B, B28), "1", "0"), "") ->  | Y28: =IF(OR($C28=List!$C$5,$C28=List!$C$6,$C28=List!$C$11,$C28=List!$C$13), 1, 0) -> 0 | Z28: =_xlfn.IFS(S28="","未応札",S28>0,"応札") -> 未応札 | AA28: =_xlfn.IFS(T28=0,"未約定",T28=S28,"約定",T28<S28,"一部約定") -> 未約定 | AC28: =IF(Z28="応札",IF($AA28="未約定",IF(OR($G28=List!$F$2:$F$3), $O28*$S28, $M28*$S28),IF($AA28="一部約定",IF(OR($G28=List!$F$2:$F$3), $O28*($S28-$T28), $M28*($S28-$T28)),"")),"") ->  | AD28: 0
U29: 0 | V29: 0 | X29: =IF(ISNUMBER(B29), IF(COUNTIF($B$10:$B29, B29)=COUNTIF($B:$B, B29), "1", "0"), "") ->  | Y29: =IF(OR($C29=List!$C$5,$C29=List!$C$6,$C29=List!$C$11,$C29=List!$C$13), 1, 0) -> 0 | Z29: =_xlfn.IFS(S29="","未応札",S29>0,"応札") -> 未応札 | AA29: =_xlfn.IFS(T29=0,"未約定",T29=S29,"約定",T29<S29,"一部約定") -> 未約定 | AC29: =IF(Z29="応札",IF($AA29="未約定",IF(OR($G29=List!$F$2:$F$3), $O29*$S29, $M29*$S29),IF($AA29="一部約定",IF(OR($G29=List!$F$2:$F$3), $O29*($S29-$T29), $M29*($S29-$T29)),"")),"") ->  | AD29: 0
U30: 0 | V30: 0 | X30: =IF(ISNUMBER(B30), IF(COUNTIF($B$10:$B30, B30)=COUNTIF($B:$B, B30), "1", "0"), "") ->  | Y30: =IF(OR($C30=List!$C$5,$C30=List!$C$6,$C30=List!$C$11,$C30=List!$C$13), 1, 0) -> 0 | Z30: =_xlfn.IFS(S30="","未応札",S30>0,"応札") -> 未応札 | AA30: =_xlfn.IFS(T30=0,"未約定",T30=S30,"約定",T30<S30,"一部約定") -> 未約定 | AC30: =IF(Z30="応札",IF($AA30="未約定",IF(OR($G30=List!$F$2:$F$3), $O30*$S30, $M30*$S30),IF($AA30="一部約定",IF(OR($G30=List!$F$2:$F$3), $O30*($S30-$T30), $M30*($S30-$T30)),"")),"") ->  | AD30: 0
U31: 0 | V31: 0 | X31: =IF(ISNUMBER(B31), IF(COUNTIF($B$10:$B31, B31)=COUNTIF($B:$B, B31), "1", "0"), "") ->  | Y31: =IF(OR($C31=List!$C$5,$C31=List!$C$6,$C31=List!$C$11,$C31=List!$C$13), 1, 0) -> 0 | Z31: =_xlfn.IFS(S31="","未応札",S31>0,"応札") -> 未応札 | AA31: =_xlfn.IFS(T31=0,"未約定",T31=S31,"約定",T31<S31,"一部約定") -> 未約定 | AC31: =IF(Z31="応札",IF($AA31="未約定",IF(OR($G31=List!$F$2:$F$3), $O31*$S31, $M31*$S31),IF($AA31="一部約定",IF(OR($G31=List!$F$2:$F$3), $O31*($S31-$T31), $M31*($S31-$T31)),"")),"") ->  | AD31: 0
U32: 0 | V32: 0 | X32: =IF(ISNUMBER(B32), IF(COUNTIF($B$10:$B32, B32)=COUNTIF($B:$B, B32), "1", "0"), "") ->  | Y32: =IF(OR($C32=List!$C$5,$C32=List!$C$6,$C32=List!$C$11,$C32=List!$C$13), 1, 0) -> 0 | Z32: =_xlfn.IFS(S32="","未応札",S32>0,"応札") -> 未応札 | AA32: =_xlfn.IFS(T32=0,"未約定",T32=S32,"約定",T32<S32,"一部約定") -> 未約定 | AC32: =IF(Z32="応札",IF($AA32="未約定",IF(OR($G32=List!$F$2:$F$3), $O32*$S32, $M32*$S32),IF($AA32="一部約定",IF(OR($G32=List!$F$2:$F$3), $O32*($S32-$T32), $M32*($S32-$T32)),"")),"") ->  | AD32: 0
U33: 0 | V33: 0 | X33: =IF(ISNUMBER(B33), IF(COUNTIF($B$10:$B33, B33)=COUNTIF($B:$B, B33), "1", "0"), "") ->  | Y33: =IF(OR($C33=List!$C$5,$C33=List!$C$6,$C33=List!$C$11,$C33=List!$C$13), 1, 0) -> 0 | Z33: =_xlfn.IFS(S33="","未応札",S33>0,"応札") -> 未応札 | AA33: =_xlfn.IFS(T33=0,"未約定",T33=S33,"約定",T33<S33,"一部約定") -> 未約定 | AC33: =IF(Z33="応札",IF($AA33="未約定",IF(OR($G33=List!$F$2:$F$3), $O33*$S33, $M33*$S33),IF($AA33="一部約定",IF(OR($G33=List!$F$2:$F$3), $O33*($S33-$T33), $M33*($S33-$T33)),"")),"") ->  | AD33: 0
U34: 0 | V34: 0 | X34: =IF(ISNUMBER(B34), IF(COUNTIF($B$10:$B34, B34)=COUNTIF($B:$B, B34), "1", "0"), "") ->  | Y34: =IF(OR($C34=List!$C$5,$C34=List!$C$6,$C34=List!$C$11,$C34=List!$C$13), 1, 0) -> 0 | Z34: =_xlfn.IFS(S34="","未応札",S34>0,"応札") -> 未応札 | AA34: =_xlfn.IFS(T34=0,"未約定",T34=S34,"約定",T34<S34,"一部約定") -> 未約定 | AC34: =IF(Z34="応札",IF($AA34="未約定",IF(OR($G34=List!$F$2:$F$3), $O34*$S34, $M34*$S34),IF($AA34="一部約定",IF(OR($G34=List!$F$2:$F$3), $O34*($S34-$T34), $M34*($S34-$T34)),"")),"") ->  | AD34: 0
U35: 0 | V35: 0 | X35: =IF(ISNUMBER(B35), IF(COUNTIF($B$10:$B35, B35)=COUNTIF($B:$B, B35), "1", "0"), "") ->  | Y35: =IF(OR($C35=List!$C$5,$C35=List!$C$6,$C35=List!$C$11,$C35=List!$C$13), 1, 0) -> 0 | Z35: =_xlfn.IFS(S35="","未応札",S35>0,"応札") -> 未応札 | AA35: =_xlfn.IFS(T35=0,"未約定",T35=S35,"約定",T35<S35,"一部約定") -> 未約定 | AC35: =IF(Z35="応札",IF($AA35="未約定",IF(OR($G35=List!$F$2:$F$3), $O35*$S35, $M35*$S35),IF($AA35="一部約定",IF(OR($G35=List!$F$2:$F$3), $O35*($S35-$T35), $M35*($S35-$T35)),"")),"") ->  | AD35: 0
U36: 0 | V36: 0 | X36: =IF(ISNUMBER(B36), IF(COUNTIF($B$10:$B36, B36)=COUNTIF($B:$B, B36), "1", "0"), "") ->  | Y36: =IF(OR($C36=List!$C$5,$C36=List!$C$6,$C36=List!$C$11,$C36=List!$C$13), 1, 0) -> 0 | Z36: =_xlfn.IFS(S36="","未応札",S36>0,"応札") -> 未応札 | AA36: =_xlfn.IFS(T36=0,"未約定",T36=S36,"約定",T36<S36,"一部約定") -> 未約定 | AC36: =IF(Z36="応札",IF($AA36="未約定",IF(OR($G36=List!$F$2:$F$3), $O36*$S36, $M36*$S36),IF($AA36="一部約定",IF(OR($G36=List!$F$2:$F$3), $O36*($S36-$T36), $M36*($S36-$T36)),"")),"") ->  | AD36: 0
U37: 0 | V37: 0 | X37: =IF(ISNUMBER(B37), IF(COUNTIF($B$10:$B37, B37)=COUNTIF($B:$B, B37), "1", "0"), "") ->  | Y37: =IF(OR($C37=List!$C$5,$C37=List!$C$6,$C37=List!$C$11,$C37=List!$C$13), 1, 0) -> 0 | Z37: =_xlfn.IFS(S37="","未応札",S37>0,"応札") -> 未応札 | AA37: =_xlfn.IFS(T37=0,"未約定",T37=S37,"約定",T37<S37,"一部約定") -> 未約定 | AC37: =IF(Z37="応札",IF($AA37="未約定",IF(OR($G37=List!$F$2:$F$3), $O37*$S37, $M37*$S37),IF($AA37="一部約定",IF(OR($G37=List!$F$2:$F$3), $O37*($S37-$T37), $M37*($S37-$T37)),"")),"") ->  | AD37: 0
U38: 0 | V38: 0 | X38: =IF(ISNUMBER(B38), IF(COUNTIF($B$10:$B38, B38)=COUNTIF($B:$B, B38), "1", "0"), "") ->  | Y38: =IF(OR($C38=List!$C$5,$C38=List!$C$6,$C38=List!$C$11,$C38=List!$C$13), 1, 0) -> 0 | Z38: =_xlfn.IFS(S38="","未応札",S38>0,"応札") -> 未応札 | AA38: =_xlfn.IFS(T38=0,"未約定",T38=S38,"約定",T38<S38,"一部約定") -> 未約定 | AC38: =IF(Z38="応札",IF($AA38="未約定",IF(OR($G38=List!$F$2:$F$3), $O38*$S38, $M38*$S38),IF($AA38="一部約定",IF(OR($G38=List!$F$2:$F$3), $O38*($S38-$T38), $M38*($S38-$T38)),"")),"") ->  | AD38: 0

Sheet 記載例_精算パターン③一部不落
B2: 取引年月 | C2: 202504
B3: MMSコード | C3: A000
B4: 対象エリア | C4: 3：東京
B5: ファイル名称 | C5: =$C$2&"_"&$C$3&"_"&LEFT($C$4,1)&"_不約定単価内訳兼起動費事後精算情報様式" -> 202504_A000_3_不約定単価内訳兼起動費事後精算情報様式
B7: =入力シート!B7 -> 事象NO | C7: =入力シート!C7 -> 精算パターン | D7: =入力シート!D7 -> 余力活用契約対象リソース区分 | E7: =入力シート!E7 -> 取引日 | F7: =入力シート!F7 -> 時刻コード | G7: =入力シート!G7 -> 持ち下げ供出機区分 | H7: =入力シート!H7 -> 系統コード | I7: =入力シート!I7 -> 商品区分 | J7: =入力シート!J7 -> 売り入札ID | K7: =入力シート!K7 -> 約定番号 | L7: =入力シート!L7 -> 約定識別ID | M7: =入力シート!M7 -> MMS起動費単価 | N7: =入力シート!N7 -> 加重平均前のΔkW単価 | O7: =入力シート!O7 -> 加重平均起動費未回収分相当額 | P7: =入力シート!P7 -> 最低出力までの発電電力量の機会費用単価 | Q7: =入力シート!Q7 -> 発電計画 | R7: =入力シート!R7 -> 最低出力 | S7: =入力シート!S7 -> 約定希望ΔkW | T7: =入力シート!T7 -> ΔkW約定量 | U7: =入力シート!U7 -> 最低出力までの発電電力量の機会費用単価×(約定希望ΔkW-ΔkW約定量) | V7: =入力シート!V7 -> 最低出力維持した場合の費用合計 | W7: =入力シート!W7 -> 停止・再起動にかかる費用 | X7: =入力シート!X7 -> 事象毎の最終行 | Y7: =入力シート!Y7 -> 妥当性確認 | Z7: =入力シート!Z7 -> 応札状況 | AA7: =入力シート!AA7 -> 約定状況 | AB7: =入力シート!AB7 -> 並解列状態(実績) | AC7: =入力シート!AC7 -> 起動費未回収分相当額 | AD7: =入力シート!AD7 -> 最低出力までの発電電力量の機会費用 | AE7: =入力シート!AE7 -> 停止・再起動にかかる費用 | AH7: =入力シート!AH7 -> 精算対象 申請小計 | AI7: =入力シート!AI7 -> 起動費未回収分相当額 | AJ7: =入力シート!AJ7 -> 最低出力までの発電電力量の機会費用 | AK7: =入力シート!AK7 -> 停止・再起動にかかる費用 | AL7: =入力シート!AL7 -> 合計
M8: （円/kW） | N8: （円/kW） | O8: （円/kW） | P8: （円/kW） | Q8: （kWh） | R8: （kWh） | S8: （kW） | T8: （kW） | U8: （円） | V8: （円） | W8: （円） | AC8: （円） | AD8: （円） | AE8: （円） | AI8: （円） | AJ8: （円） | AK8: （円） | AL8: （円）
B9: =IF(入力シート!B9<>"",入力シート!B9,"") -> ※起動費未回収が発生した事象ごとにNOを付定すること。 | C9: =IF(入力シート!C9<>"",入力シート!C9,"") ->  | D9: =IF(入力シート!D9<>"",入力シート!D9,"") -> ※対象の場合は「１」，非対象の場合は「０」を入力 | E9: =IF(入力シート!E9<>"",入力シート!E9,"") ->  | F9: =IF(入力シート!F9<>"",入力シート!F9,"") ->  | G9: =IF(入力シート!G9<>"",入力シート!G9,"") -> ※持ち下げ供出機を加重平均で入札した場合に選択 | H9: =IF(入力シート!H9<>"",入力シート!H9,"") ->  | I9: =IF(入力シート!I9<>"",入力シート!I9,"") ->  | J9: =IF(入力シート!J9<>"",入力シート!J9,"") ->  | K9: =IF(入力シート!K9<>"",入力シート!K9,"") -> ※１持ち下げ供出機区分が該当する場合，起動供出機の約定番号を記載すること ※２同一時刻コードにおいて，複数の約定番号がある場合は，いずれか1つを記載すること。 | L9: =IF(入力シート!L9<>"",入力シート!L9,"") -> ※1持ち下げ供出機区分に該当する場合，起動供出機の約定識別IDを記載すること ※2同一時刻コードにおいて，約定番号に紐づく約定識別IDが複数存在する場合は，いずれか1つを記載すること ※3電源差し替えを実施した場合，差替え元の約定識別IDを記載すること(持ち下げ供出機区分に該当する場合,起動供出機の初回約定識別IDを記載すること) | M9: =IF(入力シート!M9<>"",入力シート!M9,"") -> ※MMSに登録された起動費単価分を原則用いること | N9: =IF(入力シート!N9<>"",入力シート!N9,"") -> ※持ち下げ供出機区分が該当する場合に記載すること | O9: =IF(入力シート!O9<>"",入力シート!O9,"") -> ※ 持ち下げ供出機区分が該当する場合に記載すること | P9: =IF(入力シート!P9<>"",入力シート!P9,"") -> ※１卸電力市場価格（スポット市場価格：実績）と限界費用との差額を用いること ※２加重平均で入札した場合は，最低出力までの発電電力量の加重平均機会費用相当額を記載すること ※３加重平均で入札し，持ち下げ供出機の情報を記載する場合は，持ち下げ供出機のΔkW単価に含めた起動供出機の最低出力までの発電電力量の加重平均機会費用相当額を記載すること。ただし，精算パターンが「持ち下げ・起動供出機:全量不落」の場合は持ち下げ供出機のみが不落となったときに記載すること。 | Q9: =IF(入力シート!Q9<>"",入力シート!Q9,"") ->  | R9: =IF(入力シート!R9<>"",入力シート!R9,"") ->  | S9: =IF(入力シート!S9<>"",入力シート!S9,"") ->  | T9: =IF(入力シート!T9<>"",入力シート!T9,"") ->  | U9: =IF(入力シート!U9<>"",入力シート!U9,"") -> ※加重平均で入札した場合は，最低出力までの発電電力量の加重平均機会費用相当額×(約定希望ΔkW-ΔkW約定量) | V9: =IF(入力シート!V9<>"",入力シート!V9,"") -> ※精算パターン「約定間全量不落(約定間停止・再起動)」を選択した場合，事象NOごとの最終行に合計値表示 | W9: =IF(入力シート!W9<>"",入力シート!W9,"") -> ※１停止・再起動費は最後のブロックに記載すること ※２ 余力活用契約を締結している電源でBG計画上停止・再起動としていたが、実績は停止しなかった場合も、BG計画上の「停止・再起動費」を記載すること | X9: =IF(入力シート!X9<>"",入力シート!X9,"") ->  | Y9: =IF(入力シート!Y9<>"",入力シート!Y9,"") ->  | Z9: =IF(入力シート!Z9<>"",入力シート!Z9,"") ->  | AA9: =IF(入力シート!AA9<>"",入力シート!AA9,"") ->  | AB9: =IF(入力シート!AB9<>"",入力シート!AB9,"") ->  | AC9: =IF(入力シート!AC9<>"",入力シート!AC9,"") -> ※加重平均で入札した場合は，加重平均起動費未回収分相当額 | AD9: =IF(入力シート!AD9<>"",入力シート!AD9,"") -> ※加重平均で入札した場合は，最低出力までの発電電力量の加重平均機会費用相当額 | AE9: =IF(入力シート!AE9<>"",入力シート!AE9,"") -> ※約定間全量不落時において，停止・再起動するよりも，最低出力維持した方が経済的だった場合，後者を事後精算対象とする。 | AI9: =SUM($AC10:$AC2831) -> 756900 | AJ9: =SUM($AD10:$AD2831) -> 37500 | AK9: =SUM($AE10:$AE2831) -> 0 | AL9: =ROUNDDOWN(SUM(AI9:AK9),0) -> 794400
B10: 1 | C10: 3：一部不落 | D10: 0：非対象 | E10: 20250401 | F10: 2 | H10: ○C○○○ | I10: 2：三次調整力② | J10: ○○○○○○ | K10: 2025040131DDD○○○○○○ | L10: ○○○○○○ | M10: 25.23 | P10: 1.25 | Q10: 10000 | R10: 10000 | S10: 40000 | T10: 25000 | U10: =P10*(S10-T10) -> 18750 | V10: =IF(W10 > 0, SUMIFS(U:U, B:B, B10, Y:Y, 1), 0) -> 0 | X10: =IF(ISNUMBER(B10), IF(COUNTIF($B$10:$B10, B10)=COUNTIF($B:$B, B10), "1", "0"), "") -> 0 | Y10: =IF(OR($C10=List!$C$5,$C10=List!$C$6,$C10=List!$C$11,$C10=List!$C$13), 1, 0) -> 0 | Z10: =_xlfn.IFS(S10="","未応札",S10>0,"応札") -> 応札 | AA10: =_xlfn.IFS(T10=0,"未約定",T10=S10,"約定",T10<S10,"一部約定") -> 一部約定 | AB10: 1：並列 | AC10: =IF(Z10="応札",IF($AA10="未約定",IF(OR($G10=List!$F$2:$F$3), $O10*$S10, $M10*$S10),IF($AA10="一部約定",IF(OR($G10=List!$F$2:$F$3), $O10*($S10-$T10), $M10*($S10-$T10)),"")),"") -> 378450 | AD10: =IF(ISBLANK($Q10),IF(OR($AA10="一部約定",$AA10="未約定"),$P10*($S10-$T10),""),IF($Q10=0,"", IF(OR($AA10="一部約定", $AA10="未約定"), $P10*($S10-$T10), ""))) -> 18750 | AE10: =IF(AND($Z10="応札",$AA10="未約定"), IF($V10<>0, IF($W10<$V10, IF($W10<>0, $W10, ""), IF($V10<>0, $V10, "")), IF($W10<>0, $W10, "")), "") -> 
B11: 1 | C11: 3：一部不落 | D11: 0：非対象 | E11: 20250401 | F11: 5 | H11: ○C○○○ | I11: 2：三次調整力② | J11: ○○○○○○ | K11: 2025040131EEE○○○○○○ | L11: ○○○○○○ | M11: 25.23 | P11: 1.25 | Q11: 10000 | R11: 10000 | S11: 40000 | T11: 25000 | U11: =P11*(S11-T11) -> 18750 | V11: =IF(W11 > 0, SUMIFS(U:U, B:B, B11, Y:Y, 1), 0) -> 0 | X11: =IF(ISNUMBER(B11), IF(COUNTIF($B$10:$B11, B11)=COUNTIF($B:$B, B11), "1", "0"), "") -> 1 | Y11: =IF(OR($C11=List!$C$5,$C11=List!$C$6,$C11=List!$C$11,$C11=List!$C$13), 1, 0) -> 0 | Z11: =_xlfn.IFS(S11="","未応札",S11>0,"応札") -> 応札 | AA11: =_xlfn.IFS(T11=0,"未約定",T11=S11,"約定",T11<S11,"一部約定") -> 一部約定 | AB11: 1：並列 | AC11: =IF(Z11="応札",IF($AA11="未約定",IF(OR($G11=List!$F$2:$F$3), $O11*$S11, $M11*$S11),IF($AA11="一部約定",IF(OR($G11=List!$F$2:$F$3), $O11*($S11-$T11), $M11*($S11-$T11)),"")),"") -> 378450 | AD11: =IF(ISBLANK($Q11),IF(OR($AA11="一部約定",$AA11="未約定"),$P11*($S11-$T11),""),IF($Q11=0,"", IF(OR($AA11="一部約定", $AA11="未約定"), $P11*($S11-$T11), ""))) -> 18750 | AE11: =IF(AND($Z11="応札",$AA11="未約定"), IF($V11<>0, IF($W11<$V11, IF($W11<>0, $W11, ""), IF($V11<>0, $V11, "")), IF($W11<>0, $W11, "")), "") -> 
U12: 0 | V12: 0 | X12: =IF(ISNUMBER(B12), IF(COUNTIF($B$10:$B12, B12)=COUNTIF($B:$B, B12), "1", "0"), "") ->  | Y12: =IF(OR($C12=List!$C$5,$C12=List!$C$6,$C12=List!$C$11,$C12=List!$C$13), 1, 0) -> 0 | Z12: =_xlfn.IFS(S12="","未応札",S12>0,"応札") -> 未応札 | AA12: =_xlfn.IFS(T12=0,"未約定",T12=S12,"約定",T12<S12,"一部約定") -> 未約定 | AC12: =IF(Z12="応札",IF($AA12="未約定",IF(OR($G12=List!$F$2:$F$3), $O12*$S12, $M12*$S12),IF($AA12="一部約定",IF(OR($G12=List!$F$2:$F$3), $O12*($S12-$T12), $M12*($S12-$T12)),"")),"") ->  | AD12: 0
U13: 0 | V13: 0 | X13: =IF(ISNUMBER(B13), IF(COUNTIF($B$10:$B13, B13)=COUNTIF($B:$B, B13), "1", "0"), "") ->  | Y13: =IF(OR($C13=List!$C$5,$C13=List!$C$6,$C13=List!$C$11,$C13=List!$C$13), 1, 0) -> 0 | Z13: =_xlfn.IFS(S13="","未応札",S13>0,"応札") -> 未応札 | AA13: =_xlfn.IFS(T13=0,"未約定",T13=S13,"約定",T13<S13,"一部約定") -> 未約定 | AC13: =IF(Z13="応札",IF($AA13="未約定",IF(OR($G13=List!$F$2:$F$3), $O13*$S13, $M13*$S13),IF($AA13="一部約定",IF(OR($G13=List!$F$2:$F$3), $O13*($S13-$T13), $M13*($S13-$T13)),"")),"") ->  | AD13: 0
U14: 0 | V14: 0 | X14: =IF(ISNUMBER(B14), IF(COUNTIF($B$10:$B14, B14)=COUNTIF($B:$B, B14), "1", "0"), "") ->  | Y14: =IF(OR($C14=List!$C$5,$C14=List!$C$6,$C14=List!$C$11,$C14=List!$C$13), 1, 0) -> 0 | Z14: =_xlfn.IFS(S14="","未応札",S14>0,"応札") -> 未応札 | AA14: =_xlfn.IFS(T14=0,"未約定",T14=S14,"約定",T14<S14,"一部約定") -> 未約定 | AC14: =IF(Z14="応札",IF($AA14="未約定",IF(OR($G14=List!$F$2:$F$3), $O14*$S14, $M14*$S14),IF($AA14="一部約定",IF(OR($G14=List!$F$2:$F$3), $O14*($S14-$T14), $M14*($S14-$T14)),"")),"") ->  | AD14: 0
U15: 0 | V15: 0 | X15: =IF(ISNUMBER(B15), IF(COUNTIF($B$10:$B15, B15)=COUNTIF($B:$B, B15), "1", "0"), "") ->  | Y15: =IF(OR($C15=List!$C$5,$C15=List!$C$6,$C15=List!$C$11,$C15=List!$C$13), 1, 0) -> 0 | Z15: =_xlfn.IFS(S15="","未応札",S15>0,"応札") -> 未応札 | AA15: =_xlfn.IFS(T15=0,"未約定",T15=S15,"約定",T15<S15,"一部約定") -> 未約定 | AC15: =IF(Z15="応札",IF($AA15="未約定",IF(OR($G15=List!$F$2:$F$3), $O15*$S15, $M15*$S15),IF($AA15="一部約定",IF(OR($G15=List!$F$2:$F$3), $O15*($S15-$T15), $M15*($S15-$T15)),"")),"") ->  | AD15: 0
U16: 0 | V16: 0 | X16: =IF(ISNUMBER(B16), IF(COUNTIF($B$10:$B16, B16)=COUNTIF($B:$B, B16), "1", "0"), "") ->  | Y16: =IF(OR($C16=List!$C$5,$C16=List!$C$6,$C16=List!$C$11,$C16=List!$C$13), 1, 0) -> 0 | Z16: =_xlfn.IFS(S16="","未応札",S16>0,"応札") -> 未応札 | AA16: =_xlfn.IFS(T16=0,"未約定",T16=S16,"約定",T16<S16,"一部約定") -> 未約定 | AC16: =IF(Z16="応札",IF($AA16="未約定",IF(OR($G16=List!$F$2:$F$3), $O16*$S16, $M16*$S16),IF($AA16="一部約定",IF(OR($G16=List!$F$2:$F$3), $O16*($S16-$T16), $M16*($S16-$T16)),"")),"") ->  | AD16: 0
U17: 0 | V17: 0 | X17: =IF(ISNUMBER(B17), IF(COUNTIF($B$10:$B17, B17)=COUNTIF($B:$B, B17), "1", "0"), "") ->  | Y17: =IF(OR($C17=List!$C$5,$C17=List!$C$6,$C17=List!$C$11,$C17=List!$C$13), 1, 0) -> 0 | Z17: =_xlfn.IFS(S17="","未応札",S17>0,"応札") -> 未応札 | AA17: =_xlfn.IFS(T17=0,"未約定",T17=S17,"約定",T17<S17,"一部約定") -> 未約定 | AC17: =IF(Z17="応札",IF($AA17="未約定",IF(OR($G17=List!$F$2:$F$3), $O17*$S17, $M17*$S17),IF($AA17="一部約定",IF(OR($G17=List!$F$2:$F$3), $O17*($S17-$T17), $M17*($S17-$T17)),"")),"") ->  | AD17: 0
U18: 0 | V18: 0 | X18: =IF(ISNUMBER(B18), IF(COUNTIF($B$10:$B18, B18)=COUNTIF($B:$B, B18), "1", "0"), "") ->  | Y18: =IF(OR($C18=List!$C$5,$C18=List!$C$6,$C18=List!$C$11,$C18=List!$C$13), 1, 0) -> 0 | Z18: =_xlfn.IFS(S18="","未応札",S18>0,"応札") -> 未応札 | AA18: =_xlfn.IFS(T18=0,"未約定",T18=S18,"約定",T18<S18,"一部約定") -> 未約定 | AC18: =IF(Z18="応札",IF($AA18="未約定",IF(OR($G18=List!$F$2:$F$3), $O18*$S18, $M18*$S18),IF($AA18="一部約定",IF(OR($G18=List!$F$2:$F$3), $O18*($S18-$T18), $M18*($S18-$T18)),"")),"") ->  | AD18: 0
U19: 0 | V19: 0 | X19: =IF(ISNUMBER(B19), IF(COUNTIF($B$10:$B19, B19)=COUNTIF($B:$B, B19), "1", "0"), "") ->  | Y19: =IF(OR($C19=List!$C$5,$C19=List!$C$6,$C19=List!$C$11,$C19=List!$C$13), 1, 0) -> 0 | Z19: =_xlfn.IFS(S19="","未応札",S19>0,"応札") -> 未応札 | AA19: =_xlfn.IFS(T19=0,"未約定",T19=S19,"約定",T19<S19,"一部約定") -> 未約定 | AC19: =IF(Z19="応札",IF($AA19="未約定",IF(OR($G19=List!$F$2:$F$3), $O19*$S19, $M19*$S19),IF($AA19="一部約定",IF(OR($G19=List!$F$2:$F$3), $O19*($S19-$T19), $M19*($S19-$T19)),"")),"") ->  | AD19: 0
U20: 0 | V20: 0 | X20: =IF(ISNUMBER(B20), IF(COUNTIF($B$10:$B20, B20)=COUNTIF($B:$B, B20), "1", "0"), "") ->  | Y20: =IF(OR($C20=List!$C$5,$C20=List!$C$6,$C20=List!$C$11,$C20=List!$C$13), 1, 0) -> 0 | Z20: =_xlfn.IFS(S20="","未応札",S20>0,"応札") -> 未応札 | AA20: =_xlfn.IFS(T20=0,"未約定",T20=S20,"約定",T20<S20,"一部約定") -> 未約定 | AC20: =IF(Z20="応札",IF($AA20="未約定",IF(OR($G20=List!$F$2:$F$3), $O20*$S20, $M20*$S20),IF($AA20="一部約定",IF(OR($G20=List!$F$2:$F$3), $O20*($S20-$T20), $M20*($S20-$T20)),"")),"") ->  | AD20: 0
U21: 0 | V21: 0 | X21: =IF(ISNUMBER(B21), IF(COUNTIF($B$10:$B21, B21)=COUNTIF($B:$B, B21), "1", "0"), "") ->  | Y21: =IF(OR($C21=List!$C$5,$C21=List!$C$6,$C21=List!$C$11,$C21=List!$C$13), 1, 0) -> 0 | Z21: =_xlfn.IFS(S21="","未応札",S21>0,"応札") -> 未応札 | AA21: =_xlfn.IFS(T21=0,"未約定",T21=S21,"約定",T21<S21,"一部約定") -> 未約定 | AC21: =IF(Z21="応札",IF($AA21="未約定",IF(OR($G21=List!$F$2:$F$3), $O21*$S21, $M21*$S21),IF($AA21="一部約定",IF(OR($G21=List!$F$2:$F$3), $O21*($S21-$T21), $M21*($S21-$T21)),"")),"") ->  | AD21: 0
U22: 0 | V22: 0 | X22: =IF(ISNUMBER(B22), IF(COUNTIF($B$10:$B22, B22)=COUNTIF($B:$B, B22), "1", "0"), "") ->  | Y22: =IF(OR($C22=List!$C$5,$C22=List!$C$6,$C22=List!$C$11,$C22=List!$C$13), 1, 0) -> 0 | Z22: =_xlfn.IFS(S22="","未応札",S22>0,"応札") -> 未応札 | AA22: =_xlfn.IFS(T22=0,"未約定",T22=S22,"約定",T22<S22,"一部約定") -> 未約定 | AC22: =IF(Z22="応札",IF($AA22="未約定",IF(OR($G22=List!$F$2:$F$3), $O22*$S22, $M22*$S22),IF($AA22="一部約定",IF(OR($G22=List!$F$2:$F$3), $O22*($S22-$T22), $M22*($S22-$T22)),"")),"") ->  | AD22: 0
U23: 0 | V23: 0 | X23: =IF(ISNUMBER(B23), IF(COUNTIF($B$10:$B23, B23)=COUNTIF($B:$B, B23), "1", "0"), "") ->  | Y23: =IF(OR($C23=List!$C$5,$C23=List!$C$6,$C23=List!$C$11,$C23=List!$C$13), 1, 0) -> 0 | Z23: =_xlfn.IFS(S23="","未応札",S23>0,"応札") -> 未応札 | AA23: =_xlfn.IFS(T23=0,"未約定",T23=S23,"約定",T23<S23,"一部約定") -> 未約定 | AC23: =IF(Z23="応札",IF($AA23="未約定",IF(OR($G23=List!$F$2:$F$3), $O23*$S23, $M23*$S23),IF($AA23="一部約定",IF(OR($G23=List!$F$2:$F$3), $O23*($S23-$T23), $M23*($S23-$T23)),"")),"") ->  | AD23: 0
U24: 0 | V24: 0 | X24: =IF(ISNUMBER(B24), IF(COUNTIF($B$10:$B24, B24)=COUNTIF($B:$B, B24), "1", "0"), "") ->  | Y24: =IF(OR($C24=List!$C$5,$C24=List!$C$6,$C24=List!$C$11,$C24=List!$C$13), 1, 0) -> 0 | Z24: =_xlfn.IFS(S24="","未応札",S24>0,"応札") -> 未応札 | AA24: =_xlfn.IFS(T24=0,"未約定",T24=S24,"約定",T24<S24,"一部約定") -> 未約定 | AC24: =IF(Z24="応札",IF($AA24="未約定",IF(OR($G24=List!$F$2:$F$3), $O24*$S24, $M24*$S24),IF($AA24="一部約定",IF(OR($G24=List!$F$2:$F$3), $O24*($S24-$T24), $M24*($S24-$T24)),"")),"") ->  | AD24: 0
U25: 0 | V25: 0 | X25: =IF(ISNUMBER(B25), IF(COUNTIF($B$10:$B25, B25)=COUNTIF($B:$B, B25), "1", "0"), "") ->  | Y25: =IF(OR($C25=List!$C$5,$C25=List!$C$6,$C25=List!$C$11,$C25=List!$C$13), 1, 0) -> 0 | Z25: =_xlfn.IFS(S25="","未応札",S25>0,"応札") -> 未応札 | AA25: =_xlfn.IFS(T25=0,"未約定",T25=S25,"約定",T25<S25,"一部約定") -> 未約定 | AC25: =IF(Z25="応札",IF($AA25="未約定",IF(OR($G25=List!$F$2:$F$3), $O25*$S25, $M25*$S25),IF($AA25="一部約定",IF(OR($G25=List!$F$2:$F$3), $O25*($S25-$T25), $M25*($S25-$T25)),"")),"") ->  | AD25: 0
U26: 0 | V26: 0 | X26: =IF(ISNUMBER(B26), IF(COUNTIF($B$10:$B26, B26)=COUNTIF($B:$B, B26), "1", "0"), "") ->  | Y26: =IF(OR($C26=List!$C$5,$C26=List!$C$6,$C26=List!$C$11,$C26=List!$C$13), 1, 0) -> 0 | Z26: =_xlfn.IFS(S26="","未応札",S26>0,"応札") -> 未応札 | AA26: =_xlfn.IFS(T26=0,"未約定",T26=S26,"約定",T26<S26,"一部約定") -> 未約定 | AC26: =IF(Z26="応札",IF($AA26="未約定",IF(OR($G26=List!$F$2:$F$3), $O26*$S26, $M26*$S26),IF($AA26="一部約定",IF(OR($G26=List!$F$2:$F$3), $O26*($S26-$T26), $M26*($S26-$T26)),"")),"") ->  | AD26: 0
U27: 0 | V27: 0 | X27: =IF(ISNUMBER(B27), IF(COUNTIF($B$10:$B27, B27)=COUNTIF($B:$B, B27), "1", "0"), "") ->  | Y27: =IF(OR($C27=List!$C$5,$C27=List!$C$6,$C27=List!$C$11,$C27=List!$C$13), 1, 0) -> 0 | Z27: =_xlfn.IFS(S27="","未応札",S27>0,"応札") -> 未応札 | AA27: =_xlfn.IFS(T27=0,"未約定",T27=S27,"約定",T27<S27,"一部約定") -> 未約定 | AC27: =IF(Z27="応札",IF($AA27="未約定",IF(OR($G27=List!$F$2:$F$3), $O27*$S27, $M27*$S27),IF($AA27="一部約定",IF(OR($G27=List!$F$2:$F$3), $O27*($S27-$T27), $M27*($S27-$T27)),"")),"") ->  | AD27: 0
U28: 0 | V28: 0 | X28: =IF(ISNUMBER(B28), IF(COUNTIF($B$10:$B28, B28)=COUNTIF($B:$B, B28), "1", "0"), "") ->  | Y28: =IF(OR($C28=List!$C$5,$C28=List!$C$6,$C28=List!$C$11,$C28=List!$C$13), 1, 0) -> 0 | Z28: =_xlfn.IFS(S28="","未応札",S28>0,"応札") -> 未応札 | AA28: =_xlfn.IFS(T28=0,"未約定",T28=S28,"約定",T28<S28,"一部約定") -> 未約定 | AC28: =IF(Z28="応札",IF($AA28="未約定",IF(OR($G28=List!$F$2:$F$3), $O28*$S28, $M28*$S28),IF($AA28="一部約定",IF(OR($G28=List!$F$2:$F$3), $O28*($S28-$T28), $M28*($S28-$T28)),"")),"") ->  | AD28: 0
U29: 0 | V29: 0 | X29: =IF(ISNUMBER(B29), IF(COUNTIF($B$10:$B29, B29)=COUNTIF($B:$B, B29), "1", "0"), "") ->  | Y29: =IF(OR($C29=List!$C$5,$C29=List!$C$6,$C29=List!$C$11,$C29=List!$C$13), 1, 0) -> 0 | Z29: =_xlfn.IFS(S29="","未応札",S29>0,"応札") -> 未応札 | AA29: =_xlfn.IFS(T29=0,"未約定",T29=S29,"約定",T29<S29,"一部約定") -> 未約定 | AC29: =IF(Z29="応札",IF($AA29="未約定",IF(OR($G29=List!$F$2:$F$3), $O29*$S29, $M29*$S29),IF($AA29="一部約定",IF(OR($G29=List!$F$2:$F$3), $O29*($S29-$T29), $M29*($S29-$T29)),"")),"") ->  | AD29: 0
U30: 0 | V30: 0 | X30: =IF(ISNUMBER(B30), IF(COUNTIF($B$10:$B30, B30)=COUNTIF($B:$B, B30), "1", "0"), "") ->  | Y30: =IF(OR($C30=List!$C$5,$C30=List!$C$6,$C30=List!$C$11,$C30=List!$C$13), 1, 0) -> 0 | Z30: =_xlfn.IFS(S30="","未応札",S30>0,"応札") -> 未応札 | AA30: =_xlfn.IFS(T30=0,"未約定",T30=S30,"約定",T30<S30,"一部約定") -> 未約定 | AC30: =IF(Z30="応札",IF($AA30="未約定",IF(OR($G30=List!$F$2:$F$3), $O30*$S30, $M30*$S30),IF($AA30="一部約定",IF(OR($G30=List!$F$2:$F$3), $O30*($S30-$T30), $M30*($S30-$T30)),"")),"") ->  | AD30: 0
U31: 0 | V31: 0 | X31: =IF(ISNUMBER(B31), IF(COUNTIF($B$10:$B31, B31)=COUNTIF($B:$B, B31), "1", "0"), "") ->  | Y31: =IF(OR($C31=List!$C$5,$C31=List!$C$6,$C31=List!$C$11,$C31=List!$C$13), 1, 0) -> 0 | Z31: =_xlfn.IFS(S31="","未応札",S31>0,"応札") -> 未応札 | AA31: =_xlfn.IFS(T31=0,"未約定",T31=S31,"約定",T31<S31,"一部約定") -> 未約定 | AC31: =IF(Z31="応札",IF($AA31="未約定",IF(OR($G31=List!$F$2:$F$3), $O31*$S31, $M31*$S31),IF($AA31="一部約定",IF(OR($G31=List!$F$2:$F$3), $O31*($S31-$T31), $M31*($S31-$T31)),"")),"") ->  | AD31: 0
U32: 0 | V32: 0 | X32: =IF(ISNUMBER(B32), IF(COUNTIF($B$10:$B32, B32)=COUNTIF($B:$B, B32), "1", "0"), "") ->  | Y32: =IF(OR($C32=List!$C$5,$C32=List!$C$6,$C32=List!$C$11,$C32=List!$C$13), 1, 0) -> 0 | Z32: =_xlfn.IFS(S32="","未応札",S32>0,"応札") -> 未応札 | AA32: =_xlfn.IFS(T32=0,"未約定",T32=S32,"約定",T32<S32,"一部約定") -> 未約定 | AC32: =IF(Z32="応札",IF($AA32="未約定",IF(OR($G32=List!$F$2:$F$3), $O32*$S32, $M32*$S32),IF($AA32="一部約定",IF(OR($G32=List!$F$2:$F$3), $O32*($S32-$T32), $M32*($S32-$T32)),"")),"") ->  | AD32: 0
U33: 0 | V33: 0 | X33: =IF(ISNUMBER(B33), IF(COUNTIF($B$10:$B33, B33)=COUNTIF($B:$B, B33), "1", "0"), "") ->  | Y33: =IF(OR($C33=List!$C$5,$C33=List!$C$6,$C33=List!$C$11,$C33=List!$C$13), 1, 0) -> 0 | Z33: =_xlfn.IFS(S33="","未応札",S33>0,"応札") -> 未応札 | AA33: =_xlfn.IFS(T33=0,"未約定",T33=S33,"約定",T33<S33,"一部約定") -> 未約定 | AC33: =IF(Z33="応札",IF($AA33="未約定",IF(OR($G33=List!$F$2:$F$3), $O33*$S33, $M33*$S33),IF($AA33="一部約定",IF(OR($G33=List!$F$2:$F$3), $O33*($S33-$T33), $M33*($S33-$T33)),"")),"") ->  | AD33: 0
U34: 0 | V34: 0 | X34: =IF(ISNUMBER(B34), IF(COUNTIF($B$10:$B34, B34)=COUNTIF($B:$B, B34), "1", "0"), "") ->  | Y34: =IF(OR($C34=List!$C$5,$C34=List!$C$6,$C34=List!$C$11,$C34=List!$C$13), 1, 0) -> 0 | Z34: =_xlfn.IFS(S34="","未応札",S34>0,"応札") -> 未応札 | AA34: =_xlfn.IFS(T34=0,"未約定",T34=S34,"約定",T34<S34,"一部約定") -> 未約定 | AC34: =IF(Z34="応札",IF($AA34="未約定",IF(OR($G34=List!$F$2:$F$3), $O34*$S34, $M34*$S34),IF($AA34="一部約定",IF(OR($G34=List!$F$2:$F$3), $O34*($S34-$T34), $M34*($S34-$T34)),"")),"") ->  | AD34: 0
U35: 0 | V35: 0 | X35: =IF(ISNUMBER(B35), IF(COUNTIF($B$10:$B35, B35)=COUNTIF($B:$B, B35), "1", "0"), "") ->  | Y35: =IF(OR($C35=List!$C$5,$C35=List!$C$6,$C35=List!$C$11,$C35=List!$C$13), 1, 0) -> 0 | Z35: =_xlfn.IFS(S35="","未応札",S35>0,"応札") -> 未応札 | AA35: =_xlfn.IFS(T35=0,"未約定",T35=S35,"約定",T35<S35,"一部約定") -> 未約定 | AC35: =IF(Z35="応札",IF($AA35="未約定",IF(OR($G35=List!$F$2:$F$3), $O35*$S35, $M35*$S35),IF($AA35="一部約定",IF(OR($G35=List!$F$2:$F$3), $O35*($S35-$T35), $M35*($S35-$T35)),"")),"") ->  | AD35: 0
U36: 0 | V36: 0 | X36: =IF(ISNUMBER(B36), IF(COUNTIF($B$10:$B36, B36)=COUNTIF($B:$B, B36), "1", "0"), "") ->  | Y36: =IF(OR($C36=List!$C$5,$C36=List!$C$6,$C36=List!$C$11,$C36=List!$C$13), 1, 0) -> 0 | Z36: =_xlfn.IFS(S36="","未応札",S36>0,"応札") -> 未応札 | AA36: =_xlfn.IFS(T36=0,"未約定",T36=S36,"約定",T36<S36,"一部約定") -> 未約定 | AC36: =IF(Z36="応札",IF($AA36="未約定",IF(OR($G36=List!$F$2:$F$3), $O36*$S36, $M36*$S36),IF($AA36="一部約定",IF(OR($G36=List!$F$2:$F$3), $O36*($S36-$T36), $M36*($S36-$T36)),"")),"") ->  | AD36: 0
U37: 0 | V37: 0 | X37: =IF(ISNUMBER(B37), IF(COUNTIF($B$10:$B37, B37)=COUNTIF($B:$B, B37), "1", "0"), "") ->  | Y37: =IF(OR($C37=List!$C$5,$C37=List!$C$6,$C37=List!$C$11,$C37=List!$C$13), 1, 0) -> 0 | Z37: =_xlfn.IFS(S37="","未応札",S37>0,"応札") -> 未応札 | AA37: =_xlfn.IFS(T37=0,"未約定",T37=S37,"約定",T37<S37,"一部約定") -> 未約定 | AC37: =IF(Z37="応札",IF($AA37="未約定",IF(OR($G37=List!$F$2:$F$3), $O37*$S37, $M37*$S37),IF($AA37="一部約定",IF(OR($G37=List!$F$2:$F$3), $O37*($S37-$T37), $M37*($S37-$T37)),"")),"") ->  | AD37: 0
U38: 0 | V38: 0 | X38: =IF(ISNUMBER(B38), IF(COUNTIF($B$10:$B38, B38)=COUNTIF($B:$B, B38), "1", "0"), "") ->  | Y38: =IF(OR($C38=List!$C$5,$C38=List!$C$6,$C38=List!$C$11,$C38=List!$C$13), 1, 0) -> 0 | Z38: =_xlfn.IFS(S38="","未応札",S38>0,"応札") -> 未応札 | AA38: =_xlfn.IFS(T38=0,"未約定",T38=S38,"約定",T38<S38,"一部約定") -> 未約定 | AC38: =IF(Z38="応札",IF($AA38="未約定",IF(OR($G38=List!$F$2:$F$3), $O38*$S38, $M38*$S38),IF($AA38="一部約定",IF(OR($G38=List!$F$2:$F$3), $O38*($S38-$T38), $M38*($S38-$T38)),"")),"") ->  | AD38: 0
U39: 0 | V39: 0 | X39: =IF(ISNUMBER(B39), IF(COUNTIF($B$10:$B39, B39)=COUNTIF($B:$B, B39), "1", "0"), "") ->  | Y39: =IF(OR($C39=List!$C$5,$C39=List!$C$6,$C39=List!$C$11,$C39=List!$C$13), 1, 0) -> 0 | Z39: =_xlfn.IFS(S39="","未応札",S39>0,"応札") -> 未応札 | AA39: =_xlfn.IFS(T39=0,"未約定",T39=S39,"約定",T39<S39,"一部約定") -> 未約定 | AC39: =IF(Z39="応札",IF($AA39="未約定",IF(OR($G39=List!$F$2:$F$3), $O39*$S39, $M39*$S39),IF($AA39="一部約定",IF(OR($G39=List!$F$2:$F$3), $O39*($S39-$T39), $M39*($S39-$T39)),"")),"") ->  | AD39: 0
U40: 0 | V40: 0 | X40: =IF(ISNUMBER(B40), IF(COUNTIF($B$10:$B40, B40)=COUNTIF($B:$B, B40), "1", "0"), "") ->  | Y40: =IF(OR($C40=List!$C$5,$C40=List!$C$6,$C40=List!$C$11,$C40=List!$C$13), 1, 0) -> 0 | Z40: =_xlfn.IFS(S40="","未応札",S40>0,"応札") -> 未応札 | AA40: =_xlfn.IFS(T40=0,"未約定",T40=S40,"約定",T40<S40,"一部約定") -> 未約定 | AC40: =IF(Z40="応札",IF($AA40="未約定",IF(OR($G40=List!$F$2:$F$3), $O40*$S40, $M40*$S40),IF($AA40="一部約定",IF(OR($G40=List!$F$2:$F$3), $O40*($S40-$T40), $M40*($S40-$T40)),"")),"") ->  | AD40: 0

Sheet 記載例_精算パターン④約定間全量不落(停止・再起動)
B2: 取引年月 | C2: 202504
B3: MMSコード | C3: A000
B4: 対象エリア | C4: 3：東京
B5: ファイル名称 | C5: =$C$2&"_"&$C$3&"_"&LEFT($C$4,1)&"_不約定単価内訳兼起動費事後精算情報様式" -> 202504_A000_3_不約定単価内訳兼起動費事後精算情報様式
B7: =入力シート!B7 -> 事象NO | C7: =入力シート!C7 -> 精算パターン | D7: =入力シート!D7 -> 余力活用契約対象リソース区分 | E7: =入力シート!E7 -> 取引日 | F7: =入力シート!F7 -> 時刻コード | G7: =入力シート!G7 -> 持ち下げ供出機区分 | H7: =入力シート!H7 -> 系統コード | I7: =入力シート!I7 -> 商品区分 | J7: =入力シート!J7 -> 売り入札ID | K7: =入力シート!K7 -> 約定番号 | L7: =入力シート!L7 -> 約定識別ID | M7: =入力シート!M7 -> MMS起動費単価 | N7: =入力シート!N7 -> 加重平均前のΔkW単価 | O7: =入力シート!O7 -> 加重平均起動費未回収分相当額 | P7: =入力シート!P7 -> 最低出力までの発電電力量の機会費用単価 | Q7: =入力シート!Q7 -> 発電計画 | R7: =入力シート!R7 -> 最低出力 | S7: =入力シート!S7 -> 約定希望ΔkW | T7: =入力シート!T7 -> ΔkW約定量 | U7: =入力シート!U7 -> 最低出力までの発電電力量の機会費用単価×(約定希望ΔkW-ΔkW約定量) | V7: =入力シート!V7 -> 最低出力維持した場合の費用合計 | W7: =入力シート!W7 -> 停止・再起動にかかる費用 | X7: =入力シート!X7 -> 事象毎の最終行 | Y7: =入力シート!Y7 -> 妥当性確認 | Z7: =入力シート!Z7 -> 応札状況 | AA7: =入力シート!AA7 -> 約定状況 | AB7: =入力シート!AB7 -> 並解列状態(実績) | AC7: =入力シート!AC7 -> 起動費未回収分相当額 | AD7: =入力シート!AD7 -> 最低出力までの発電電力量の機会費用 | AE7: =入力シート!AE7 -> 停止・再起動にかかる費用 | AH7: =入力シート!AH7 -> 精算対象 申請小計 | AI7: =入力シート!AI7 -> 起動費未回収分相当額 | AJ7: =入力シート!AJ7 -> 最低出力までの発電電力量の機会費用 | AK7: =入力シート!AK7 -> 停止・再起動にかかる費用 | AL7: =入力シート!AL7 -> 合計
M8: （円/kW） | N8: （円/kW） | O8: （円/kW） | P8: （円/kW） | Q8: （kWh） | R8: （kWh） | S8: （kW） | T8: （kW） | U8: （円） | V8: （円） | W8: （円） | AC8: （円） | AD8: （円） | AE8: （円） | AI8: （円） | AJ8: （円） | AK8: （円） | AL8: （円）
B9: =IF(入力シート!B9<>"",入力シート!B9,"") -> ※起動費未回収が発生した事象ごとにNOを付定すること。 | C9: =IF(入力シート!C9<>"",入力シート!C9,"") ->  | D9: =IF(入力シート!D9<>"",入力シート!D9,"") -> ※対象の場合は「１」，非対象の場合は「０」を入力 | E9: =IF(入力シート!E9<>"",入力シート!E9,"") ->  | F9: =IF(入力シート!F9<>"",入力シート!F9,"") ->  | G9: =IF(入力シート!G9<>"",入力シート!G9,"") -> ※持ち下げ供出機を加重平均で入札した場合に選択 | H9: =IF(入力シート!H9<>"",入力シート!H9,"") ->  | I9: =IF(入力シート!I9<>"",入力シート!I9,"") ->  | J9: =IF(入力シート!J9<>"",入力シート!J9,"") ->  | K9: =IF(入力シート!K9<>"",入力シート!K9,"") -> ※１持ち下げ供出機区分が該当する場合，起動供出機の約定番号を記載すること ※２同一時刻コードにおいて，複数の約定番号がある場合は，いずれか1つを記載すること。 | L9: =IF(入力シート!L9<>"",入力シート!L9,"") -> ※1持ち下げ供出機区分に該当する場合，起動供出機の約定識別IDを記載すること ※2同一時刻コードにおいて，約定番号に紐づく約定識別IDが複数存在する場合は，いずれか1つを記載すること ※3電源差し替えを実施した場合，差替え元の約定識別IDを記載すること(持ち下げ供出機区分に該当する場合,起動供出機の初回約定識別IDを記載すること) | M9: =IF(入力シート!M9<>"",入力シート!M9,"") -> ※MMSに登録された起動費単価分を原則用いること | N9: =IF(入力シート!N9<>"",入力シート!N9,"") -> ※持ち下げ供出機区分が該当する場合に記載すること | O9: =IF(入力シート!O9<>"",入力シート!O9,"") -> ※ 持ち下げ供出機区分が該当する場合に記載すること | P9: =IF(入力シート!P9<>"",入力シート!P9,"") -> ※１卸電力市場価格（スポット市場価格：実績）と限界費用との差額を用いること ※２加重平均で入札した場合は，最低出力までの発電電力量の加重平均機会費用相当額を記載すること ※３加重平均で入札し，持ち下げ供出機の情報を記載する場合は，持ち下げ供出機のΔkW単価に含めた起動供出機の最低出力までの発電電力量の加重平均機会費用相当額を記載すること。ただし，精算パターンが「持ち下げ・起動供出機:全量不落」の場合は持ち下げ供出機のみが不落となったときに記載すること。 | Q9: =IF(入力シート!Q9<>"",入力シート!Q9,"") ->  | R9: =IF(入力シート!R9<>"",入力シート!R9,"") ->  | S9: =IF(入力シート!S9<>"",入力シート!S9,"") ->  | T9: =IF(入力シート!T9<>"",入力シート!T9,"") ->  | U9: =IF(入力シート!U9<>"",入力シート!U9,"") -> ※加重平均で入札した場合は，最低出力までの発電電力量の加重平均機会費用相当額×(約定希望ΔkW-ΔkW約定量) | V9: =IF(入力シート!V9<>"",入力シート!V9,"") -> ※精算パターン「約定間全量不落(約定間停止・再起動)」を選択した場合，事象NOごとの最終行に合計値表示 | W9: =IF(入力シート!W9<>"",入力シート!W9,"") -> ※１停止・再起動費は最後のブロックに記載すること ※２ 余力活用契約を締結している電源でBG計画上停止・再起動としていたが、実績は停止しなかった場合も、BG計画上の「停止・再起動費」を記載すること | X9: =IF(入力シート!X9<>"",入力シート!X9,"") ->  | Y9: =IF(入力シート!Y9<>"",入力シート!Y9,"") ->  | Z9: =IF(入力シート!Z9<>"",入力シート!Z9,"") ->  | AA9: =IF(入力シート!AA9<>"",入力シート!AA9,"") ->  | AB9: =IF(入力シート!AB9<>"",入力シート!AB9,"") ->  | AC9: =IF(入力シート!AC9<>"",入力シート!AC9,"") -> ※加重平均で入札した場合は，加重平均起動費未回収分相当額 | AD9: =IF(入力シート!AD9<>"",入力シート!AD9,"") -> ※加重平均で入札した場合は，最低出力までの発電電力量の加重平均機会費用相当額 | AE9: =IF(入力シート!AE9<>"",入力シート!AE9,"") -> ※約定間全量不落時において，停止・再起動するよりも，最低出力維持した方が経済的だった場合，後者を事後精算対象とする。 | AI9: =SUM($AC10:$AC2831) -> 1000000 | AJ9: =SUM($AD10:$AD2831) -> 0 | AK9: =SUM($AE10:$AE2831) -> 450000 | AL9: =ROUNDDOWN(SUM(AI9:AK9),0) -> 1450000
B10: 1 | C10: 4：約定間全量不落（約定間停止・再起動） | D10: 0：非対象 | E10: 20250401 | F10: 4 | H10: ○A○○○ | I10: 2：三次調整力② | J10: ○○○○○○ | M10: 10 | P10: 20 | Q10: 0 | R10: 0 | S10: 50000 | T10: 0 | U10: =P10*(S10-T10) -> 1000000 | V10: =IF(W10 > 0, SUMIFS(U:U, B:B, B10, Y:Y, 1), 0) -> 0 | X10: =IF(ISNUMBER(B10), IF(COUNTIF($B$10:$B10, B10)=COUNTIF($B:$B, B10), "1", "0"), "") -> 0 | Y10: =IF(OR($C10=List!$C$5,$C10=List!$C$6,$C10=List!$C$11,$C10=List!$C$13), 1, 0) -> 1 | Z10: =_xlfn.IFS(S10="","未応札",S10>0,"応札") -> 応札 | AA10: =_xlfn.IFS(T10=0,"未約定",T10=S10,"約定",T10<S10,"一部約定") -> 未約定 | AB10: 2：解列 | AC10: =IF(Z10="応札",IF($AA10="未約定",IF(OR($G10=List!$F$2:$F$3), $O10*$S10, $M10*$S10),IF($AA10="一部約定",IF(OR($G10=List!$F$2:$F$3), $O10*($S10-$T10), $M10*($S10-$T10)),"")),"") -> 500000 | AD10: =IF(ISBLANK($Q10),IF(OR($AA10="一部約定",$AA10="未約定"),$P10*($S10-$T10),""),IF($Q10=0,"", IF(OR($AA10="一部約定", $AA10="未約定"), $P10*($S10-$T10), ""))) ->  | AE10: =IF(AND($Z10="応札",$AA10="未約定"), IF($V10<>0, IF($W10<$V10, IF($W10<>0, $W10, ""), IF($V10<>0, $V10, "")), IF($W10<>0, $W10, "")), "") -> 
B11: 1 | C11: 4：約定間全量不落（約定間停止・再起動） | D11: 0：非対象 | E11: 20250401 | F11: 5 | H11: ○A○○○ | I11: 2：三次調整力② | J11: ○○○○○○ | M11: 10 | P11: 20 | Q11: 0 | R11: 0 | S11: 50000 | T11: 0 | U11: =P11*(S11-T11) -> 1000000 | V11: =IF(W11 > 0, SUMIFS(U:U, B:B, B11, Y:Y, 1), 0) -> 2000000 | W11: 450000 | X11: =IF(ISNUMBER(B11), IF(COUNTIF($B$10:$B11, B11)=COUNTIF($B:$B, B11), "1", "0"), "") -> 1 | Y11: =IF(OR($C11=List!$C$5,$C11=List!$C$6,$C11=List!$C$11,$C11=List!$C$13), 1, 0) -> 1 | Z11: =_xlfn.IFS(S11="","未応札",S11>0,"応札") -> 応札 | AA11: =_xlfn.IFS(T11=0,"未約定",T11=S11,"約定",T11<S11,"一部約定") -> 未約定 | AB11: 2：解列 | AC11: =IF(Z11="応札",IF($AA11="未約定",IF(OR($G11=List!$F$2:$F$3), $O11*$S11, $M11*$S11),IF($AA11="一部約定",IF(OR($G11=List!$F$2:$F$3), $O11*($S11-$T11), $M11*($S11-$T11)),"")),"") -> 500000 | AD11: =IF(ISBLANK($Q11),IF(OR($AA11="一部約定",$AA11="未約定"),$P11*($S11-$T11),""),IF($Q11=0,"", IF(OR($AA11="一部約定", $AA11="未約定"), $P11*($S11-$T11), ""))) ->  | AE11: =IF(AND($Z11="応札",$AA11="未約定"), IF($V11<>0, IF($W11<$V11, IF($W11<>0, $W11, ""), IF($V11<>0, $V11, "")), IF($W11<>0, $W11, "")), "") -> 450000
U12: 0 | V12: 0 | X12: =IF(ISNUMBER(B12), IF(COUNTIF($B$10:$B12, B12)=COUNTIF($B:$B, B12), "1", "0"), "") ->  | Y12: =IF(OR($C12=List!$C$5,$C12=List!$C$6,$C12=List!$C$11,$C12=List!$C$13), 1, 0) -> 0 | Z12: =_xlfn.IFS(S12="","未応札",S12>0,"応札") -> 未応札 | AA12: =_xlfn.IFS(T12=0,"未約定",T12=S12,"約定",T12<S12,"一部約定") -> 未約定 | AC12: =IF(Z12="応札",IF($AA12="未約定",IF(OR($G12=List!$F$2:$F$3), $O12*$S12, $M12*$S12),IF($AA12="一部約定",IF(OR($G12=List!$F$2:$F$3), $O12*($S12-$T12), $M12*($S12-$T12)),"")),"") ->  | AD12: 0
U13: 0 | V13: 0 | X13: =IF(ISNUMBER(B13), IF(COUNTIF($B$10:$B13, B13)=COUNTIF($B:$B, B13), "1", "0"), "") ->  | Y13: =IF(OR($C13=List!$C$5,$C13=List!$C$6,$C13=List!$C$11,$C13=List!$C$13), 1, 0) -> 0 | Z13: =_xlfn.IFS(S13="","未応札",S13>0,"応札") -> 未応札 | AA13: =_xlfn.IFS(T13=0,"未約定",T13=S13,"約定",T13<S13,"一部約定") -> 未約定 | AC13: =IF(Z13="応札",IF($AA13="未約定",IF(OR($G13=List!$F$2:$F$3), $O13*$S13, $M13*$S13),IF($AA13="一部約定",IF(OR($G13=List!$F$2:$F$3), $O13*($S13-$T13), $M13*($S13-$T13)),"")),"") ->  | AD13: 0
U14: 0 | V14: 0 | X14: =IF(ISNUMBER(B14), IF(COUNTIF($B$10:$B14, B14)=COUNTIF($B:$B, B14), "1", "0"), "") ->  | Y14: =IF(OR($C14=List!$C$5,$C14=List!$C$6,$C14=List!$C$11,$C14=List!$C$13), 1, 0) -> 0 | Z14: =_xlfn.IFS(S14="","未応札",S14>0,"応札") -> 未応札 | AA14: =_xlfn.IFS(T14=0,"未約定",T14=S14,"約定",T14<S14,"一部約定") -> 未約定 | AC14: =IF(Z14="応札",IF($AA14="未約定",IF(OR($G14=List!$F$2:$F$3), $O14*$S14, $M14*$S14),IF($AA14="一部約定",IF(OR($G14=List!$F$2:$F$3), $O14*($S14-$T14), $M14*($S14-$T14)),"")),"") ->  | AD14: 0
U15: 0 | V15: 0 | X15: =IF(ISNUMBER(B15), IF(COUNTIF($B$10:$B15, B15)=COUNTIF($B:$B, B15), "1", "0"), "") ->  | Y15: =IF(OR($C15=List!$C$5,$C15=List!$C$6,$C15=List!$C$11,$C15=List!$C$13), 1, 0) -> 0 | Z15: =_xlfn.IFS(S15="","未応札",S15>0,"応札") -> 未応札 | AA15: =_xlfn.IFS(T15=0,"未約定",T15=S15,"約定",T15<S15,"一部約定") -> 未約定 | AC15: =IF(Z15="応札",IF($AA15="未約定",IF(OR($G15=List!$F$2:$F$3), $O15*$S15, $M15*$S15),IF($AA15="一部約定",IF(OR($G15=List!$F$2:$F$3), $O15*($S15-$T15), $M15*($S15-$T15)),"")),"") ->  | AD15: 0
U16: 0 | V16: 0 | X16: =IF(ISNUMBER(B16), IF(COUNTIF($B$10:$B16, B16)=COUNTIF($B:$B, B16), "1", "0"), "") ->  | Y16: =IF(OR($C16=List!$C$5,$C16=List!$C$6,$C16=List!$C$11,$C16=List!$C$13), 1, 0) -> 0 | Z16: =_xlfn.IFS(S16="","未応札",S16>0,"応札") -> 未応札 | AA16: =_xlfn.IFS(T16=0,"未約定",T16=S16,"約定",T16<S16,"一部約定") -> 未約定 | AC16: =IF(Z16="応札",IF($AA16="未約定",IF(OR($G16=List!$F$2:$F$3), $O16*$S16, $M16*$S16),IF($AA16="一部約定",IF(OR($G16=List!$F$2:$F$3), $O16*($S16-$T16), $M16*($S16-$T16)),"")),"") ->  | AD16: 0
U17: 0 | V17: 0 | X17: =IF(ISNUMBER(B17), IF(COUNTIF($B$10:$B17, B17)=COUNTIF($B:$B, B17), "1", "0"), "") ->  | Y17: =IF(OR($C17=List!$C$5,$C17=List!$C$6,$C17=List!$C$11,$C17=List!$C$13), 1, 0) -> 0 | Z17: =_xlfn.IFS(S17="","未応札",S17>0,"応札") -> 未応札 | AA17: =_xlfn.IFS(T17=0,"未約定",T17=S17,"約定",T17<S17,"一部約定") -> 未約定 | AC17: =IF(Z17="応札",IF($AA17="未約定",IF(OR($G17=List!$F$2:$F$3), $O17*$S17, $M17*$S17),IF($AA17="一部約定",IF(OR($G17=List!$F$2:$F$3), $O17*($S17-$T17), $M17*($S17-$T17)),"")),"") ->  | AD17: 0
U18: 0 | V18: 0 | X18: =IF(ISNUMBER(B18), IF(COUNTIF($B$10:$B18, B18)=COUNTIF($B:$B, B18), "1", "0"), "") ->  | Y18: =IF(OR($C18=List!$C$5,$C18=List!$C$6,$C18=List!$C$11,$C18=List!$C$13), 1, 0) -> 0 | Z18: =_xlfn.IFS(S18="","未応札",S18>0,"応札") -> 未応札 | AA18: =_xlfn.IFS(T18=0,"未約定",T18=S18,"約定",T18<S18,"一部約定") -> 未約定 | AC18: =IF(Z18="応札",IF($AA18="未約定",IF(OR($G18=List!$F$2:$F$3), $O18*$S18, $M18*$S18),IF($AA18="一部約定",IF(OR($G18=List!$F$2:$F$3), $O18*($S18-$T18), $M18*($S18-$T18)),"")),"") ->  | AD18: 0
U19: 0 | V19: 0 | X19: =IF(ISNUMBER(B19), IF(COUNTIF($B$10:$B19, B19)=COUNTIF($B:$B, B19), "1", "0"), "") ->  | Y19: =IF(OR($C19=List!$C$5,$C19=List!$C$6,$C19=List!$C$11,$C19=List!$C$13), 1, 0) -> 0 | Z19: =_xlfn.IFS(S19="","未応札",S19>0,"応札") -> 未応札 | AA19: =_xlfn.IFS(T19=0,"未約定",T19=S19,"約定",T19<S19,"一部約定") -> 未約定 | AC19: =IF(Z19="応札",IF($AA19="未約定",IF(OR($G19=List!$F$2:$F$3), $O19*$S19, $M19*$S19),IF($AA19="一部約定",IF(OR($G19=List!$F$2:$F$3), $O19*($S19-$T19), $M19*($S19-$T19)),"")),"") ->  | AD19: 0
U20: 0 | V20: 0 | X20: =IF(ISNUMBER(B20), IF(COUNTIF($B$10:$B20, B20)=COUNTIF($B:$B, B20), "1", "0"), "") ->  | Y20: =IF(OR($C20=List!$C$5,$C20=List!$C$6,$C20=List!$C$11,$C20=List!$C$13), 1, 0) -> 0 | Z20: =_xlfn.IFS(S20="","未応札",S20>0,"応札") -> 未応札 | AA20: =_xlfn.IFS(T20=0,"未約定",T20=S20,"約定",T20<S20,"一部約定") -> 未約定 | AC20: =IF(Z20="応札",IF($AA20="未約定",IF(OR($G20=List!$F$2:$F$3), $O20*$S20, $M20*$S20),IF($AA20="一部約定",IF(OR($G20=List!$F$2:$F$3), $O20*($S20-$T20), $M20*($S20-$T20)),"")),"") ->  | AD20: 0
U21: 0 | V21: 0 | X21: =IF(ISNUMBER(B21), IF(COUNTIF($B$10:$B21, B21)=COUNTIF($B:$B, B21), "1", "0"), "") ->  | Y21: =IF(OR($C21=List!$C$5,$C21=List!$C$6,$C21=List!$C$11,$C21=List!$C$13), 1, 0) -> 0 | Z21: =_xlfn.IFS(S21="","未応札",S21>0,"応札") -> 未応札 | AA21: =_xlfn.IFS(T21=0,"未約定",T21=S21,"約定",T21<S21,"一部約定") -> 未約定 | AC21: =IF(Z21="応札",IF($AA21="未約定",IF(OR($G21=List!$F$2:$F$3), $O21*$S21, $M21*$S21),IF($AA21="一部約定",IF(OR($G21=List!$F$2:$F$3), $O21*($S21-$T21), $M21*($S21-$T21)),"")),"") ->  | AD21: 0
U22: 0 | V22: 0 | X22: =IF(ISNUMBER(B22), IF(COUNTIF($B$10:$B22, B22)=COUNTIF($B:$B, B22), "1", "0"), "") ->  | Y22: =IF(OR($C22=List!$C$5,$C22=List!$C$6,$C22=List!$C$11,$C22=List!$C$13), 1, 0) -> 0 | Z22: =_xlfn.IFS(S22="","未応札",S22>0,"応札") -> 未応札 | AA22: =_xlfn.IFS(T22=0,"未約定",T22=S22,"約定",T22<S22,"一部約定") -> 未約定 | AC22: =IF(Z22="応札",IF($AA22="未約定",IF(OR($G22=List!$F$2:$F$3), $O22*$S22, $M22*$S22),IF($AA22="一部約定",IF(OR($G22=List!$F$2:$F$3), $O22*($S22-$T22), $M22*($S22-$T22)),"")),"") ->  | AD22: 0
U23: 0 | V23: 0 | X23: =IF(ISNUMBER(B23), IF(COUNTIF($B$10:$B23, B23)=COUNTIF($B:$B, B23), "1", "0"), "") ->  | Y23: =IF(OR($C23=List!$C$5,$C23=List!$C$6,$C23=List!$C$11,$C23=List!$C$13), 1, 0) -> 0 | Z23: =_xlfn.IFS(S23="","未応札",S23>0,"応札") -> 未応札 | AA23: =_xlfn.IFS(T23=0,"未約定",T23=S23,"約定",T23<S23,"一部約定") -> 未約定 | AC23: =IF(Z23="応札",IF($AA23="未約定",IF(OR($G23=List!$F$2:$F$3), $O23*$S23, $M23*$S23),IF($AA23="一部約定",IF(OR($G23=List!$F$2:$F$3), $O23*($S23-$T23), $M23*($S23-$T23)),"")),"") ->  | AD23: 0
U24: 0 | V24: 0 | X24: =IF(ISNUMBER(B24), IF(COUNTIF($B$10:$B24, B24)=COUNTIF($B:$B, B24), "1", "0"), "") ->  | Y24: =IF(OR($C24=List!$C$5,$C24=List!$C$6,$C24=List!$C$11,$C24=List!$C$13), 1, 0) -> 0 | Z24: =_xlfn.IFS(S24="","未応札",S24>0,"応札") -> 未応札 | AA24: =_xlfn.IFS(T24=0,"未約定",T24=S24,"約定",T24<S24,"一部約定") -> 未約定 | AC24: =IF(Z24="応札",IF($AA24="未約定",IF(OR($G24=List!$F$2:$F$3), $O24*$S24, $M24*$S24),IF($AA24="一部約定",IF(OR($G24=List!$F$2:$F$3), $O24*($S24-$T24), $M24*($S24-$T24)),"")),"") ->  | AD24: 0
U25: 0 | V25: 0 | X25: =IF(ISNUMBER(B25), IF(COUNTIF($B$10:$B25, B25)=COUNTIF($B:$B, B25), "1", "0"), "") ->  | Y25: =IF(OR($C25=List!$C$5,$C25=List!$C$6,$C25=List!$C$11,$C25=List!$C$13), 1, 0) -> 0 | Z25: =_xlfn.IFS(S25="","未応札",S25>0,"応札") -> 未応札 | AA25: =_xlfn.IFS(T25=0,"未約定",T25=S25,"約定",T25<S25,"一部約定") -> 未約定 | AC25: =IF(Z25="応札",IF($AA25="未約定",IF(OR($G25=List!$F$2:$F$3), $O25*$S25, $M25*$S25),IF($AA25="一部約定",IF(OR($G25=List!$F$2:$F$3), $O25*($S25-$T25), $M25*($S25-$T25)),"")),"") ->  | AD25: 0
U26: 0 | V26: 0 | X26: =IF(ISNUMBER(B26), IF(COUNTIF($B$10:$B26, B26)=COUNTIF($B:$B, B26), "1", "0"), "") ->  | Y26: =IF(OR($C26=List!$C$5,$C26=List!$C$6,$C26=List!$C$11,$C26=List!$C$13), 1, 0) -> 0 | Z26: =_xlfn.IFS(S26="","未応札",S26>0,"応札") -> 未応札 | AA26: =_xlfn.IFS(T26=0,"未約定",T26=S26,"約定",T26<S26,"一部約定") -> 未約定 | AC26: =IF(Z26="応札",IF($AA26="未約定",IF(OR($G26=List!$F$2:$F$3), $O26*$S26, $M26*$S26),IF($AA26="一部約定",IF(OR($G26=List!$F$2:$F$3), $O26*($S26-$T26), $M26*($S26-$T26)),"")),"") ->  | AD26: 0
U27: 0 | V27: 0 | X27: =IF(ISNUMBER(B27), IF(COUNTIF($B$10:$B27, B27)=COUNTIF($B:$B, B27), "1", "0"), "") ->  | Y27: =IF(OR($C27=List!$C$5,$C27=List!$C$6,$C27=List!$C$11,$C27=List!$C$13), 1, 0) -> 0 | Z27: =_xlfn.IFS(S27="","未応札",S27>0,"応札") -> 未応札 | AA27: =_xlfn.IFS(T27=0,"未約定",T27=S27,"約定",T27<S27,"一部約定") -> 未約定 | AC27: =IF(Z27="応札",IF($AA27="未約定",IF(OR($G27=List!$F$2:$F$3), $O27*$S27, $M27*$S27),IF($AA27="一部約定",IF(OR($G27=List!$F$2:$F$3), $O27*($S27-$T27), $M27*($S27-$T27)),"")),"") ->  | AD27: 0
U28: 0 | V28: 0 | X28: =IF(ISNUMBER(B28), IF(COUNTIF($B$10:$B28, B28)=COUNTIF($B:$B, B28), "1", "0"), "") ->  | Y28: =IF(OR($C28=List!$C$5,$C28=List!$C$6,$C28=List!$C$11,$C28=List!$C$13), 1, 0) -> 0 | Z28: =_xlfn.IFS(S28="","未応札",S28>0,"応札") -> 未応札 | AA28: =_xlfn.IFS(T28=0,"未約定",T28=S28,"約定",T28<S28,"一部約定") -> 未約定 | AC28: =IF(Z28="応札",IF($AA28="未約定",IF(OR($G28=List!$F$2:$F$3), $O28*$S28, $M28*$S28),IF($AA28="一部約定",IF(OR($G28=List!$F$2:$F$3), $O28*($S28-$T28), $M28*($S28-$T28)),"")),"") ->  | AD28: 0
U29: 0 | V29: 0 | X29: =IF(ISNUMBER(B29), IF(COUNTIF($B$10:$B29, B29)=COUNTIF($B:$B, B29), "1", "0"), "") ->  | Y29: =IF(OR($C29=List!$C$5,$C29=List!$C$6,$C29=List!$C$11,$C29=List!$C$13), 1, 0) -> 0 | Z29: =_xlfn.IFS(S29="","未応札",S29>0,"応札") -> 未応札 | AA29: =_xlfn.IFS(T29=0,"未約定",T29=S29,"約定",T29<S29,"一部約定") -> 未約定 | AC29: =IF(Z29="応札",IF($AA29="未約定",IF(OR($G29=List!$F$2:$F$3), $O29*$S29, $M29*$S29),IF($AA29="一部約定",IF(OR($G29=List!$F$2:$F$3), $O29*($S29-$T29), $M29*($S29-$T29)),"")),"") ->  | AD29: 0
U30: 0 | V30: 0 | X30: =IF(ISNUMBER(B30), IF(COUNTIF($B$10:$B30, B30)=COUNTIF($B:$B, B30), "1", "0"), "") ->  | Y30: =IF(OR($C30=List!$C$5,$C30=List!$C$6,$C30=List!$C$11,$C30=List!$C$13), 1, 0) -> 0 | Z30: =_xlfn.IFS(S30="","未応札",S30>0,"応札") -> 未応札 | AA30: =_xlfn.IFS(T30=0,"未約定",T30=S30,"約定",T30<S30,"一部約定") -> 未約定 | AC30: =IF(Z30="応札",IF($AA30="未約定",IF(OR($G30=List!$F$2:$F$3), $O30*$S30, $M30*$S30),IF($AA30="一部約定",IF(OR($G30=List!$F$2:$F$3), $O30*($S30-$T30), $M30*($S30-$T30)),"")),"") ->  | AD30: 0
U31: 0 | V31: 0 | X31: =IF(ISNUMBER(B31), IF(COUNTIF($B$10:$B31, B31)=COUNTIF($B:$B, B31), "1", "0"), "") ->  | Y31: =IF(OR($C31=List!$C$5,$C31=List!$C$6,$C31=List!$C$11,$C31=List!$C$13), 1, 0) -> 0 | Z31: =_xlfn.IFS(S31="","未応札",S31>0,"応札") -> 未応札 | AA31: =_xlfn.IFS(T31=0,"未約定",T31=S31,"約定",T31<S31,"一部約定") -> 未約定 | AC31: =IF(Z31="応札",IF($AA31="未約定",IF(OR($G31=List!$F$2:$F$3), $O31*$S31, $M31*$S31),IF($AA31="一部約定",IF(OR($G31=List!$F$2:$F$3), $O31*($S31-$T31), $M31*($S31-$T31)),"")),"") ->  | AD31: 0
U32: 0 | V32: 0 | X32: =IF(ISNUMBER(B32), IF(COUNTIF($B$10:$B32, B32)=COUNTIF($B:$B, B32), "1", "0"), "") ->  | Y32: =IF(OR($C32=List!$C$5,$C32=List!$C$6,$C32=List!$C$11,$C32=List!$C$13), 1, 0) -> 0 | Z32: =_xlfn.IFS(S32="","未応札",S32>0,"応札") -> 未応札 | AA32: =_xlfn.IFS(T32=0,"未約定",T32=S32,"約定",T32<S32,"一部約定") -> 未約定 | AC32: =IF(Z32="応札",IF($AA32="未約定",IF(OR($G32=List!$F$2:$F$3), $O32*$S32, $M32*$S32),IF($AA32="一部約定",IF(OR($G32=List!$F$2:$F$3), $O32*($S32-$T32), $M32*($S32-$T32)),"")),"") ->  | AD32: 0
U33: 0 | V33: 0 | X33: =IF(ISNUMBER(B33), IF(COUNTIF($B$10:$B33, B33)=COUNTIF($B:$B, B33), "1", "0"), "") ->  | Y33: =IF(OR($C33=List!$C$5,$C33=List!$C$6,$C33=List!$C$11,$C33=List!$C$13), 1, 0) -> 0 | Z33: =_xlfn.IFS(S33="","未応札",S33>0,"応札") -> 未応札 | AA33: =_xlfn.IFS(T33=0,"未約定",T33=S33,"約定",T33<S33,"一部約定") -> 未約定 | AC33: =IF(Z33="応札",IF($AA33="未約定",IF(OR($G33=List!$F$2:$F$3), $O33*$S33, $M33*$S33),IF($AA33="一部約定",IF(OR($G33=List!$F$2:$F$3), $O33*($S33-$T33), $M33*($S33-$T33)),"")),"") ->  | AD33: 0
U34: 0 | V34: 0 | X34: =IF(ISNUMBER(B34), IF(COUNTIF($B$10:$B34, B34)=COUNTIF($B:$B, B34), "1", "0"), "") ->  | Y34: =IF(OR($C34=List!$C$5,$C34=List!$C$6,$C34=List!$C$11,$C34=List!$C$13), 1, 0) -> 0 | Z34: =_xlfn.IFS(S34="","未応札",S34>0,"応札") -> 未応札 | AA34: =_xlfn.IFS(T34=0,"未約定",T34=S34,"約定",T34<S34,"一部約定") -> 未約定 | AC34: =IF(Z34="応札",IF($AA34="未約定",IF(OR($G34=List!$F$2:$F$3), $O34*$S34, $M34*$S34),IF($AA34="一部約定",IF(OR($G34=List!$F$2:$F$3), $O34*($S34-$T34), $M34*($S34-$T34)),"")),"") ->  | AD34: 0
U35: 0 | V35: 0 | X35: =IF(ISNUMBER(B35), IF(COUNTIF($B$10:$B35, B35)=COUNTIF($B:$B, B35), "1", "0"), "") ->  | Y35: =IF(OR($C35=List!$C$5,$C35=List!$C$6,$C35=List!$C$11,$C35=List!$C$13), 1, 0) -> 0 | Z35: =_xlfn.IFS(S35="","未応札",S35>0,"応札") -> 未応札 | AA35: =_xlfn.IFS(T35=0,"未約定",T35=S35,"約定",T35<S35,"一部約定") -> 未約定 | AC35: =IF(Z35="応札",IF($AA35="未約定",IF(OR($G35=List!$F$2:$F$3), $O35*$S35, $M35*$S35),IF($AA35="一部約定",IF(OR($G35=List!$F$2:$F$3), $O35*($S35-$T35), $M35*($S35-$T35)),"")),"") ->  | AD35: 0
U36: 0 | V36: 0 | X36: =IF(ISNUMBER(B36), IF(COUNTIF($B$10:$B36, B36)=COUNTIF($B:$B, B36), "1", "0"), "") ->  | Y36: =IF(OR($C36=List!$C$5,$C36=List!$C$6,$C36=List!$C$11,$C36=List!$C$13), 1, 0) -> 0 | Z36: =_xlfn.IFS(S36="","未応札",S36>0,"応札") -> 未応札 | AA36: =_xlfn.IFS(T36=0,"未約定",T36=S36,"約定",T36<S36,"一部約定") -> 未約定 | AC36: =IF(Z36="応札",IF($AA36="未約定",IF(OR($G36=List!$F$2:$F$3), $O36*$S36, $M36*$S36),IF($AA36="一部約定",IF(OR($G36=List!$F$2:$F$3), $O36*($S36-$T36), $M36*($S36-$T36)),"")),"") ->  | AD36: 0
U37: 0 | V37: 0 | X37: =IF(ISNUMBER(B37), IF(COUNTIF($B$10:$B37, B37)=COUNTIF($B:$B, B37), "1", "0"), "") ->  | Y37: =IF(OR($C37=List!$C$5,$C37=List!$C$6,$C37=List!$C$11,$C37=List!$C$13), 1, 0) -> 0 | Z37: =_xlfn.IFS(S37="","未応札",S37>0,"応札") -> 未応札 | AA37: =_xlfn.IFS(T37=0,"未約定",T37=S37,"約定",T37<S37,"一部約定") -> 未約定 | AC37: =IF(Z37="応札",IF($AA37="未約定",IF(OR($G37=List!$F$2:$F$3), $O37*$S37, $M37*$S37),IF($AA37="一部約定",IF(OR($G37=List!$F$2:$F$3), $O37*($S37-$T37), $M37*($S37-$T37)),"")),"") ->  | AD37: 0
U38: 0 | V38: 0 | X38: =IF(ISNUMBER(B38), IF(COUNTIF($B$10:$B38, B38)=COUNTIF($B:$B, B38), "1", "0"), "") ->  | Y38: =IF(OR($C38=List!$C$5,$C38=List!$C$6,$C38=List!$C$11,$C38=List!$C$13), 1, 0) -> 0 | Z38: =_xlfn.IFS(S38="","未応札",S38>0,"応札") -> 未応札 | AA38: =_xlfn.IFS(T38=0,"未約定",T38=S38,"約定",T38<S38,"一部約定") -> 未約定 | AC38: =IF(Z38="応札",IF($AA38="未約定",IF(OR($G38=List!$F$2:$F$3), $O38*$S38, $M38*$S38),IF($AA38="一部約定",IF(OR($G38=List!$F$2:$F$3), $O38*($S38-$T38), $M38*($S38-$T38)),"")),"") ->  | AD38: 0
U39: 0 | V39: 0 | X39: =IF(ISNUMBER(B39), IF(COUNTIF($B$10:$B39, B39)=COUNTIF($B:$B, B39), "1", "0"), "") ->  | Y39: =IF(OR($C39=List!$C$5,$C39=List!$C$6,$C39=List!$C$11,$C39=List!$C$13), 1, 0) -> 0 | Z39: =_xlfn.IFS(S39="","未応札",S39>0,"応札") -> 未応札 | AA39: =_xlfn.IFS(T39=0,"未約定",T39=S39,"約定",T39<S39,"一部約定") -> 未約定 | AC39: =IF(Z39="応札",IF($AA39="未約定",IF(OR($G39=List!$F$2:$F$3), $O39*$S39, $M39*$S39),IF($AA39="一部約定",IF(OR($G39=List!$F$2:$F$3), $O39*($S39-$T39), $M39*($S39-$T39)),"")),"") ->  | AD39: 0
U40: 0 | V40: 0 | X40: =IF(ISNUMBER(B40), IF(COUNTIF($B$10:$B40, B40)=COUNTIF($B:$B, B40), "1", "0"), "") ->  | Y40: =IF(OR($C40=List!$C$5,$C40=List!$C$6,$C40=List!$C$11,$C40=List!$C$13), 1, 0) -> 0 | Z40: =_xlfn.IFS(S40="","未応札",S40>0,"応札") -> 未応札 | AA40: =_xlfn.IFS(T40=0,"未約定",T40=S40,"約定",T40<S40,"一部約定") -> 未約定 | AC40: =IF(Z40="応札",IF($AA40="未約定",IF(OR($G40=List!$F$2:$F$3), $O40*$S40, $M40*$S40),IF($AA40="一部約定",IF(OR($G40=List!$F$2:$F$3), $O40*($S40-$T40), $M40*($S40-$T40)),"")),"") ->  | AD40: 0

Sheet 記載例_⑤約定間全量不落(余力活用契約で最低出力維持）
B2: 取引年月 | C2: 202504
B3: MMSコード | C3: A000
B4: 対象エリア | C4: 3：東京
B5: ファイル名称 | C5: =$C$2&"_"&$C$3&"_"&LEFT($C$4,1)&"_不約定単価内訳兼起動費事後精算情報様式" -> 202504_A000_3_不約定単価内訳兼起動費事後精算情報様式
B7: =入力シート!B7 -> 事象NO | C7: =入力シート!C7 -> 精算パターン | D7: =入力シート!D7 -> 余力活用契約対象リソース区分 | E7: =入力シート!E7 -> 取引日 | F7: =入力シート!F7 -> 時刻コード | G7: =入力シート!G7 -> 持ち下げ供出機区分 | H7: =入力シート!H7 -> 系統コード | I7: =入力シート!I7 -> 商品区分 | J7: =入力シート!J7 -> 売り入札ID | K7: =入力シート!K7 -> 約定番号 | L7: =入力シート!L7 -> 約定識別ID | M7: =入力シート!M7 -> MMS起動費単価 | N7: =入力シート!N7 -> 加重平均前のΔkW単価 | O7: =入力シート!O7 -> 加重平均起動費未回収分相当額 | P7: =入力シート!P7 -> 最低出力までの発電電力量の機会費用単価 | Q7: =入力シート!Q7 -> 発電計画 | R7: =入力シート!R7 -> 最低出力 | S7: =入力シート!S7 -> 約定希望ΔkW | T7: =入力シート!T7 -> ΔkW約定量 | U7: =入力シート!U7 -> 最低出力までの発電電力量の機会費用単価×(約定希望ΔkW-ΔkW約定量) | V7: =入力シート!V7 -> 最低出力維持した場合の費用合計 | W7: =入力シート!W7 -> 停止・再起動にかかる費用 | X7: =入力シート!X7 -> 事象毎の最終行 | Y7: =入力シート!Y7 -> 妥当性確認 | Z7: =入力シート!Z7 -> 応札状況 | AA7: =入力シート!AA7 -> 約定状況 | AB7: =入力シート!AB7 -> 並解列状態(実績) | AC7: =入力シート!AC7 -> 起動費未回収分相当額 | AD7: =入力シート!AD7 -> 最低出力までの発電電力量の機会費用 | AE7: =入力シート!AE7 -> 停止・再起動にかかる費用 | AH7: =入力シート!AH7 -> 精算対象 申請小計 | AI7: =入力シート!AI7 -> 起動費未回収分相当額 | AJ7: =入力シート!AJ7 -> 最低出力までの発電電力量の機会費用 | AK7: =入力シート!AK7 -> 停止・再起動にかかる費用 | AL7: =入力シート!AL7 -> 合計
M8: （円/kW） | N8: （円/kW） | O8: （円/kW） | P8: （円/kW） | Q8: （kWh） | R8: （kWh） | S8: （kW） | T8: （kW） | U8: （円） | V8: （円） | W8: （円） | AC8: （円） | AD8: （円） | AE8: （円） | AI8: （円） | AJ8: （円） | AK8: （円） | AL8: （円）
B9: =IF(入力シート!B9<>"",入力シート!B9,"") -> ※起動費未回収が発生した事象ごとにNOを付定すること。 | C9: =IF(入力シート!C9<>"",入力シート!C9,"") ->  | D9: =IF(入力シート!D9<>"",入力シート!D9,"") -> ※対象の場合は「１」，非対象の場合は「０」を入力 | E9: =IF(入力シート!E9<>"",入力シート!E9,"") ->  | F9: =IF(入力シート!F9<>"",入力シート!F9,"") ->  | G9: =IF(入力シート!G9<>"",入力シート!G9,"") -> ※持ち下げ供出機を加重平均で入札した場合に選択 | H9: =IF(入力シート!H9<>"",入力シート!H9,"") ->  | I9: =IF(入力シート!I9<>"",入力シート!I9,"") ->  | J9: =IF(入力シート!J9<>"",入力シート!J9,"") ->  | K9: =IF(入力シート!K9<>"",入力シート!K9,"") -> ※１持ち下げ供出機区分が該当する場合，起動供出機の約定番号を記載すること ※２同一時刻コードにおいて，複数の約定番号がある場合は，いずれか1つを記載すること。 | L9: =IF(入力シート!L9<>"",入力シート!L9,"") -> ※1持ち下げ供出機区分に該当する場合，起動供出機の約定識別IDを記載すること ※2同一時刻コードにおいて，約定番号に紐づく約定識別IDが複数存在する場合は，いずれか1つを記載すること ※3電源差し替えを実施した場合，差替え元の約定識別IDを記載すること(持ち下げ供出機区分に該当する場合,起動供出機の初回約定識別IDを記載すること) | M9: =IF(入力シート!M9<>"",入力シート!M9,"") -> ※MMSに登録された起動費単価分を原則用いること | N9: =IF(入力シート!N9<>"",入力シート!N9,"") -> ※持ち下げ供出機区分が該当する場合に記載すること | O9: =IF(入力シート!O9<>"",入力シート!O9,"") -> ※ 持ち下げ供出機区分が該当する場合に記載すること | P9: =IF(入力シート!P9<>"",入力シート!P9,"") -> ※１卸電力市場価格（スポット市場価格：実績）と限界費用との差額を用いること ※２加重平均で入札した場合は，最低出力までの発電電力量の加重平均機会費用相当額を記載すること ※３加重平均で入札し，持ち下げ供出機の情報を記載する場合は，持ち下げ供出機のΔkW単価に含めた起動供出機の最低出力までの発電電力量の加重平均機会費用相当額を記載すること。ただし，精算パターンが「持ち下げ・起動供出機:全量不落」の場合は持ち下げ供出機のみが不落となったときに記載すること。 | Q9: =IF(入力シート!Q9<>"",入力シート!Q9,"") ->  | R9: =IF(入力シート!R9<>"",入力シート!R9,"") ->  | S9: =IF(入力シート!S9<>"",入力シート!S9,"") ->  | T9: =IF(入力シート!T9<>"",入力シート!T9,"") ->  | U9: =IF(入力シート!U9<>"",入力シート!U9,"") -> ※加重平均で入札した場合は，最低出力までの発電電力量の加重平均機会費用相当額×(約定希望ΔkW-ΔkW約定量) | V9: =IF(入力シート!V9<>"",入力シート!V9,"") -> ※精算パターン「約定間全量不落(約定間停止・再起動)」を選択した場合，事象NOごとの最終行に合計値表示 | W9: =IF(入力シート!W9<>"",入力シート!W9,"") -> ※１停止・再起動費は最後のブロックに記載すること ※２ 余力活用契約を締結している電源でBG計画上停止・再起動としていたが、実績は停止しなかった場合も、BG計画上の「停止・再起動費」を記載すること | X9: =IF(入力シート!X9<>"",入力シート!X9,"") ->  | Y9: =IF(入力シート!Y9<>"",入力シート!Y9,"") ->  | Z9: =IF(入力シート!Z9<>"",入力シート!Z9,"") ->  | AA9: =IF(入力シート!AA9<>"",入力シート!AA9,"") ->  | AB9: =IF(入力シート!AB9<>"",入力シート!AB9,"") ->  | AC9: =IF(入力シート!AC9<>"",入力シート!AC9,"") -> ※加重平均で入札した場合は，加重平均起動費未回収分相当額 | AD9: =IF(入力シート!AD9<>"",入力シート!AD9,"") -> ※加重平均で入札した場合は，最低出力までの発電電力量の加重平均機会費用相当額 | AE9: =IF(入力シート!AE9<>"",入力シート!AE9,"") -> ※約定間全量不落時において，停止・再起動するよりも，最低出力維持した方が経済的だった場合，後者を事後精算対象とする。 | AI9: =SUM($AC10:$AC2831) -> 640000 | AJ9: =SUM($AD10:$AD2831) -> 0 | AK9: =SUM($AE10:$AE2831) -> 400000 | AL9: =ROUNDDOWN(SUM(AI9:AK9),0) -> 1040000
B10: 1 | C10: 5：約定間全量不落（余力活用契約で最低出力維持） | D10: 1：対象 | E10: 20250401 | F10: 4 | H10: ○C○○○ | I10: 2：三次調整力② | J10: ○○○○○○ | M10: 8 | P10: 25 | Q10: 0 | R10: 0 | S10: 40000 | T10: 0 | U10: =P10*(S10-T10) -> 1000000 | V10: =IF(W10 > 0, SUMIFS(U:U, B:B, B10, Y:Y, 1), 0) -> 0 | X10: =IF(ISNUMBER(B10), IF(COUNTIF($B$10:$B10, B10)=COUNTIF($B:$B, B10), "1", "0"), "") -> 0 | Y10: =IF(OR($C10=List!$C$5,$C10=List!$C$6,$C10=List!$C$11,$C10=List!$C$13), 1, 0) -> 1 | Z10: =_xlfn.IFS(S10="","未応札",S10>0,"応札") -> 応札 | AA10: =_xlfn.IFS(T10=0,"未約定",T10=S10,"約定",T10<S10,"一部約定") -> 未約定 | AB10: 1：並列 | AC10: =IF(Z10="応札",IF($AA10="未約定",IF(OR($G10=List!$F$2:$F$3), $O10*$S10, $M10*$S10),IF($AA10="一部約定",IF(OR($G10=List!$F$2:$F$3), $O10*($S10-$T10), $M10*($S10-$T10)),"")),"") -> 320000 | AD10: =IF(ISBLANK($Q10),IF(OR($AA10="一部約定",$AA10="未約定"),$P10*($S10-$T10),""),IF($Q10=0,"", IF(OR($AA10="一部約定", $AA10="未約定"), $P10*($S10-$T10), ""))) ->  | AE10: =IF(AND($Z10="応札",$AA10="未約定"), IF($V10<>0, IF($W10<$V10, IF($W10<>0, $W10, ""), IF($V10<>0, $V10, "")), IF($W10<>0, $W10, "")), "") -> 
B11: 1 | C11: 5：約定間全量不落（余力活用契約で最低出力維持） | D11: 1：対象 | E11: 20250401 | F11: 5 | H11: ○C○○○ | I11: 2：三次調整力② | J11: ○○○○○○ | M11: 8 | P11: 25 | Q11: 0 | R11: 0 | S11: 40000 | T11: 0 | U11: =P11*(S11-T11) -> 1000000 | V11: =IF(W11 > 0, SUMIFS(U:U, B:B, B11, Y:Y, 1), 0) -> 2000000 | W11: 400000 | X11: =IF(ISNUMBER(B11), IF(COUNTIF($B$10:$B11, B11)=COUNTIF($B:$B, B11), "1", "0"), "") -> 1 | Y11: =IF(OR($C11=List!$C$5,$C11=List!$C$6,$C11=List!$C$11,$C11=List!$C$13), 1, 0) -> 1 | Z11: =_xlfn.IFS(S11="","未応札",S11>0,"応札") -> 応札 | AA11: =_xlfn.IFS(T11=0,"未約定",T11=S11,"約定",T11<S11,"一部約定") -> 未約定 | AB11: 1：並列 | AC11: =IF(Z11="応札",IF($AA11="未約定",IF(OR($G11=List!$F$2:$F$3), $O11*$S11, $M11*$S11),IF($AA11="一部約定",IF(OR($G11=List!$F$2:$F$3), $O11*($S11-$T11), $M11*($S11-$T11)),"")),"") -> 320000 | AD11: =IF(ISBLANK($Q11),IF(OR($AA11="一部約定",$AA11="未約定"),$P11*($S11-$T11),""),IF($Q11=0,"", IF(OR($AA11="一部約定", $AA11="未約定"), $P11*($S11-$T11), ""))) ->  | AE11: =IF(AND($Z11="応札",$AA11="未約定"), IF($V11<>0, IF($W11<$V11, IF($W11<>0, $W11, ""), IF($V11<>0, $V11, "")), IF($W11<>0, $W11, "")), "") -> 400000
U12: 0 | V12: 0 | X12: =IF(ISNUMBER(B12), IF(COUNTIF($B$10:$B12, B12)=COUNTIF($B:$B, B12), "1", "0"), "") ->  | Y12: =IF(OR($C12=List!$C$5,$C12=List!$C$6,$C12=List!$C$11,$C12=List!$C$13), 1, 0) -> 0 | Z12: =_xlfn.IFS(S12="","未応札",S12>0,"応札") -> 未応札 | AA12: =_xlfn.IFS(T12=0,"未約定",T12=S12,"約定",T12<S12,"一部約定") -> 未約定 | AC12: =IF(Z12="応札",IF($AA12="未約定",IF(OR($G12=List!$F$2:$F$3), $O12*$S12, $M12*$S12),IF($AA12="一部約定",IF(OR($G12=List!$F$2:$F$3), $O12*($S12-$T12), $M12*($S12-$T12)),"")),"") ->  | AD12: 0
U13: 0 | V13: 0 | X13: =IF(ISNUMBER(B13), IF(COUNTIF($B$10:$B13, B13)=COUNTIF($B:$B, B13), "1", "0"), "") ->  | Y13: =IF(OR($C13=List!$C$5,$C13=List!$C$6,$C13=List!$C$11,$C13=List!$C$13), 1, 0) -> 0 | Z13: =_xlfn.IFS(S13="","未応札",S13>0,"応札") -> 未応札 | AA13: =_xlfn.IFS(T13=0,"未約定",T13=S13,"約定",T13<S13,"一部約定") -> 未約定 | AC13: =IF(Z13="応札",IF($AA13="未約定",IF(OR($G13=List!$F$2:$F$3), $O13*$S13, $M13*$S13),IF($AA13="一部約定",IF(OR($G13=List!$F$2:$F$3), $O13*($S13-$T13), $M13*($S13-$T13)),"")),"") ->  | AD13: 0
U14: 0 | V14: 0 | X14: =IF(ISNUMBER(B14), IF(COUNTIF($B$10:$B14, B14)=COUNTIF($B:$B, B14), "1", "0"), "") ->  | Y14: =IF(OR($C14=List!$C$5,$C14=List!$C$6,$C14=List!$C$11,$C14=List!$C$13), 1, 0) -> 0 | Z14: =_xlfn.IFS(S14="","未応札",S14>0,"応札") -> 未応札 | AA14: =_xlfn.IFS(T14=0,"未約定",T14=S14,"約定",T14<S14,"一部約定") -> 未約定 | AC14: =IF(Z14="応札",IF($AA14="未約定",IF(OR($G14=List!$F$2:$F$3), $O14*$S14, $M14*$S14),IF($AA14="一部約定",IF(OR($G14=List!$F$2:$F$3), $O14*($S14-$T14), $M14*($S14-$T14)),"")),"") ->  | AD14: 0
U15: 0 | V15: 0 | X15: =IF(ISNUMBER(B15), IF(COUNTIF($B$10:$B15, B15)=COUNTIF($B:$B, B15), "1", "0"), "") ->  | Y15: =IF(OR($C15=List!$C$5,$C15=List!$C$6,$C15=List!$C$11,$C15=List!$C$13), 1, 0) -> 0 | Z15: =_xlfn.IFS(S15="","未応札",S15>0,"応札") -> 未応札 | AA15: =_xlfn.IFS(T15=0,"未約定",T15=S15,"約定",T15<S15,"一部約定") -> 未約定 | AC15: =IF(Z15="応札",IF($AA15="未約定",IF(OR($G15=List!$F$2:$F$3), $O15*$S15, $M15*$S15),IF($AA15="一部約定",IF(OR($G15=List!$F$2:$F$3), $O15*($S15-$T15), $M15*($S15-$T15)),"")),"") ->  | AD15: 0
U16: 0 | V16: 0 | X16: =IF(ISNUMBER(B16), IF(COUNTIF($B$10:$B16, B16)=COUNTIF($B:$B, B16), "1", "0"), "") ->  | Y16: =IF(OR($C16=List!$C$5,$C16=List!$C$6,$C16=List!$C$11,$C16=List!$C$13), 1, 0) -> 0 | Z16: =_xlfn.IFS(S16="","未応札",S16>0,"応札") -> 未応札 | AA16: =_xlfn.IFS(T16=0,"未約定",T16=S16,"約定",T16<S16,"一部約定") -> 未約定 | AC16: =IF(Z16="応札",IF($AA16="未約定",IF(OR($G16=List!$F$2:$F$3), $O16*$S16, $M16*$S16),IF($AA16="一部約定",IF(OR($G16=List!$F$2:$F$3), $O16*($S16-$T16), $M16*($S16-$T16)),"")),"") ->  | AD16: 0
U17: 0 | V17: 0 | X17: =IF(ISNUMBER(B17), IF(COUNTIF($B$10:$B17, B17)=COUNTIF($B:$B, B17), "1", "0"), "") ->  | Y17: =IF(OR($C17=List!$C$5,$C17=List!$C$6,$C17=List!$C$11,$C17=List!$C$13), 1, 0) -> 0 | Z17: =_xlfn.IFS(S17="","未応札",S17>0,"応札") -> 未応札 | AA17: =_xlfn.IFS(T17=0,"未約定",T17=S17,"約定",T17<S17,"一部約定") -> 未約定 | AC17: =IF(Z17="応札",IF($AA17="未約定",IF(OR($G17=List!$F$2:$F$3), $O17*$S17, $M17*$S17),IF($AA17="一部約定",IF(OR($G17=List!$F$2:$F$3), $O17*($S17-$T17), $M17*($S17-$T17)),"")),"") ->  | AD17: 0
U18: 0 | V18: 0 | X18: =IF(ISNUMBER(B18), IF(COUNTIF($B$10:$B18, B18)=COUNTIF($B:$B, B18), "1", "0"), "") ->  | Y18: =IF(OR($C18=List!$C$5,$C18=List!$C$6,$C18=List!$C$11,$C18=List!$C$13), 1, 0) -> 0 | Z18: =_xlfn.IFS(S18="","未応札",S18>0,"応札") -> 未応札 | AA18: =_xlfn.IFS(T18=0,"未約定",T18=S18,"約定",T18<S18,"一部約定") -> 未約定 | AC18: =IF(Z18="応札",IF($AA18="未約定",IF(OR($G18=List!$F$2:$F$3), $O18*$S18, $M18*$S18),IF($AA18="一部約定",IF(OR($G18=List!$F$2:$F$3), $O18*($S18-$T18), $M18*($S18-$T18)),"")),"") ->  | AD18: 0
U19: 0 | V19: 0 | X19: =IF(ISNUMBER(B19), IF(COUNTIF($B$10:$B19, B19)=COUNTIF($B:$B, B19), "1", "0"), "") ->  | Y19: =IF(OR($C19=List!$C$5,$C19=List!$C$6,$C19=List!$C$11,$C19=List!$C$13), 1, 0) -> 0 | Z19: =_xlfn.IFS(S19="","未応札",S19>0,"応札") -> 未応札 | AA19: =_xlfn.IFS(T19=0,"未約定",T19=S19,"約定",T19<S19,"一部約定") -> 未約定 | AC19: =IF(Z19="応札",IF($AA19="未約定",IF(OR($G19=List!$F$2:$F$3), $O19*$S19, $M19*$S19),IF($AA19="一部約定",IF(OR($G19=List!$F$2:$F$3), $O19*($S19-$T19), $M19*($S19-$T19)),"")),"") ->  | AD19: 0
U20: 0 | V20: 0 | X20: =IF(ISNUMBER(B20), IF(COUNTIF($B$10:$B20, B20)=COUNTIF($B:$B, B20), "1", "0"), "") ->  | Y20: =IF(OR($C20=List!$C$5,$C20=List!$C$6,$C20=List!$C$11,$C20=List!$C$13), 1, 0) -> 0 | Z20: =_xlfn.IFS(S20="","未応札",S20>0,"応札") -> 未応札 | AA20: =_xlfn.IFS(T20=0,"未約定",T20=S20,"約定",T20<S20,"一部約定") -> 未約定 | AC20: =IF(Z20="応札",IF($AA20="未約定",IF(OR($G20=List!$F$2:$F$3), $O20*$S20, $M20*$S20),IF($AA20="一部約定",IF(OR($G20=List!$F$2:$F$3), $O20*($S20-$T20), $M20*($S20-$T20)),"")),"") ->  | AD20: 0
U21: 0 | V21: 0 | X21: =IF(ISNUMBER(B21), IF(COUNTIF($B$10:$B21, B21)=COUNTIF($B:$B, B21), "1", "0"), "") ->  | Y21: =IF(OR($C21=List!$C$5,$C21=List!$C$6,$C21=List!$C$11,$C21=List!$C$13), 1, 0) -> 0 | Z21: =_xlfn.IFS(S21="","未応札",S21>0,"応札") -> 未応札 | AA21: =_xlfn.IFS(T21=0,"未約定",T21=S21,"約定",T21<S21,"一部約定") -> 未約定 | AC21: =IF(Z21="応札",IF($AA21="未約定",IF(OR($G21=List!$F$2:$F$3), $O21*$S21, $M21*$S21),IF($AA21="一部約定",IF(OR($G21=List!$F$2:$F$3), $O21*($S21-$T21), $M21*($S21-$T21)),"")),"") ->  | AD21: 0
U22: 0 | V22: 0 | X22: =IF(ISNUMBER(B22), IF(COUNTIF($B$10:$B22, B22)=COUNTIF($B:$B, B22), "1", "0"), "") ->  | Y22: =IF(OR($C22=List!$C$5,$C22=List!$C$6,$C22=List!$C$11,$C22=List!$C$13), 1, 0) -> 0 | Z22: =_xlfn.IFS(S22="","未応札",S22>0,"応札") -> 未応札 | AA22: =_xlfn.IFS(T22=0,"未約定",T22=S22,"約定",T22<S22,"一部約定") -> 未約定 | AC22: =IF(Z22="応札",IF($AA22="未約定",IF(OR($G22=List!$F$2:$F$3), $O22*$S22, $M22*$S22),IF($AA22="一部約定",IF(OR($G22=List!$F$2:$F$3), $O22*($S22-$T22), $M22*($S22-$T22)),"")),"") ->  | AD22: 0
U23: 0 | V23: 0 | X23: =IF(ISNUMBER(B23), IF(COUNTIF($B$10:$B23, B23)=COUNTIF($B:$B, B23), "1", "0"), "") ->  | Y23: =IF(OR($C23=List!$C$5,$C23=List!$C$6,$C23=List!$C$11,$C23=List!$C$13), 1, 0) -> 0 | Z23: =_xlfn.IFS(S23="","未応札",S23>0,"応札") -> 未応札 | AA23: =_xlfn.IFS(T23=0,"未約定",T23=S23,"約定",T23<S23,"一部約定") -> 未約定 | AC23: =IF(Z23="応札",IF($AA23="未約定",IF(OR($G23=List!$F$2:$F$3), $O23*$S23, $M23*$S23),IF($AA23="一部約定",IF(OR($G23=List!$F$2:$F$3), $O23*($S23-$T23), $M23*($S23-$T23)),"")),"") ->  | AD23: 0
U24: 0 | V24: 0 | X24: =IF(ISNUMBER(B24), IF(COUNTIF($B$10:$B24, B24)=COUNTIF($B:$B, B24), "1", "0"), "") ->  | Y24: =IF(OR($C24=List!$C$5,$C24=List!$C$6,$C24=List!$C$11,$C24=List!$C$13), 1, 0) -> 0 | Z24: =_xlfn.IFS(S24="","未応札",S24>0,"応札") -> 未応札 | AA24: =_xlfn.IFS(T24=0,"未約定",T24=S24,"約定",T24<S24,"一部約定") -> 未約定 | AC24: =IF(Z24="応札",IF($AA24="未約定",IF(OR($G24=List!$F$2:$F$3), $O24*$S24, $M24*$S24),IF($AA24="一部約定",IF(OR($G24=List!$F$2:$F$3), $O24*($S24-$T24), $M24*($S24-$T24)),"")),"") ->  | AD24: 0
U25: 0 | V25: 0 | X25: =IF(ISNUMBER(B25), IF(COUNTIF($B$10:$B25, B25)=COUNTIF($B:$B, B25), "1", "0"), "") ->  | Y25: =IF(OR($C25=List!$C$5,$C25=List!$C$6,$C25=List!$C$11,$C25=List!$C$13), 1, 0) -> 0 | Z25: =_xlfn.IFS(S25="","未応札",S25>0,"応札") -> 未応札 | AA25: =_xlfn.IFS(T25=0,"未約定",T25=S25,"約定",T25<S25,"一部約定") -> 未約定 | AC25: =IF(Z25="応札",IF($AA25="未約定",IF(OR($G25=List!$F$2:$F$3), $O25*$S25, $M25*$S25),IF($AA25="一部約定",IF(OR($G25=List!$F$2:$F$3), $O25*($S25-$T25), $M25*($S25-$T25)),"")),"") ->  | AD25: 0
U26: 0 | V26: 0 | X26: =IF(ISNUMBER(B26), IF(COUNTIF($B$10:$B26, B26)=COUNTIF($B:$B, B26), "1", "0"), "") ->  | Y26: =IF(OR($C26=List!$C$5,$C26=List!$C$6,$C26=List!$C$11,$C26=List!$C$13), 1, 0) -> 0 | Z26: =_xlfn.IFS(S26="","未応札",S26>0,"応札") -> 未応札 | AA26: =_xlfn.IFS(T26=0,"未約定",T26=S26,"約定",T26<S26,"一部約定") -> 未約定 | AC26: =IF(Z26="応札",IF($AA26="未約定",IF(OR($G26=List!$F$2:$F$3), $O26*$S26, $M26*$S26),IF($AA26="一部約定",IF(OR($G26=List!$F$2:$F$3), $O26*($S26-$T26), $M26*($S26-$T26)),"")),"") ->  | AD26: 0
U27: 0 | V27: 0 | X27: =IF(ISNUMBER(B27), IF(COUNTIF($B$10:$B27, B27)=COUNTIF($B:$B, B27), "1", "0"), "") ->  | Y27: =IF(OR($C27=List!$C$5,$C27=List!$C$6,$C27=List!$C$11,$C27=List!$C$13), 1, 0) -> 0 | Z27: =_xlfn.IFS(S27="","未応札",S27>0,"応札") -> 未応札 | AA27: =_xlfn.IFS(T27=0,"未約定",T27=S27,"約定",T27<S27,"一部約定") -> 未約定 | AC27: =IF(Z27="応札",IF($AA27="未約定",IF(OR($G27=List!$F$2:$F$3), $O27*$S27, $M27*$S27),IF($AA27="一部約定",IF(OR($G27=List!$F$2:$F$3), $O27*($S27-$T27), $M27*($S27-$T27)),"")),"") ->  | AD27: 0
U28: 0 | V28: 0 | X28: =IF(ISNUMBER(B28), IF(COUNTIF($B$10:$B28, B28)=COUNTIF($B:$B, B28), "1", "0"), "") ->  | Y28: =IF(OR($C28=List!$C$5,$C28=List!$C$6,$C28=List!$C$11,$C28=List!$C$13), 1, 0) -> 0 | Z28: =_xlfn.IFS(S28="","未応札",S28>0,"応札") -> 未応札 | AA28: =_xlfn.IFS(T28=0,"未約定",T28=S28,"約定",T28<S28,"一部約定") -> 未約定 | AC28: =IF(Z28="応札",IF($AA28="未約定",IF(OR($G28=List!$F$2:$F$3), $O28*$S28, $M28*$S28),IF($AA28="一部約定",IF(OR($G28=List!$F$2:$F$3), $O28*($S28-$T28), $M28*($S28-$T28)),"")),"") ->  | AD28: 0
U29: 0 | V29: 0 | X29: =IF(ISNUMBER(B29), IF(COUNTIF($B$10:$B29, B29)=COUNTIF($B:$B, B29), "1", "0"), "") ->  | Y29: =IF(OR($C29=List!$C$5,$C29=List!$C$6,$C29=List!$C$11,$C29=List!$C$13), 1, 0) -> 0 | Z29: =_xlfn.IFS(S29="","未応札",S29>0,"応札") -> 未応札 | AA29: =_xlfn.IFS(T29=0,"未約定",T29=S29,"約定",T29<S29,"一部約定") -> 未約定 | AC29: =IF(Z29="応札",IF($AA29="未約定",IF(OR($G29=List!$F$2:$F$3), $O29*$S29, $M29*$S29),IF($AA29="一部約定",IF(OR($G29=List!$F$2:$F$3), $O29*($S29-$T29), $M29*($S29-$T29)),"")),"") ->  | AD29: 0
U30: 0 | V30: 0 | X30: =IF(ISNUMBER(B30), IF(COUNTIF($B$10:$B30, B30)=COUNTIF($B:$B, B30), "1", "0"), "") ->  | Y30: =IF(OR($C30=List!$C$5,$C30=List!$C$6,$C30=List!$C$11,$C30=List!$C$13), 1, 0) -> 0 | Z30: =_xlfn.IFS(S30="","未応札",S30>0,"応札") -> 未応札 | AA30: =_xlfn.IFS(T30=0,"未約定",T30=S30,"約定",T30<S30,"一部約定") -> 未約定 | AC30: =IF(Z30="応札",IF($AA30="未約定",IF(OR($G30=List!$F$2:$F$3), $O30*$S30, $M30*$S30),IF($AA30="一部約定",IF(OR($G30=List!$F$2:$F$3), $O30*($S30-$T30), $M30*($S30-$T30)),"")),"") ->  | AD30: 0
U31: 0 | V31: 0 | X31: =IF(ISNUMBER(B31), IF(COUNTIF($B$10:$B31, B31)=COUNTIF($B:$B, B31), "1", "0"), "") ->  | Y31: =IF(OR($C31=List!$C$5,$C31=List!$C$6,$C31=List!$C$11,$C31=List!$C$13), 1, 0) -> 0 | Z31: =_xlfn.IFS(S31="","未応札",S31>0,"応札") -> 未応札 | AA31: =_xlfn.IFS(T31=0,"未約定",T31=S31,"約定",T31<S31,"一部約定") -> 未約定 | AC31: =IF(Z31="応札",IF($AA31="未約定",IF(OR($G31=List!$F$2:$F$3), $O31*$S31, $M31*$S31),IF($AA31="一部約定",IF(OR($G31=List!$F$2:$F$3), $O31*($S31-$T31), $M31*($S31-$T31)),"")),"") ->  | AD31: 0
U32: 0 | V32: 0 | X32: =IF(ISNUMBER(B32), IF(COUNTIF($B$10:$B32, B32)=COUNTIF($B:$B, B32), "1", "0"), "") ->  | Y32: =IF(OR($C32=List!$C$5,$C32=List!$C$6,$C32=List!$C$11,$C32=List!$C$13), 1, 0) -> 0 | Z32: =_xlfn.IFS(S32="","未応札",S32>0,"応札") -> 未応札 | AA32: =_xlfn.IFS(T32=0,"未約定",T32=S32,"約定",T32<S32,"一部約定") -> 未約定 | AC32: =IF(Z32="応札",IF($AA32="未約定",IF(OR($G32=List!$F$2:$F$3), $O32*$S32, $M32*$S32),IF($AA32="一部約定",IF(OR($G32=List!$F$2:$F$3), $O32*($S32-$T32), $M32*($S32-$T32)),"")),"") ->  | AD32: 0
U33: 0 | V33: 0 | X33: =IF(ISNUMBER(B33), IF(COUNTIF($B$10:$B33, B33)=COUNTIF($B:$B, B33), "1", "0"), "") ->  | Y33: =IF(OR($C33=List!$C$5,$C33=List!$C$6,$C33=List!$C$11,$C33=List!$C$13), 1, 0) -> 0 | Z33: =_xlfn.IFS(S33="","未応札",S33>0,"応札") -> 未応札 | AA33: =_xlfn.IFS(T33=0,"未約定",T33=S33,"約定",T33<S33,"一部約定") -> 未約定 | AC33: =IF(Z33="応札",IF($AA33="未約定",IF(OR($G33=List!$F$2:$F$3), $O33*$S33, $M33*$S33),IF($AA33="一部約定",IF(OR($G33=List!$F$2:$F$3), $O33*($S33-$T33), $M33*($S33-$T33)),"")),"") ->  | AD33: 0
U34: 0 | V34: 0 | X34: =IF(ISNUMBER(B34), IF(COUNTIF($B$10:$B34, B34)=COUNTIF($B:$B, B34), "1", "0"), "") ->  | Y34: =IF(OR($C34=List!$C$5,$C34=List!$C$6,$C34=List!$C$11,$C34=List!$C$13), 1, 0) -> 0 | Z34: =_xlfn.IFS(S34="","未応札",S34>0,"応札") -> 未応札 | AA34: =_xlfn.IFS(T34=0,"未約定",T34=S34,"約定",T34<S34,"一部約定") -> 未約定 | AC34: =IF(Z34="応札",IF($AA34="未約定",IF(OR($G34=List!$F$2:$F$3), $O34*$S34, $M34*$S34),IF($AA34="一部約定",IF(OR($G34=List!$F$2:$F$3), $O34*($S34-$T34), $M34*($S34-$T34)),"")),"") ->  | AD34: 0
U35: 0 | V35: 0 | X35: =IF(ISNUMBER(B35), IF(COUNTIF($B$10:$B35, B35)=COUNTIF($B:$B, B35), "1", "0"), "") ->  | Y35: =IF(OR($C35=List!$C$5,$C35=List!$C$6,$C35=List!$C$11,$C35=List!$C$13), 1, 0) -> 0 | Z35: =_xlfn.IFS(S35="","未応札",S35>0,"応札") -> 未応札 | AA35: =_xlfn.IFS(T35=0,"未約定",T35=S35,"約定",T35<S35,"一部約定") -> 未約定 | AC35: =IF(Z35="応札",IF($AA35="未約定",IF(OR($G35=List!$F$2:$F$3), $O35*$S35, $M35*$S35),IF($AA35="一部約定",IF(OR($G35=List!$F$2:$F$3), $O35*($S35-$T35), $M35*($S35-$T35)),"")),"") ->  | AD35: 0
U36: 0 | V36: 0 | X36: =IF(ISNUMBER(B36), IF(COUNTIF($B$10:$B36, B36)=COUNTIF($B:$B, B36), "1", "0"), "") ->  | Y36: =IF(OR($C36=List!$C$5,$C36=List!$C$6,$C36=List!$C$11,$C36=List!$C$13), 1, 0) -> 0 | Z36: =_xlfn.IFS(S36="","未応札",S36>0,"応札") -> 未応札 | AA36: =_xlfn.IFS(T36=0,"未約定",T36=S36,"約定",T36<S36,"一部約定") -> 未約定 | AC36: =IF(Z36="応札",IF($AA36="未約定",IF(OR($G36=List!$F$2:$F$3), $O36*$S36, $M36*$S36),IF($AA36="一部約定",IF(OR($G36=List!$F$2:$F$3), $O36*($S36-$T36), $M36*($S36-$T36)),"")),"") ->  | AD36: 0
U37: 0 | V37: 0 | X37: =IF(ISNUMBER(B37), IF(COUNTIF($B$10:$B37, B37)=COUNTIF($B:$B, B37), "1", "0"), "") ->  | Y37: =IF(OR($C37=List!$C$5,$C37=List!$C$6,$C37=List!$C$11,$C37=List!$C$13), 1, 0) -> 0 | Z37: =_xlfn.IFS(S37="","未応札",S37>0,"応札") -> 未応札 | AA37: =_xlfn.IFS(T37=0,"未約定",T37=S37,"約定",T37<S37,"一部約定") -> 未約定 | AC37: =IF(Z37="応札",IF($AA37="未約定",IF(OR($G37=List!$F$2:$F$3), $O37*$S37, $M37*$S37),IF($AA37="一部約定",IF(OR($G37=List!$F$2:$F$3), $O37*($S37-$T37), $M37*($S37-$T37)),"")),"") ->  | AD37: 0
U38: 0 | V38: 0 | X38: =IF(ISNUMBER(B38), IF(COUNTIF($B$10:$B38, B38)=COUNTIF($B:$B, B38), "1", "0"), "") ->  | Y38: =IF(OR($C38=List!$C$5,$C38=List!$C$6,$C38=List!$C$11,$C38=List!$C$13), 1, 0) -> 0 | Z38: =_xlfn.IFS(S38="","未応札",S38>0,"応札") -> 未応札 | AA38: =_xlfn.IFS(T38=0,"未約定",T38=S38,"約定",T38<S38,"一部約定") -> 未約定 | AC38: =IF(Z38="応札",IF($AA38="未約定",IF(OR($G38=List!$F$2:$F$3), $O38*$S38, $M38*$S38),IF($AA38="一部約定",IF(OR($G38=List!$F$2:$F$3), $O38*($S38-$T38), $M38*($S38-$T38)),"")),"") ->  | AD38: 0
U39: 0 | V39: 0 | X39: =IF(ISNUMBER(B39), IF(COUNTIF($B$10:$B39, B39)=COUNTIF($B:$B, B39), "1", "0"), "") ->  | Y39: =IF(OR($C39=List!$C$5,$C39=List!$C$6,$C39=List!$C$11,$C39=List!$C$13), 1, 0) -> 0 | Z39: =_xlfn.IFS(S39="","未応札",S39>0,"応札") -> 未応札 | AA39: =_xlfn.IFS(T39=0,"未約定",T39=S39,"約定",T39<S39,"一部約定") -> 未約定 | AC39: =IF(Z39="応札",IF($AA39="未約定",IF(OR($G39=List!$F$2:$F$3), $O39*$S39, $M39*$S39),IF($AA39="一部約定",IF(OR($G39=List!$F$2:$F$3), $O39*($S39-$T39), $M39*($S39-$T39)),"")),"") ->  | AD39: 0
U40: 0 | V40: 0 | X40: =IF(ISNUMBER(B40), IF(COUNTIF($B$10:$B40, B40)=COUNTIF($B:$B, B40), "1", "0"), "") ->  | Y40: =IF(OR($C40=List!$C$5,$C40=List!$C$6,$C40=List!$C$11,$C40=List!$C$13), 1, 0) -> 0 | Z40: =_xlfn.IFS(S40="","未応札",S40>0,"応札") -> 未応札 | AA40: =_xlfn.IFS(T40=0,"未約定",T40=S40,"約定",T40<S40,"一部約定") -> 未約定 | AC40: =IF(Z40="応札",IF($AA40="未約定",IF(OR($G40=List!$F$2:$F$3), $O40*$S40, $M40*$S40),IF($AA40="一部約定",IF(OR($G40=List!$F$2:$F$3), $O40*($S40-$T40), $M40*($S40-$T40)),"")),"") ->  | AD40: 0
U41: 0 | V41: 0 | X41: =IF(ISNUMBER(B41), IF(COUNTIF($B$10:$B41, B41)=COUNTIF($B:$B, B41), "1", "0"), "") ->  | Y41: =IF(OR($C41=List!$C$5,$C41=List!$C$6,$C41=List!$C$11,$C41=List!$C$13), 1, 0) -> 0 | Z41: =_xlfn.IFS(S41="","未応札",S41>0,"応札") -> 未応札 | AA41: =_xlfn.IFS(T41=0,"未約定",T41=S41,"約定",T41<S41,"一部約定") -> 未約定 | AC41: =IF(Z41="応札",IF($AA41="未約定",IF(OR($G41=List!$F$2:$F$3), $O41*$S41, $M41*$S41),IF($AA41="一部約定",IF(OR($G41=List!$F$2:$F$3), $O41*($S41-$T41), $M41*($S41-$T41)),"")),"") ->  | AD41: 0
U42: 0 | V42: 0 | X42: =IF(ISNUMBER(B42), IF(COUNTIF($B$10:$B42, B42)=COUNTIF($B:$B, B42), "1", "0"), "") ->  | Y42: =IF(OR($C42=List!$C$5,$C42=List!$C$6,$C42=List!$C$11,$C42=List!$C$13), 1, 0) -> 0 | Z42: =_xlfn.IFS(S42="","未応札",S42>0,"応札") -> 未応札 | AA42: =_xlfn.IFS(T42=0,"未約定",T42=S42,"約定",T42<S42,"一部約定") -> 未約定 | AC42: =IF(Z42="応札",IF($AA42="未約定",IF(OR($G42=List!$F$2:$F$3), $O42*$S42, $M42*$S42),IF($AA42="一部約定",IF(OR($G42=List!$F$2:$F$3), $O42*($S42-$T42), $M42*($S42-$T42)),"")),"") ->  | AD42: 0
U43: 0 | V43: 0 | X43: =IF(ISNUMBER(B43), IF(COUNTIF($B$10:$B43, B43)=COUNTIF($B:$B, B43), "1", "0"), "") ->  | Y43: =IF(OR($C43=List!$C$5,$C43=List!$C$6,$C43=List!$C$11,$C43=List!$C$13), 1, 0) -> 0 | Z43: =_xlfn.IFS(S43="","未応札",S43>0,"応札") -> 未応札 | AA43: =_xlfn.IFS(T43=0,"未約定",T43=S43,"約定",T43<S43,"一部約定") -> 未約定 | AC43: =IF(Z43="応札",IF($AA43="未約定",IF(OR($G43=List!$F$2:$F$3), $O43*$S43, $M43*$S43),IF($AA43="一部約定",IF(OR($G43=List!$F$2:$F$3), $O43*($S43-$T43), $M43*($S43-$T43)),"")),"") ->  | AD43: 0
U44: 0 | V44: 0 | X44: =IF(ISNUMBER(B44), IF(COUNTIF($B$10:$B44, B44)=COUNTIF($B:$B, B44), "1", "0"), "") ->  | Y44: =IF(OR($C44=List!$C$5,$C44=List!$C$6,$C44=List!$C$11,$C44=List!$C$13), 1, 0) -> 0 | Z44: =_xlfn.IFS(S44="","未応札",S44>0,"応札") -> 未応札 | AA44: =_xlfn.IFS(T44=0,"未約定",T44=S44,"約定",T44<S44,"一部約定") -> 未約定 | AC44: =IF(Z44="応札",IF($AA44="未約定",IF(OR($G44=List!$F$2:$F$3), $O44*$S44, $M44*$S44),IF($AA44="一部約定",IF(OR($G44=List!$F$2:$F$3), $O44*($S44-$T44), $M44*($S44-$T44)),"")),"") ->  | AD44: 0
U45: 0 | V45: 0 | X45: =IF(ISNUMBER(B45), IF(COUNTIF($B$10:$B45, B45)=COUNTIF($B:$B, B45), "1", "0"), "") ->  | Y45: =IF(OR($C45=List!$C$5,$C45=List!$C$6,$C45=List!$C$11,$C45=List!$C$13), 1, 0) -> 0 | Z45: =_xlfn.IFS(S45="","未応札",S45>0,"応札") -> 未応札 | AA45: =_xlfn.IFS(T45=0,"未約定",T45=S45,"約定",T45<S45,"一部約定") -> 未約定 | AC45: =IF(Z45="応札",IF($AA45="未約定",IF(OR($G45=List!$F$2:$F$3), $O45*$S45, $M45*$S45),IF($AA45="一部約定",IF(OR($G45=List!$F$2:$F$3), $O45*($S45-$T45), $M45*($S45-$T45)),"")),"") ->  | AD45: 0

Sheet 記載例_パターン⑥約定間全量不落(余力活用契約で停止・再起動）
B2: 取引年月 | C2: 202504
B3: MMSコード | C3: A000
B4: 対象エリア | C4: 3：東京
B5: ファイル名称 | C5: =$C$2&"_"&$C$3&"_"&LEFT($C$4,1)&"_不約定単価内訳兼起動費事後精算情報様式" -> 202504_A000_3_不約定単価内訳兼起動費事後精算情報様式
B7: =入力シート!B7 -> 事象NO | C7: =入力シート!C7 -> 精算パターン | D7: =入力シート!D7 -> 余力活用契約対象リソース区分 | E7: =入力シート!E7 -> 取引日 | F7: =入力シート!F7 -> 時刻コード | G7: =入力シート!G7 -> 持ち下げ供出機区分 | H7: =入力シート!H7 -> 系統コード | I7: =入力シート!I7 -> 商品区分 | J7: =入力シート!J7 -> 売り入札ID | K7: =入力シート!K7 -> 約定番号 | L7: =入力シート!L7 -> 約定識別ID | M7: =入力シート!M7 -> MMS起動費単価 | N7: =入力シート!N7 -> 加重平均前のΔkW単価 | O7: =入力シート!O7 -> 加重平均起動費未回収分相当額 | P7: =入力シート!P7 -> 最低出力までの発電電力量の機会費用単価 | Q7: =入力シート!Q7 -> 発電計画 | R7: =入力シート!R7 -> 最低出力 | S7: =入力シート!S7 -> 約定希望ΔkW | T7: =入力シート!T7 -> ΔkW約定量 | U7: =入力シート!U7 -> 最低出力までの発電電力量の機会費用単価×(約定希望ΔkW-ΔkW約定量) | V7: =入力シート!V7 -> 最低出力維持した場合の費用合計 | W7: =入力シート!W7 -> 停止・再起動にかかる費用 | X7: =入力シート!X7 -> 事象毎の最終行 | Y7: =入力シート!Y7 -> 妥当性確認 | Z7: =入力シート!Z7 -> 応札状況 | AA7: =入力シート!AA7 -> 約定状況 | AB7: =入力シート!AB7 -> 並解列状態(実績) | AC7: =入力シート!AC7 -> 起動費未回収分相当額 | AD7: =入力シート!AD7 -> 最低出力までの発電電力量の機会費用 | AE7: =入力シート!AE7 -> 停止・再起動にかかる費用 | AH7: =入力シート!AH7 -> 精算対象 申請小計 | AI7: =入力シート!AI7 -> 起動費未回収分相当額 | AJ7: =入力シート!AJ7 -> 最低出力までの発電電力量の機会費用 | AK7: =入力シート!AK7 -> 停止・再起動にかかる費用 | AL7: =入力シート!AL7 -> 合計
M8: （円/kW） | N8: （円/kW） | O8: （円/kW） | P8: （円/kW） | Q8: （kWh） | R8: （kWh） | S8: （kW） | T8: （kW） | U8: （円） | V8: （円） | W8: （円） | AC8: （円） | AD8: （円） | AE8: （円） | AI8: （円） | AJ8: （円） | AK8: （円） | AL8: （円）
B9: =IF(入力シート!B9<>"",入力シート!B9,"") -> ※起動費未回収が発生した事象ごとにNOを付定すること。 | C9: =IF(入力シート!C9<>"",入力シート!C9,"") ->  | D9: =IF(入力シート!D9<>"",入力シート!D9,"") -> ※対象の場合は「１」，非対象の場合は「０」を入力 | E9: =IF(入力シート!E9<>"",入力シート!E9,"") ->  | F9: =IF(入力シート!F9<>"",入力シート!F9,"") ->  | G9: =IF(入力シート!G9<>"",入力シート!G9,"") -> ※持ち下げ供出機を加重平均で入札した場合に選択 | H9: =IF(入力シート!H9<>"",入力シート!H9,"") ->  | I9: =IF(入力シート!I9<>"",入力シート!I9,"") ->  | J9: =IF(入力シート!J9<>"",入力シート!J9,"") ->  | K9: =IF(入力シート!K9<>"",入力シート!K9,"") -> ※１持ち下げ供出機区分が該当する場合，起動供出機の約定番号を記載すること ※２同一時刻コードにおいて，複数の約定番号がある場合は，いずれか1つを記載すること。 | L9: =IF(入力シート!L9<>"",入力シート!L9,"") -> ※1持ち下げ供出機区分に該当する場合，起動供出機の約定識別IDを記載すること ※2同一時刻コードにおいて，約定番号に紐づく約定識別IDが複数存在する場合は，いずれか1つを記載すること ※3電源差し替えを実施した場合，差替え元の約定識別IDを記載すること(持ち下げ供出機区分に該当する場合,起動供出機の初回約定識別IDを記載すること) | M9: =IF(入力シート!M9<>"",入力シート!M9,"") -> ※MMSに登録された起動費単価分を原則用いること | N9: =IF(入力シート!N9<>"",入力シート!N9,"") -> ※持ち下げ供出機区分が該当する場合に記載すること | O9: =IF(入力シート!O9<>"",入力シート!O9,"") -> ※ 持ち下げ供出機区分が該当する場合に記載すること | P9: =IF(入力シート!P9<>"",入力シート!P9,"") -> ※１卸電力市場価格（スポット市場価格：実績）と限界費用との差額を用いること ※２加重平均で入札した場合は，最低出力までの発電電力量の加重平均機会費用相当額を記載すること ※３加重平均で入札し，持ち下げ供出機の情報を記載する場合は，持ち下げ供出機のΔkW単価に含めた起動供出機の最低出力までの発電電力量の加重平均機会費用相当額を記載すること。ただし，精算パターンが「持ち下げ・起動供出機:全量不落」の場合は持ち下げ供出機のみが不落となったときに記載すること。 | Q9: =IF(入力シート!Q9<>"",入力シート!Q9,"") ->  | R9: =IF(入力シート!R9<>"",入力シート!R9,"") ->  | S9: =IF(入力シート!S9<>"",入力シート!S9,"") ->  | T9: =IF(入力シート!T9<>"",入力シート!T9,"") ->  | U9: =IF(入力シート!U9<>"",入力シート!U9,"") -> ※加重平均で入札した場合は，最低出力までの発電電力量の加重平均機会費用相当額×(約定希望ΔkW-ΔkW約定量) | V9: =IF(入力シート!V9<>"",入力シート!V9,"") -> ※精算パターン「約定間全量不落(約定間停止・再起動)」を選択した場合，事象NOごとの最終行に合計値表示 | W9: =IF(入力シート!W9<>"",入力シート!W9,"") -> ※１停止・再起動費は最後のブロックに記載すること ※２ 余力活用契約を締結している電源でBG計画上停止・再起動としていたが、実績は停止しなかった場合も、BG計画上の「停止・再起動費」を記載すること | X9: =IF(入力シート!X9<>"",入力シート!X9,"") ->  | Y9: =IF(入力シート!Y9<>"",入力シート!Y9,"") ->  | Z9: =IF(入力シート!Z9<>"",入力シート!Z9,"") ->  | AA9: =IF(入力シート!AA9<>"",入力シート!AA9,"") ->  | AB9: =IF(入力シート!AB9<>"",入力シート!AB9,"") ->  | AC9: =IF(入力シート!AC9<>"",入力シート!AC9,"") -> ※加重平均で入札した場合は，加重平均起動費未回収分相当額 | AD9: =IF(入力シート!AD9<>"",入力シート!AD9,"") -> ※加重平均で入札した場合は，最低出力までの発電電力量の加重平均機会費用相当額 | AE9: =IF(入力シート!AE9<>"",入力シート!AE9,"") -> ※約定間全量不落時において，停止・再起動するよりも，最低出力維持した方が経済的だった場合，後者を事後精算対象とする。 | AI9: =SUM($AC10:$AC2831) -> 640000 | AJ9: =SUM($AD10:$AD2831) -> 2000000 | AK9: =SUM($AE10:$AE2831) -> 0 | AL9: =ROUNDDOWN(SUM(AI9:AK9),0) -> 2640000
B10: 1 | C10: 6：約定間全量不落（余力活用契約で停止・再起動） | D10: 1：対象 | E10: 20250401 | F10: 4 | H10: ○C○○○ | I10: 2：三次調整力② | J10: ○○○○○○ | M10: 8 | P10: 25 | Q10: 20000 | R10: 20000 | S10: 40000 | T10: 0 | U10: =P10*(S10-T10) -> 1000000 | V10: =IF(W10 > 0, SUMIFS(U:U, B:B, B10, Y:Y, 1), 0) -> 0 | X10: =IF(ISNUMBER(B10), IF(COUNTIF($B$10:$B10, B10)=COUNTIF($B:$B, B10), "1", "0"), "") -> 0 | Y10: =IF(OR($C10=List!$C$5,$C10=List!$C$6,$C10=List!$C$11,$C10=List!$C$13), 1, 0) -> 0 | Z10: =_xlfn.IFS(S10="","未応札",S10>0,"応札") -> 応札 | AA10: =_xlfn.IFS(T10=0,"未約定",T10=S10,"約定",T10<S10,"一部約定") -> 未約定 | AB10: 2：解列 | AC10: =IF(Z10="応札",IF($AA10="未約定",IF(OR($G10=List!$F$2:$F$3), $O10*$S10, $M10*$S10),IF($AA10="一部約定",IF(OR($G10=List!$F$2:$F$3), $O10*($S10-$T10), $M10*($S10-$T10)),"")),"") -> 320000 | AD10: =IF(ISBLANK($Q10),IF(OR($AA10="一部約定",$AA10="未約定"),$P10*($S10-$T10),""),IF($Q10=0,"", IF(OR($AA10="一部約定", $AA10="未約定"), $P10*($S10-$T10), ""))) -> 1000000 | AE10: =IF(AND($Z10="応札",$AA10="未約定"), IF($V10<>0, IF($W10<$V10, IF($W10<>0, $W10, ""), IF($V10<>0, $V10, "")), IF($W10<>0, $W10, "")), "") -> 
B11: 1 | C11: 6：約定間全量不落（余力活用契約で停止・再起動） | D11: 1：対象 | E11: 20250401 | F11: 5 | H11: ○C○○○ | I11: 2：三次調整力② | J11: ○○○○○○ | M11: 8 | P11: 25 | Q11: 20000 | R11: 20000 | S11: 40000 | T11: 0 | U11: =P11*(S11-T11) -> 1000000 | V11: 0 | X11: =IF(ISNUMBER(B11), IF(COUNTIF($B$10:$B11, B11)=COUNTIF($B:$B, B11), "1", "0"), "") -> 1 | Y11: =IF(OR($C11=List!$C$5,$C11=List!$C$6,$C11=List!$C$11,$C11=List!$C$13), 1, 0) -> 0 | Z11: =_xlfn.IFS(S11="","未応札",S11>0,"応札") -> 応札 | AA11: =_xlfn.IFS(T11=0,"未約定",T11=S11,"約定",T11<S11,"一部約定") -> 未約定 | AB11: 2：解列 | AC11: =IF(Z11="応札",IF($AA11="未約定",IF(OR($G11=List!$F$2:$F$3), $O11*$S11, $M11*$S11),IF($AA11="一部約定",IF(OR($G11=List!$F$2:$F$3), $O11*($S11-$T11), $M11*($S11-$T11)),"")),"") -> 320000 | AD11: =IF(ISBLANK($Q11),IF(OR($AA11="一部約定",$AA11="未約定"),$P11*($S11-$T11),""),IF($Q11=0,"", IF(OR($AA11="一部約定", $AA11="未約定"), $P11*($S11-$T11), ""))) -> 1000000 | AE11: =IF(AND($Z11="応札",$AA11="未約定"), IF($V11<>0, IF($W11<$V11, IF($W11<>0, $W11, ""), IF($V11<>0, $V11, "")), IF($W11<>0, $W11, "")), "") -> 
U12: 0 | V12: 0 | X12: =IF(ISNUMBER(B12), IF(COUNTIF($B$10:$B12, B12)=COUNTIF($B:$B, B12), "1", "0"), "") ->  | Y12: =IF(OR($C12=List!$C$5,$C12=List!$C$6,$C12=List!$C$11,$C12=List!$C$13), 1, 0) -> 0 | Z12: =_xlfn.IFS(S12="","未応札",S12>0,"応札") -> 未応札 | AA12: =_xlfn.IFS(T12=0,"未約定",T12=S12,"約定",T12<S12,"一部約定") -> 未約定 | AC12: =IF(Z12="応札",IF($AA12="未約定",IF(OR($G12=List!$F$2:$F$3), $O12*$S12, $M12*$S12),IF($AA12="一部約定",IF(OR($G12=List!$F$2:$F$3), $O12*($S12-$T12), $M12*($S12-$T12)),"")),"") ->  | AD12: 0
U13: 0 | V13: 0 | X13: =IF(ISNUMBER(B13), IF(COUNTIF($B$10:$B13, B13)=COUNTIF($B:$B, B13), "1", "0"), "") ->  | Y13: =IF(OR($C13=List!$C$5,$C13=List!$C$6,$C13=List!$C$11,$C13=List!$C$13), 1, 0) -> 0 | Z13: =_xlfn.IFS(S13="","未応札",S13>0,"応札") -> 未応札 | AA13: =_xlfn.IFS(T13=0,"未約定",T13=S13,"約定",T13<S13,"一部約定") -> 未約定 | AC13: =IF(Z13="応札",IF($AA13="未約定",IF(OR($G13=List!$F$2:$F$3), $O13*$S13, $M13*$S13),IF($AA13="一部約定",IF(OR($G13=List!$F$2:$F$3), $O13*($S13-$T13), $M13*($S13-$T13)),"")),"") ->  | AD13: 0
U14: 0 | V14: 0 | X14: =IF(ISNUMBER(B14), IF(COUNTIF($B$10:$B14, B14)=COUNTIF($B:$B, B14), "1", "0"), "") ->  | Y14: =IF(OR($C14=List!$C$5,$C14=List!$C$6,$C14=List!$C$11,$C14=List!$C$13), 1, 0) -> 0 | Z14: =_xlfn.IFS(S14="","未応札",S14>0,"応札") -> 未応札 | AA14: =_xlfn.IFS(T14=0,"未約定",T14=S14,"約定",T14<S14,"一部約定") -> 未約定 | AC14: =IF(Z14="応札",IF($AA14="未約定",IF(OR($G14=List!$F$2:$F$3), $O14*$S14, $M14*$S14),IF($AA14="一部約定",IF(OR($G14=List!$F$2:$F$3), $O14*($S14-$T14), $M14*($S14-$T14)),"")),"") ->  | AD14: 0
U15: 0 | V15: 0 | X15: =IF(ISNUMBER(B15), IF(COUNTIF($B$10:$B15, B15)=COUNTIF($B:$B, B15), "1", "0"), "") ->  | Y15: =IF(OR($C15=List!$C$5,$C15=List!$C$6,$C15=List!$C$11,$C15=List!$C$13), 1, 0) -> 0 | Z15: =_xlfn.IFS(S15="","未応札",S15>0,"応札") -> 未応札 | AA15: =_xlfn.IFS(T15=0,"未約定",T15=S15,"約定",T15<S15,"一部約定") -> 未約定 | AC15: =IF(Z15="応札",IF($AA15="未約定",IF(OR($G15=List!$F$2:$F$3), $O15*$S15, $M15*$S15),IF($AA15="一部約定",IF(OR($G15=List!$F$2:$F$3), $O15*($S15-$T15), $M15*($S15-$T15)),"")),"") ->  | AD15: 0
U16: 0 | V16: 0 | X16: =IF(ISNUMBER(B16), IF(COUNTIF($B$10:$B16, B16)=COUNTIF($B:$B, B16), "1", "0"), "") ->  | Y16: =IF(OR($C16=List!$C$5,$C16=List!$C$6,$C16=List!$C$11,$C16=List!$C$13), 1, 0) -> 0 | Z16: =_xlfn.IFS(S16="","未応札",S16>0,"応札") -> 未応札 | AA16: =_xlfn.IFS(T16=0,"未約定",T16=S16,"約定",T16<S16,"一部約定") -> 未約定 | AC16: =IF(Z16="応札",IF($AA16="未約定",IF(OR($G16=List!$F$2:$F$3), $O16*$S16, $M16*$S16),IF($AA16="一部約定",IF(OR($G16=List!$F$2:$F$3), $O16*($S16-$T16), $M16*($S16-$T16)),"")),"") ->  | AD16: 0
U17: 0 | V17: 0 | X17: =IF(ISNUMBER(B17), IF(COUNTIF($B$10:$B17, B17)=COUNTIF($B:$B, B17), "1", "0"), "") ->  | Y17: =IF(OR($C17=List!$C$5,$C17=List!$C$6,$C17=List!$C$11,$C17=List!$C$13), 1, 0) -> 0 | Z17: =_xlfn.IFS(S17="","未応札",S17>0,"応札") -> 未応札 | AA17: =_xlfn.IFS(T17=0,"未約定",T17=S17,"約定",T17<S17,"一部約定") -> 未約定 | AC17: =IF(Z17="応札",IF($AA17="未約定",IF(OR($G17=List!$F$2:$F$3), $O17*$S17, $M17*$S17),IF($AA17="一部約定",IF(OR($G17=List!$F$2:$F$3), $O17*($S17-$T17), $M17*($S17-$T17)),"")),"") ->  | AD17: 0
U18: 0 | V18: 0 | X18: =IF(ISNUMBER(B18), IF(COUNTIF($B$10:$B18, B18)=COUNTIF($B:$B, B18), "1", "0"), "") ->  | Y18: =IF(OR($C18=List!$C$5,$C18=List!$C$6,$C18=List!$C$11,$C18=List!$C$13), 1, 0) -> 0 | Z18: =_xlfn.IFS(S18="","未応札",S18>0,"応札") -> 未応札 | AA18: =_xlfn.IFS(T18=0,"未約定",T18=S18,"約定",T18<S18,"一部約定") -> 未約定 | AC18: =IF(Z18="応札",IF($AA18="未約定",IF(OR($G18=List!$F$2:$F$3), $O18*$S18, $M18*$S18),IF($AA18="一部約定",IF(OR($G18=List!$F$2:$F$3), $O18*($S18-$T18), $M18*($S18-$T18)),"")),"") ->  | AD18: 0
U19: 0 | V19: 0 | X19: =IF(ISNUMBER(B19), IF(COUNTIF($B$10:$B19, B19)=COUNTIF($B:$B, B19), "1", "0"), "") ->  | Y19: =IF(OR($C19=List!$C$5,$C19=List!$C$6,$C19=List!$C$11,$C19=List!$C$13), 1, 0) -> 0 | Z19: =_xlfn.IFS(S19="","未応札",S19>0,"応札") -> 未応札 | AA19: =_xlfn.IFS(T19=0,"未約定",T19=S19,"約定",T19<S19,"一部約定") -> 未約定 | AC19: =IF(Z19="応札",IF($AA19="未約定",IF(OR($G19=List!$F$2:$F$3), $O19*$S19, $M19*$S19),IF($AA19="一部約定",IF(OR($G19=List!$F$2:$F$3), $O19*($S19-$T19), $M19*($S19-$T19)),"")),"") ->  | AD19: 0
U20: 0 | V20: 0 | X20: =IF(ISNUMBER(B20), IF(COUNTIF($B$10:$B20, B20)=COUNTIF($B:$B, B20), "1", "0"), "") ->  | Y20: =IF(OR($C20=List!$C$5,$C20=List!$C$6,$C20=List!$C$11,$C20=List!$C$13), 1, 0) -> 0 | Z20: =_xlfn.IFS(S20="","未応札",S20>0,"応札") -> 未応札 | AA20: =_xlfn.IFS(T20=0,"未約定",T20=S20,"約定",T20<S20,"一部約定") -> 未約定 | AC20: =IF(Z20="応札",IF($AA20="未約定",IF(OR($G20=List!$F$2:$F$3), $O20*$S20, $M20*$S20),IF($AA20="一部約定",IF(OR($G20=List!$F$2:$F$3), $O20*($S20-$T20), $M20*($S20-$T20)),"")),"") ->  | AD20: 0
U21: 0 | V21: 0 | X21: =IF(ISNUMBER(B21), IF(COUNTIF($B$10:$B21, B21)=COUNTIF($B:$B, B21), "1", "0"), "") ->  | Y21: =IF(OR($C21=List!$C$5,$C21=List!$C$6,$C21=List!$C$11,$C21=List!$C$13), 1, 0) -> 0 | Z21: =_xlfn.IFS(S21="","未応札",S21>0,"応札") -> 未応札 | AA21: =_xlfn.IFS(T21=0,"未約定",T21=S21,"約定",T21<S21,"一部約定") -> 未約定 | AC21: =IF(Z21="応札",IF($AA21="未約定",IF(OR($G21=List!$F$2:$F$3), $O21*$S21, $M21*$S21),IF($AA21="一部約定",IF(OR($G21=List!$F$2:$F$3), $O21*($S21-$T21), $M21*($S21-$T21)),"")),"") ->  | AD21: 0
U22: 0 | V22: 0 | X22: =IF(ISNUMBER(B22), IF(COUNTIF($B$10:$B22, B22)=COUNTIF($B:$B, B22), "1", "0"), "") ->  | Y22: =IF(OR($C22=List!$C$5,$C22=List!$C$6,$C22=List!$C$11,$C22=List!$C$13), 1, 0) -> 0 | Z22: =_xlfn.IFS(S22="","未応札",S22>0,"応札") -> 未応札 | AA22: =_xlfn.IFS(T22=0,"未約定",T22=S22,"約定",T22<S22,"一部約定") -> 未約定 | AC22: =IF(Z22="応札",IF($AA22="未約定",IF(OR($G22=List!$F$2:$F$3), $O22*$S22, $M22*$S22),IF($AA22="一部約定",IF(OR($G22=List!$F$2:$F$3), $O22*($S22-$T22), $M22*($S22-$T22)),"")),"") ->  | AD22: 0
U23: 0 | V23: 0 | X23: =IF(ISNUMBER(B23), IF(COUNTIF($B$10:$B23, B23)=COUNTIF($B:$B, B23), "1", "0"), "") ->  | Y23: =IF(OR($C23=List!$C$5,$C23=List!$C$6,$C23=List!$C$11,$C23=List!$C$13), 1, 0) -> 0 | Z23: =_xlfn.IFS(S23="","未応札",S23>0,"応札") -> 未応札 | AA23: =_xlfn.IFS(T23=0,"未約定",T23=S23,"約定",T23<S23,"一部約定") -> 未約定 | AC23: =IF(Z23="応札",IF($AA23="未約定",IF(OR($G23=List!$F$2:$F$3), $O23*$S23, $M23*$S23),IF($AA23="一部約定",IF(OR($G23=List!$F$2:$F$3), $O23*($S23-$T23), $M23*($S23-$T23)),"")),"") ->  | AD23: 0
U24: 0 | V24: 0 | X24: =IF(ISNUMBER(B24), IF(COUNTIF($B$10:$B24, B24)=COUNTIF($B:$B, B24), "1", "0"), "") ->  | Y24: =IF(OR($C24=List!$C$5,$C24=List!$C$6,$C24=List!$C$11,$C24=List!$C$13), 1, 0) -> 0 | Z24: =_xlfn.IFS(S24="","未応札",S24>0,"応札") -> 未応札 | AA24: =_xlfn.IFS(T24=0,"未約定",T24=S24,"約定",T24<S24,"一部約定") -> 未約定 | AC24: =IF(Z24="応札",IF($AA24="未約定",IF(OR($G24=List!$F$2:$F$3), $O24*$S24, $M24*$S24),IF($AA24="一部約定",IF(OR($G24=List!$F$2:$F$3), $O24*($S24-$T24), $M24*($S24-$T24)),"")),"") ->  | AD24: 0
U25: 0 | V25: 0 | X25: =IF(ISNUMBER(B25), IF(COUNTIF($B$10:$B25, B25)=COUNTIF($B:$B, B25), "1", "0"), "") ->  | Y25: =IF(OR($C25=List!$C$5,$C25=List!$C$6,$C25=List!$C$11,$C25=List!$C$13), 1, 0) -> 0 | Z25: =_xlfn.IFS(S25="","未応札",S25>0,"応札") -> 未応札 | AA25: =_xlfn.IFS(T25=0,"未約定",T25=S25,"約定",T25<S25,"一部約定") -> 未約定 | AC25: =IF(Z25="応札",IF($AA25="未約定",IF(OR($G25=List!$F$2:$F$3), $O25*$S25, $M25*$S25),IF($AA25="一部約定",IF(OR($G25=List!$F$2:$F$3), $O25*($S25-$T25), $M25*($S25-$T25)),"")),"") ->  | AD25: 0
U26: 0 | V26: 0 | X26: =IF(ISNUMBER(B26), IF(COUNTIF($B$10:$B26, B26)=COUNTIF($B:$B, B26), "1", "0"), "") ->  | Y26: =IF(OR($C26=List!$C$5,$C26=List!$C$6,$C26=List!$C$11,$C26=List!$C$13), 1, 0) -> 0 | Z26: =_xlfn.IFS(S26="","未応札",S26>0,"応札") -> 未応札 | AA26: =_xlfn.IFS(T26=0,"未約定",T26=S26,"約定",T26<S26,"一部約定") -> 未約定 | AC26: =IF(Z26="応札",IF($AA26="未約定",IF(OR($G26=List!$F$2:$F$3), $O26*$S26, $M26*$S26),IF($AA26="一部約定",IF(OR($G26=List!$F$2:$F$3), $O26*($S26-$T26), $M26*($S26-$T26)),"")),"") ->  | AD26: 0
U27: 0 | V27: 0 | X27: =IF(ISNUMBER(B27), IF(COUNTIF($B$10:$B27, B27)=COUNTIF($B:$B, B27), "1", "0"), "") ->  | Y27: =IF(OR($C27=List!$C$5,$C27=List!$C$6,$C27=List!$C$11,$C27=List!$C$13), 1, 0) -> 0 | Z27: =_xlfn.IFS(S27="","未応札",S27>0,"応札") -> 未応札 | AA27: =_xlfn.IFS(T27=0,"未約定",T27=S27,"約定",T27<S27,"一部約定") -> 未約定 | AC27: =IF(Z27="応札",IF($AA27="未約定",IF(OR($G27=List!$F$2:$F$3), $O27*$S27, $M27*$S27),IF($AA27="一部約定",IF(OR($G27=List!$F$2:$F$3), $O27*($S27-$T27), $M27*($S27-$T27)),"")),"") ->  | AD27: 0
U28: 0 | V28: 0 | X28: =IF(ISNUMBER(B28), IF(COUNTIF($B$10:$B28, B28)=COUNTIF($B:$B, B28), "1", "0"), "") ->  | Y28: =IF(OR($C28=List!$C$5,$C28=List!$C$6,$C28=List!$C$11,$C28=List!$C$13), 1, 0) -> 0 | Z28: =_xlfn.IFS(S28="","未応札",S28>0,"応札") -> 未応札 | AA28: =_xlfn.IFS(T28=0,"未約定",T28=S28,"約定",T28<S28,"一部約定") -> 未約定 | AC28: =IF(Z28="応札",IF($AA28="未約定",IF(OR($G28=List!$F$2:$F$3), $O28*$S28, $M28*$S28),IF($AA28="一部約定",IF(OR($G28=List!$F$2:$F$3), $O28*($S28-$T28), $M28*($S28-$T28)),"")),"") ->  | AD28: 0
U29: 0 | V29: 0 | X29: =IF(ISNUMBER(B29), IF(COUNTIF($B$10:$B29, B29)=COUNTIF($B:$B, B29), "1", "0"), "") ->  | Y29: =IF(OR($C29=List!$C$5,$C29=List!$C$6,$C29=List!$C$11,$C29=List!$C$13), 1, 0) -> 0 | Z29: =_xlfn.IFS(S29="","未応札",S29>0,"応札") -> 未応札 | AA29: =_xlfn.IFS(T29=0,"未約定",T29=S29,"約定",T29<S29,"一部約定") -> 未約定 | AC29: =IF(Z29="応札",IF($AA29="未約定",IF(OR($G29=List!$F$2:$F$3), $O29*$S29, $M29*$S29),IF($AA29="一部約定",IF(OR($G29=List!$F$2:$F$3), $O29*($S29-$T29), $M29*($S29-$T29)),"")),"") ->  | AD29: 0
U30: 0 | V30: 0 | X30: =IF(ISNUMBER(B30), IF(COUNTIF($B$10:$B30, B30)=COUNTIF($B:$B, B30), "1", "0"), "") ->  | Y30: =IF(OR($C30=List!$C$5,$C30=List!$C$6,$C30=List!$C$11,$C30=List!$C$13), 1, 0) -> 0 | Z30: =_xlfn.IFS(S30="","未応札",S30>0,"応札") -> 未応札 | AA30: =_xlfn.IFS(T30=0,"未約定",T30=S30,"約定",T30<S30,"一部約定") -> 未約定 | AC30: =IF(Z30="応札",IF($AA30="未約定",IF(OR($G30=List!$F$2:$F$3), $O30*$S30, $M30*$S30),IF($AA30="一部約定",IF(OR($G30=List!$F$2:$F$3), $O30*($S30-$T30), $M30*($S30-$T30)),"")),"") ->  | AD30: 0
U31: 0 | V31: 0 | X31: =IF(ISNUMBER(B31), IF(COUNTIF($B$10:$B31, B31)=COUNTIF($B:$B, B31), "1", "0"), "") ->  | Y31: =IF(OR($C31=List!$C$5,$C31=List!$C$6,$C31=List!$C$11,$C31=List!$C$13), 1, 0) -> 0 | Z31: =_xlfn.IFS(S31="","未応札",S31>0,"応札") -> 未応札 | AA31: =_xlfn.IFS(T31=0,"未約定",T31=S31,"約定",T31<S31,"一部約定") -> 未約定 | AC31: =IF(Z31="応札",IF($AA31="未約定",IF(OR($G31=List!$F$2:$F$3), $O31*$S31, $M31*$S31),IF($AA31="一部約定",IF(OR($G31=List!$F$2:$F$3), $O31*($S31-$T31), $M31*($S31-$T31)),"")),"") ->  | AD31: 0
U32: 0 | V32: 0 | X32: =IF(ISNUMBER(B32), IF(COUNTIF($B$10:$B32, B32)=COUNTIF($B:$B, B32), "1", "0"), "") ->  | Y32: =IF(OR($C32=List!$C$5,$C32=List!$C$6,$C32=List!$C$11,$C32=List!$C$13), 1, 0) -> 0 | Z32: =_xlfn.IFS(S32="","未応札",S32>0,"応札") -> 未応札 | AA32: =_xlfn.IFS(T32=0,"未約定",T32=S32,"約定",T32<S32,"一部約定") -> 未約定 | AC32: =IF(Z32="応札",IF($AA32="未約定",IF(OR($G32=List!$F$2:$F$3), $O32*$S32, $M32*$S32),IF($AA32="一部約定",IF(OR($G32=List!$F$2:$F$3), $O32*($S32-$T32), $M32*($S32-$T32)),"")),"") ->  | AD32: 0
U33: 0 | V33: 0 | X33: =IF(ISNUMBER(B33), IF(COUNTIF($B$10:$B33, B33)=COUNTIF($B:$B, B33), "1", "0"), "") ->  | Y33: =IF(OR($C33=List!$C$5,$C33=List!$C$6,$C33=List!$C$11,$C33=List!$C$13), 1, 0) -> 0 | Z33: =_xlfn.IFS(S33="","未応札",S33>0,"応札") -> 未応札 | AA33: =_xlfn.IFS(T33=0,"未約定",T33=S33,"約定",T33<S33,"一部約定") -> 未約定 | AC33: =IF(Z33="応札",IF($AA33="未約定",IF(OR($G33=List!$F$2:$F$3), $O33*$S33, $M33*$S33),IF($AA33="一部約定",IF(OR($G33=List!$F$2:$F$3), $O33*($S33-$T33), $M33*($S33-$T33)),"")),"") ->  | AD33: 0
U34: 0 | V34: 0 | X34: =IF(ISNUMBER(B34), IF(COUNTIF($B$10:$B34, B34)=COUNTIF($B:$B, B34), "1", "0"), "") ->  | Y34: =IF(OR($C34=List!$C$5,$C34=List!$C$6,$C34=List!$C$11,$C34=List!$C$13), 1, 0) -> 0 | Z34: =_xlfn.IFS(S34="","未応札",S34>0,"応札") -> 未応札 | AA34: =_xlfn.IFS(T34=0,"未約定",T34=S34,"約定",T34<S34,"一部約定") -> 未約定 | AC34: =IF(Z34="応札",IF($AA34="未約定",IF(OR($G34=List!$F$2:$F$3), $O34*$S34, $M34*$S34),IF($AA34="一部約定",IF(OR($G34=List!$F$2:$F$3), $O34*($S34-$T34), $M34*($S34-$T34)),"")),"") ->  | AD34: 0
U35: 0 | V35: 0 | X35: =IF(ISNUMBER(B35), IF(COUNTIF($B$10:$B35, B35)=COUNTIF($B:$B, B35), "1", "0"), "") ->  | Y35: =IF(OR($C35=List!$C$5,$C35=List!$C$6,$C35=List!$C$11,$C35=List!$C$13), 1, 0) -> 0 | Z35: =_xlfn.IFS(S35="","未応札",S35>0,"応札") -> 未応札 | AA35: =_xlfn.IFS(T35=0,"未約定",T35=S35,"約定",T35<S35,"一部約定") -> 未約定 | AC35: =IF(Z35="応札",IF($AA35="未約定",IF(OR($G35=List!$F$2:$F$3), $O35*$S35, $M35*$S35),IF($AA35="一部約定",IF(OR($G35=List!$F$2:$F$3), $O35*($S35-$T35), $M35*($S35-$T35)),"")),"") ->  | AD35: 0
U36: 0 | V36: 0 | X36: =IF(ISNUMBER(B36), IF(COUNTIF($B$10:$B36, B36)=COUNTIF($B:$B, B36), "1", "0"), "") ->  | Y36: =IF(OR($C36=List!$C$5,$C36=List!$C$6,$C36=List!$C$11,$C36=List!$C$13), 1, 0) -> 0 | Z36: =_xlfn.IFS(S36="","未応札",S36>0,"応札") -> 未応札 | AA36: =_xlfn.IFS(T36=0,"未約定",T36=S36,"約定",T36<S36,"一部約定") -> 未約定 | AC36: =IF(Z36="応札",IF($AA36="未約定",IF(OR($G36=List!$F$2:$F$3), $O36*$S36, $M36*$S36),IF($AA36="一部約定",IF(OR($G36=List!$F$2:$F$3), $O36*($S36-$T36), $M36*($S36-$T36)),"")),"") ->  | AD36: 0
U37: 0 | V37: 0 | X37: =IF(ISNUMBER(B37), IF(COUNTIF($B$10:$B37, B37)=COUNTIF($B:$B, B37), "1", "0"), "") ->  | Y37: =IF(OR($C37=List!$C$5,$C37=List!$C$6,$C37=List!$C$11,$C37=List!$C$13), 1, 0) -> 0 | Z37: =_xlfn.IFS(S37="","未応札",S37>0,"応札") -> 未応札 | AA37: =_xlfn.IFS(T37=0,"未約定",T37=S37,"約定",T37<S37,"一部約定") -> 未約定 | AC37: =IF(Z37="応札",IF($AA37="未約定",IF(OR($G37=List!$F$2:$F$3), $O37*$S37, $M37*$S37),IF($AA37="一部約定",IF(OR($G37=List!$F$2:$F$3), $O37*($S37-$T37), $M37*($S37-$T37)),"")),"") ->  | AD37: 0
U38: 0 | V38: 0 | X38: =IF(ISNUMBER(B38), IF(COUNTIF($B$10:$B38, B38)=COUNTIF($B:$B, B38), "1", "0"), "") ->  | Y38: =IF(OR($C38=List!$C$5,$C38=List!$C$6,$C38=List!$C$11,$C38=List!$C$13), 1, 0) -> 0 | Z38: =_xlfn.IFS(S38="","未応札",S38>0,"応札") -> 未応札 | AA38: =_xlfn.IFS(T38=0,"未約定",T38=S38,"約定",T38<S38,"一部約定") -> 未約定 | AC38: =IF(Z38="応札",IF($AA38="未約定",IF(OR($G38=List!$F$2:$F$3), $O38*$S38, $M38*$S38),IF($AA38="一部約定",IF(OR($G38=List!$F$2:$F$3), $O38*($S38-$T38), $M38*($S38-$T38)),"")),"") ->  | AD38: 0
U39: 0 | V39: 0 | X39: =IF(ISNUMBER(B39), IF(COUNTIF($B$10:$B39, B39)=COUNTIF($B:$B, B39), "1", "0"), "") ->  | Y39: =IF(OR($C39=List!$C$5,$C39=List!$C$6,$C39=List!$C$11,$C39=List!$C$13), 1, 0) -> 0 | Z39: =_xlfn.IFS(S39="","未応札",S39>0,"応札") -> 未応札 | AA39: =_xlfn.IFS(T39=0,"未約定",T39=S39,"約定",T39<S39,"一部約定") -> 未約定 | AC39: =IF(Z39="応札",IF($AA39="未約定",IF(OR($G39=List!$F$2:$F$3), $O39*$S39, $M39*$S39),IF($AA39="一部約定",IF(OR($G39=List!$F$2:$F$3), $O39*($S39-$T39), $M39*($S39-$T39)),"")),"") ->  | AD39: 0
U40: 0 | V40: 0 | X40: =IF(ISNUMBER(B40), IF(COUNTIF($B$10:$B40, B40)=COUNTIF($B:$B, B40), "1", "0"), "") ->  | Y40: =IF(OR($C40=List!$C$5,$C40=List!$C$6,$C40=List!$C$11,$C40=List!$C$13), 1, 0) -> 0 | Z40: =_xlfn.IFS(S40="","未応札",S40>0,"応札") -> 未応札 | AA40: =_xlfn.IFS(T40=0,"未約定",T40=S40,"約定",T40<S40,"一部約定") -> 未約定 | AC40: =IF(Z40="応札",IF($AA40="未約定",IF(OR($G40=List!$F$2:$F$3), $O40*$S40, $M40*$S40),IF($AA40="一部約定",IF(OR($G40=List!$F$2:$F$3), $O40*($S40-$T40), $M40*($S40-$T40)),"")),"") ->  | AD40: 0

Sheet 記載例_精算パターン⑦加重平均入札（持ち下げ・起動供出機)
B2: 取引年月 | C2: 202504
B3: MMSコード | C3: A000
B4: 対象エリア | C4: 3：東京
B5: ファイル名称 | C5: =$C$2&"_"&$C$3&"_"&LEFT($C$4,1)&"_不約定単価内訳兼起動費事後精算情報様式" -> 202504_A000_3_不約定単価内訳兼起動費事後精算情報様式
B7: =入力シート!B7 -> 事象NO | C7: =入力シート!C7 -> 精算パターン | D7: =入力シート!D7 -> 余力活用契約対象リソース区分 | E7: =入力シート!E7 -> 取引日 | F7: =入力シート!F7 -> 時刻コード | G7: =入力シート!G7 -> 持ち下げ供出機区分 | H7: =入力シート!H7 -> 系統コード | I7: =入力シート!I7 -> 商品区分 | J7: =入力シート!J7 -> 売り入札ID | K7: =入力シート!K7 -> 約定番号 | L7: =入力シート!L7 -> 約定識別ID | M7: =入力シート!M7 -> MMS起動費単価 | N7: =入力シート!N7 -> 加重平均前のΔkW単価 | O7: =入力シート!O7 -> 加重平均起動費未回収分相当額 | P7: =入力シート!P7 -> 最低出力までの発電電力量の機会費用単価 | Q7: =入力シート!Q7 -> 発電計画 | R7: =入力シート!R7 -> 最低出力 | S7: =入力シート!S7 -> 約定希望ΔkW | T7: =入力シート!T7 -> ΔkW約定量 | U7: =入力シート!U7 -> 最低出力までの発電電力量の機会費用単価×(約定希望ΔkW-ΔkW約定量) | V7: =入力シート!V7 -> 最低出力維持した場合の費用合計 | W7: =入力シート!W7 -> 停止・再起動にかかる費用 | X7: =入力シート!X7 -> 事象毎の最終行 | Y7: =入力シート!Y7 -> 妥当性確認 | Z7: =入力シート!Z7 -> 応札状況 | AA7: =入力シート!AA7 -> 約定状況 | AB7: =入力シート!AB7 -> 並解列状態(実績) | AC7: =入力シート!AC7 -> 起動費未回収分相当額 | AD7: =入力シート!AD7 -> 最低出力までの発電電力量の機会費用 | AE7: =入力シート!AE7 -> 停止・再起動にかかる費用 | AH7: =入力シート!AH7 -> 精算対象 申請小計 | AI7: =入力シート!AI7 -> 起動費未回収分相当額 | AJ7: =入力シート!AJ7 -> 最低出力までの発電電力量の機会費用 | AK7: =入力シート!AK7 -> 停止・再起動にかかる費用 | AL7: =入力シート!AL7 -> 合計
M8: （円/kW） | N8: （円/kW） | O8: （円/kW） | P8: （円/kW） | Q8: （kWh） | R8: （kWh） | S8: （kW） | T8: （kW） | U8: （円） | V8: （円） | W8: （円） | AC8: （円） | AD8: （円） | AE8: （円） | AI8: （円） | AJ8: （円） | AK8: （円） | AL8: （円）
B9: =IF(入力シート!B9<>"",入力シート!B9,"") -> ※起動費未回収が発生した事象ごとにNOを付定すること。 | C9: =IF(入力シート!C9<>"",入力シート!C9,"") ->  | D9: =IF(入力シート!D9<>"",入力シート!D9,"") -> ※対象の場合は「１」，非対象の場合は「０」を入力 | E9: =IF(入力シート!E9<>"",入力シート!E9,"") ->  | F9: =IF(入力シート!F9<>"",入力シート!F9,"") ->  | G9: =IF(入力シート!G9<>"",入力シート!G9,"") -> ※持ち下げ供出機を加重平均で入札した場合に選択 | H9: =IF(入力シート!H9<>"",入力シート!H9,"") ->  | I9: =IF(入力シート!I9<>"",入力シート!I9,"") ->  | J9: =IF(入力シート!J9<>"",入力シート!J9,"") ->  | K9: =IF(入力シート!K9<>"",入力シート!K9,"") -> ※１持ち下げ供出機区分が該当する場合，起動供出機の約定番号を記載すること ※２同一時刻コードにおいて，複数の約定番号がある場合は，いずれか1つを記載すること。 | L9: =IF(入力シート!L9<>"",入力シート!L9,"") -> ※1持ち下げ供出機区分に該当する場合，起動供出機の約定識別IDを記載すること ※2同一時刻コードにおいて，約定番号に紐づく約定識別IDが複数存在する場合は，いずれか1つを記載すること ※3電源差し替えを実施した場合，差替え元の約定識別IDを記載すること(持ち下げ供出機区分に該当する場合,起動供出機の初回約定識別IDを記載すること) | M9: =IF(入力シート!M9<>"",入力シート!M9,"") -> ※MMSに登録された起動費単価分を原則用いること | N9: =IF(入力シート!N9<>"",入力シート!N9,"") -> ※持ち下げ供出機区分が該当する場合に記載すること | O9: =IF(入力シート!O9<>"",入力シート!O9,"") -> ※ 持ち下げ供出機区分が該当する場合に記載すること | P9: =IF(入力シート!P9<>"",入力シート!P9,"") -> ※１卸電力市場価格（スポット市場価格：実績）と限界費用との差額を用いること ※２加重平均で入札した場合は，最低出力までの発電電力量の加重平均機会費用相当額を記載すること ※３加重平均で入札し，持ち下げ供出機の情報を記載する場合は，持ち下げ供出機のΔkW単価に含めた起動供出機の最低出力までの発電電力量の加重平均機会費用相当額を記載すること。ただし，精算パターンが「持ち下げ・起動供出機:全量不落」の場合は持ち下げ供出機のみが不落となったときに記載すること。 | Q9: =IF(入力シート!Q9<>"",入力シート!Q9,"") ->  | R9: =IF(入力シート!R9<>"",入力シート!R9,"") ->  | S9: =IF(入力シート!S9<>"",入力シート!S9,"") ->  | T9: =IF(入力シート!T9<>"",入力シート!T9,"") ->  | U9: =IF(入力シート!U9<>"",入力シート!U9,"") -> ※加重平均で入札した場合は，最低出力までの発電電力量の加重平均機会費用相当額×(約定希望ΔkW-ΔkW約定量) | V9: =IF(入力シート!V9<>"",入力シート!V9,"") -> ※精算パターン「約定間全量不落(約定間停止・再起動)」を選択した場合，事象NOごとの最終行に合計値表示 | W9: =IF(入力シート!W9<>"",入力シート!W9,"") -> ※１停止・再起動費は最後のブロックに記載すること ※２ 余力活用契約を締結している電源でBG計画上停止・再起動としていたが、実績は停止しなかった場合も、BG計画上の「停止・再起動費」を記載すること | X9: =IF(入力シート!X9<>"",入力シート!X9,"") ->  | Y9: =IF(入力シート!Y9<>"",入力シート!Y9,"") ->  | Z9: =IF(入力シート!Z9<>"",入力シート!Z9,"") ->  | AA9: =IF(入力シート!AA9<>"",入力シート!AA9,"") ->  | AB9: =IF(入力シート!AB9<>"",入力シート!AB9,"") ->  | AC9: =IF(入力シート!AC9<>"",入力シート!AC9,"") -> ※加重平均で入札した場合は，加重平均起動費未回収分相当額 | AD9: =IF(入力シート!AD9<>"",入力シート!AD9,"") -> ※加重平均で入札した場合は，最低出力までの発電電力量の加重平均機会費用相当額 | AE9: =IF(入力シート!AE9<>"",入力シート!AE9,"") -> ※約定間全量不落時において，停止・再起動するよりも，最低出力維持した方が経済的だった場合，後者を事後精算対象とする。 | AI9: =SUM($AC10:$AC2831) -> 10342500 | AJ9: =SUM($AD10:$AD2831) -> 90000 | AK9: =SUM($AE10:$AE2831) -> 0 | AL9: =ROUNDDOWN(SUM(AI9:AK9),0) -> 10432500
U10: =P10*(S10-T10) -> 0 | V10: =IF(W10 > 0, SUMIFS(U:U, B:B, B10, Y:Y, 1), 0) -> 0 | X10: =IF(ISNUMBER(B10), IF(COUNTIF($B10:$B$39, B10)=COUNTIF($B:$B, B10), "1", "0"), "") ->  | Y10: =IF(OR($C10=List!$C$5,$C10=List!$C$6,$C10=List!$C$11,$C10=List!$C$13), 1, 0) -> 0 | Z10: =_xlfn.IFS(S10="","未応札",S10>0,"応札") -> 未応札 | AA10: =_xlfn.IFS(T10=0,"未約定",T10=S10,"約定",T10<S10,"一部約定") -> 未約定 | AC10: =IF(Z10="応札",IF($AA10="未約定",IF(OR($G10=List!$F$2:$F$3), $O10*$S10, $M10*$S10),IF($AA10="一部約定",IF(OR($G10=List!$F$2:$F$3), $O10*($S10-$T10), $M10*($S10-$T10)),"")),"") ->  | AD10: =IF(ISBLANK($Q10),IF(OR($AA10="一部約定",$AA10="未約定"),$P10*($S10-$T10),""),IF($Q10=0,"", IF(OR($AA10="一部約定", $AA10="未約定"), $P10*($S10-$T10), ""))) -> 0 | AE10: =IF(AND($Z10="応札",$AA10="未約定"), IF($V10<>0, IF($W10<$V10, IF($W10<>0, $W10, ""), IF($V10<>0, $V10, "")), IF($W10<>0, $W10, "")), "") -> 
U11: 0 | V11: 0 | X11: =IF(ISNUMBER(B11), IF(COUNTIF($B11:$B$39, B11)=COUNTIF($B:$B, B11), "1", "0"), "") ->  | Y11: =IF(OR($C11=List!$C$5,$C11=List!$C$6,$C11=List!$C$11,$C11=List!$C$13), 1, 0) -> 0 | Z11: =_xlfn.IFS(S11="","未応札",S11>0,"応札") -> 未応札 | AA11: =_xlfn.IFS(T11=0,"未約定",T11=S11,"約定",T11<S11,"一部約定") -> 未約定 | AC11: =IF(Z11="応札",IF($AA11="未約定",IF(OR($G11=List!$F$2:$F$3), $O11*$S11, $M11*$S11),IF($AA11="一部約定",IF(OR($G11=List!$F$2:$F$3), $O11*($S11-$T11), $M11*($S11-$T11)),"")),"") ->  | AD11: 0 | AE11: =IF(AND($Z11="応札",$AA11="未約定"), IF($V11<>0, IF($W11<$V11, IF($W11<>0, $W11, ""), IF($V11<>0, $V11, "")), IF($W11<>0, $W11, "")), "") -> 
U12: 0 | V12: 0 | X12: =IF(ISNUMBER(B12), IF(COUNTIF($B12:$B$39, B12)=COUNTIF($B:$B, B12), "1", "0"), "") ->  | Y12: =IF(OR($C12=List!$C$5,$C12=List!$C$6,$C12=List!$C$11,$C12=List!$C$13), 1, 0) -> 0 | Z12: =_xlfn.IFS(S12="","未応札",S12>0,"応札") -> 未応札 | AA12: =_xlfn.IFS(T12=0,"未約定",T12=S12,"約定",T12<S12,"一部約定") -> 未約定 | AC12: =IF(Z12="応札",IF($AA12="未約定",IF(OR($G12=List!$F$2:$F$3), $O12*$S12, $M12*$S12),IF($AA12="一部約定",IF(OR($G12=List!$F$2:$F$3), $O12*($S12-$T12), $M12*($S12-$T12)),"")),"") ->  | AD12: 0
U13: 0 | V13: 0 | X13: =IF(ISNUMBER(B13), IF(COUNTIF($B13:$B$39, B13)=COUNTIF($B:$B, B13), "1", "0"), "") ->  | Y13: =IF(OR($C13=List!$C$5,$C13=List!$C$6,$C13=List!$C$11,$C13=List!$C$13), 1, 0) -> 0 | Z13: =_xlfn.IFS(S13="","未応札",S13>0,"応札") -> 未応札 | AA13: =_xlfn.IFS(T13=0,"未約定",T13=S13,"約定",T13<S13,"一部約定") -> 未約定 | AC13: =IF(Z13="応札",IF($AA13="未約定",IF(OR($G13=List!$F$2:$F$3), $O13*$S13, $M13*$S13),IF($AA13="一部約定",IF(OR($G13=List!$F$2:$F$3), $O13*($S13-$T13), $M13*($S13-$T13)),"")),"") ->  | AD13: 0
U14: 0 | V14: 0 | X14: =IF(ISNUMBER(B14), IF(COUNTIF($B14:$B$39, B14)=COUNTIF($B:$B, B14), "1", "0"), "") ->  | Y14: =IF(OR($C14=List!$C$5,$C14=List!$C$6,$C14=List!$C$11,$C14=List!$C$13), 1, 0) -> 0 | Z14: =_xlfn.IFS(S14="","未応札",S14>0,"応札") -> 未応札 | AA14: =_xlfn.IFS(T14=0,"未約定",T14=S14,"約定",T14<S14,"一部約定") -> 未約定 | AC14: =IF(Z14="応札",IF($AA14="未約定",IF(OR($G14=List!$F$2:$F$3), $O14*$S14, $M14*$S14),IF($AA14="一部約定",IF(OR($G14=List!$F$2:$F$3), $O14*($S14-$T14), $M14*($S14-$T14)),"")),"") ->  | AD14: 0
U15: 0 | V15: 0 | X15: =IF(ISNUMBER(B15), IF(COUNTIF($B15:$B$39, B15)=COUNTIF($B:$B, B15), "1", "0"), "") ->  | Y15: =IF(OR($C15=List!$C$5,$C15=List!$C$6,$C15=List!$C$11,$C15=List!$C$13), 1, 0) -> 0 | Z15: =_xlfn.IFS(S15="","未応札",S15>0,"応札") -> 未応札 | AA15: =_xlfn.IFS(T15=0,"未約定",T15=S15,"約定",T15<S15,"一部約定") -> 未約定 | AC15: =IF(Z15="応札",IF($AA15="未約定",IF(OR($G15=List!$F$2:$F$3), $O15*$S15, $M15*$S15),IF($AA15="一部約定",IF(OR($G15=List!$F$2:$F$3), $O15*($S15-$T15), $M15*($S15-$T15)),"")),"") ->  | AD15: 0
U16: 0 | V16: 0 | X16: =IF(ISNUMBER(B16), IF(COUNTIF($B16:$B$39, B16)=COUNTIF($B:$B, B16), "1", "0"), "") ->  | Y16: =IF(OR($C16=List!$C$5,$C16=List!$C$6,$C16=List!$C$11,$C16=List!$C$13), 1, 0) -> 0 | Z16: =_xlfn.IFS(S16="","未応札",S16>0,"応札") -> 未応札 | AA16: =_xlfn.IFS(T16=0,"未約定",T16=S16,"約定",T16<S16,"一部約定") -> 未約定 | AC16: =IF(Z16="応札",IF($AA16="未約定",IF(OR($G16=List!$F$2:$F$3), $O16*$S16, $M16*$S16),IF($AA16="一部約定",IF(OR($G16=List!$F$2:$F$3), $O16*($S16-$T16), $M16*($S16-$T16)),"")),"") ->  | AD16: 0
U17: 0 | V17: 0 | X17: =IF(ISNUMBER(B17), IF(COUNTIF($B17:$B$39, B17)=COUNTIF($B:$B, B17), "1", "0"), "") ->  | Y17: =IF(OR($C17=List!$C$5,$C17=List!$C$6,$C17=List!$C$11,$C17=List!$C$13), 1, 0) -> 0 | Z17: =_xlfn.IFS(S17="","未応札",S17>0,"応札") -> 未応札 | AA17: =_xlfn.IFS(T17=0,"未約定",T17=S17,"約定",T17<S17,"一部約定") -> 未約定 | AC17: =IF(Z17="応札",IF($AA17="未約定",IF(OR($G17=List!$F$2:$F$3), $O17*$S17, $M17*$S17),IF($AA17="一部約定",IF(OR($G17=List!$F$2:$F$3), $O17*($S17-$T17), $M17*($S17-$T17)),"")),"") ->  | AD17: 0
U18: 0 | V18: 0 | X18: =IF(ISNUMBER(B18), IF(COUNTIF($B18:$B$39, B18)=COUNTIF($B:$B, B18), "1", "0"), "") ->  | Y18: =IF(OR($C18=List!$C$5,$C18=List!$C$6,$C18=List!$C$11,$C18=List!$C$13), 1, 0) -> 0 | Z18: =_xlfn.IFS(S18="","未応札",S18>0,"応札") -> 未応札 | AA18: =_xlfn.IFS(T18=0,"未約定",T18=S18,"約定",T18<S18,"一部約定") -> 未約定 | AC18: =IF(Z18="応札",IF($AA18="未約定",IF(OR($G18=List!$F$2:$F$3), $O18*$S18, $M18*$S18),IF($AA18="一部約定",IF(OR($G18=List!$F$2:$F$3), $O18*($S18-$T18), $M18*($S18-$T18)),"")),"") ->  | AD18: 0
U19: 0 | V19: 0 | X19: =IF(ISNUMBER(B19), IF(COUNTIF($B19:$B$39, B19)=COUNTIF($B:$B, B19), "1", "0"), "") ->  | Y19: =IF(OR($C19=List!$C$5,$C19=List!$C$6,$C19=List!$C$11,$C19=List!$C$13), 1, 0) -> 0 | Z19: =_xlfn.IFS(S19="","未応札",S19>0,"応札") -> 未応札 | AA19: =_xlfn.IFS(T19=0,"未約定",T19=S19,"約定",T19<S19,"一部約定") -> 未約定 | AC19: =IF(Z19="応札",IF($AA19="未約定",IF(OR($G19=List!$F$2:$F$3), $O19*$S19, $M19*$S19),IF($AA19="一部約定",IF(OR($G19=List!$F$2:$F$3), $O19*($S19-$T19), $M19*($S19-$T19)),"")),"") ->  | AD19: 0
U20: 0 | V20: 0 | X20: =IF(ISNUMBER(B20), IF(COUNTIF($B20:$B$39, B20)=COUNTIF($B:$B, B20), "1", "0"), "") ->  | Y20: =IF(OR($C20=List!$C$5,$C20=List!$C$6,$C20=List!$C$11,$C20=List!$C$13), 1, 0) -> 0 | Z20: =_xlfn.IFS(S20="","未応札",S20>0,"応札") -> 未応札 | AA20: =_xlfn.IFS(T20=0,"未約定",T20=S20,"約定",T20<S20,"一部約定") -> 未約定 | AC20: =IF(Z20="応札",IF($AA20="未約定",IF(OR($G20=List!$F$2:$F$3), $O20*$S20, $M20*$S20),IF($AA20="一部約定",IF(OR($G20=List!$F$2:$F$3), $O20*($S20-$T20), $M20*($S20-$T20)),"")),"") ->  | AD20: 0
U21: 0 | V21: 0 | X21: =IF(ISNUMBER(B21), IF(COUNTIF($B21:$B$39, B21)=COUNTIF($B:$B, B21), "1", "0"), "") ->  | Y21: =IF(OR($C21=List!$C$5,$C21=List!$C$6,$C21=List!$C$11,$C21=List!$C$13), 1, 0) -> 0 | Z21: =_xlfn.IFS(S21="","未応札",S21>0,"応札") -> 未応札 | AA21: =_xlfn.IFS(T21=0,"未約定",T21=S21,"約定",T21<S21,"一部約定") -> 未約定 | AC21: =IF(Z21="応札",IF($AA21="未約定",IF(OR($G21=List!$F$2:$F$3), $O21*$S21, $M21*$S21),IF($AA21="一部約定",IF(OR($G21=List!$F$2:$F$3), $O21*($S21-$T21), $M21*($S21-$T21)),"")),"") ->  | AD21: 0
U22: 0 | V22: 0 | X22: =IF(ISNUMBER(B22), IF(COUNTIF($B22:$B$39, B22)=COUNTIF($B:$B, B22), "1", "0"), "") ->  | Y22: =IF(OR($C22=List!$C$5,$C22=List!$C$6,$C22=List!$C$11,$C22=List!$C$13), 1, 0) -> 0 | Z22: =_xlfn.IFS(S22="","未応札",S22>0,"応札") -> 未応札 | AA22: =_xlfn.IFS(T22=0,"未約定",T22=S22,"約定",T22<S22,"一部約定") -> 未約定 | AC22: =IF(Z22="応札",IF($AA22="未約定",IF(OR($G22=List!$F$2:$F$3), $O22*$S22, $M22*$S22),IF($AA22="一部約定",IF(OR($G22=List!$F$2:$F$3), $O22*($S22-$T22), $M22*($S22-$T22)),"")),"") ->  | AD22: 0
U23: 0 | V23: 0 | X23: =IF(ISNUMBER(B23), IF(COUNTIF($B23:$B$39, B23)=COUNTIF($B:$B, B23), "1", "0"), "") ->  | Y23: =IF(OR($C23=List!$C$5,$C23=List!$C$6,$C23=List!$C$11,$C23=List!$C$13), 1, 0) -> 0 | Z23: =_xlfn.IFS(S23="","未応札",S23>0,"応札") -> 未応札 | AA23: =_xlfn.IFS(T23=0,"未約定",T23=S23,"約定",T23<S23,"一部約定") -> 未約定 | AC23: =IF(Z23="応札",IF($AA23="未約定",IF(OR($G23=List!$F$2:$F$3), $O23*$S23, $M23*$S23),IF($AA23="一部約定",IF(OR($G23=List!$F$2:$F$3), $O23*($S23-$T23), $M23*($S23-$T23)),"")),"") ->  | AD23: 0
U24: 0 | V24: 0 | X24: =IF(ISNUMBER(B24), IF(COUNTIF($B24:$B$39, B24)=COUNTIF($B:$B, B24), "1", "0"), "") ->  | Y24: =IF(OR($C24=List!$C$5,$C24=List!$C$6,$C24=List!$C$11,$C24=List!$C$13), 1, 0) -> 0 | Z24: =_xlfn.IFS(S24="","未応札",S24>0,"応札") -> 未応札 | AA24: =_xlfn.IFS(T24=0,"未約定",T24=S24,"約定",T24<S24,"一部約定") -> 未約定 | AC24: =IF(Z24="応札",IF($AA24="未約定",IF(OR($G24=List!$F$2:$F$3), $O24*$S24, $M24*$S24),IF($AA24="一部約定",IF(OR($G24=List!$F$2:$F$3), $O24*($S24-$T24), $M24*($S24-$T24)),"")),"") ->  | AD24: 0
U25: 0 | V25: 0 | X25: =IF(ISNUMBER(B25), IF(COUNTIF($B25:$B$39, B25)=COUNTIF($B:$B, B25), "1", "0"), "") ->  | Y25: =IF(OR($C25=List!$C$5,$C25=List!$C$6,$C25=List!$C$11,$C25=List!$C$13), 1, 0) -> 0 | Z25: =_xlfn.IFS(S25="","未応札",S25>0,"応札") -> 未応札 | AA25: =_xlfn.IFS(T25=0,"未約定",T25=S25,"約定",T25<S25,"一部約定") -> 未約定 | AC25: =IF(Z25="応札",IF($AA25="未約定",IF(OR($G25=List!$F$2:$F$3), $O25*$S25, $M25*$S25),IF($AA25="一部約定",IF(OR($G25=List!$F$2:$F$3), $O25*($S25-$T25), $M25*($S25-$T25)),"")),"") ->  | AD25: 0
U26: 0 | V26: 0 | X26: =IF(ISNUMBER(B26), IF(COUNTIF($B26:$B$39, B26)=COUNTIF($B:$B, B26), "1", "0"), "") ->  | Y26: =IF(OR($C26=List!$C$5,$C26=List!$C$6,$C26=List!$C$11,$C26=List!$C$13), 1, 0) -> 0 | Z26: =_xlfn.IFS(S26="","未応札",S26>0,"応札") -> 未応札 | AA26: =_xlfn.IFS(T26=0,"未約定",T26=S26,"約定",T26<S26,"一部約定") -> 未約定 | AC26: =IF(Z26="応札",IF($AA26="未約定",IF(OR($G26=List!$F$2:$F$3), $O26*$S26, $M26*$S26),IF($AA26="一部約定",IF(OR($G26=List!$F$2:$F$3), $O26*($S26-$T26), $M26*($S26-$T26)),"")),"") ->  | AD26: 0
U27: 0 | V27: 0 | X27: =IF(ISNUMBER(B27), IF(COUNTIF($B27:$B$39, B27)=COUNTIF($B:$B, B27), "1", "0"), "") ->  | Y27: =IF(OR($C27=List!$C$5,$C27=List!$C$6,$C27=List!$C$11,$C27=List!$C$13), 1, 0) -> 0 | Z27: =_xlfn.IFS(S27="","未応札",S27>0,"応札") -> 未応札 | AA27: =_xlfn.IFS(T27=0,"未約定",T27=S27,"約定",T27<S27,"一部約定") -> 未約定 | AC27: =IF(Z27="応札",IF($AA27="未約定",IF(OR($G27=List!$F$2:$F$3), $O27*$S27, $M27*$S27),IF($AA27="一部約定",IF(OR($G27=List!$F$2:$F$3), $O27*($S27-$T27), $M27*($S27-$T27)),"")),"") ->  | AD27: 0
U28: 0 | V28: 0 | X28: =IF(ISNUMBER(B28), IF(COUNTIF($B28:$B$39, B28)=COUNTIF($B:$B, B28), "1", "0"), "") ->  | Y28: =IF(OR($C28=List!$C$5,$C28=List!$C$6,$C28=List!$C$11,$C28=List!$C$13), 1, 0) -> 0 | Z28: =_xlfn.IFS(S28="","未応札",S28>0,"応札") -> 未応札 | AA28: =_xlfn.IFS(T28=0,"未約定",T28=S28,"約定",T28<S28,"一部約定") -> 未約定 | AC28: =IF(Z28="応札",IF($AA28="未約定",IF(OR($G28=List!$F$2:$F$3), $O28*$S28, $M28*$S28),IF($AA28="一部約定",IF(OR($G28=List!$F$2:$F$3), $O28*($S28-$T28), $M28*($S28-$T28)),"")),"") ->  | AD28: 0
U29: 0 | V29: 0 | X29: =IF(ISNUMBER(B29), IF(COUNTIF($B29:$B$39, B29)=COUNTIF($B:$B, B29), "1", "0"), "") ->  | Y29: =IF(OR($C29=List!$C$5,$C29=List!$C$6,$C29=List!$C$11,$C29=List!$C$13), 1, 0) -> 0 | Z29: =_xlfn.IFS(S29="","未応札",S29>0,"応札") -> 未応札 | AA29: =_xlfn.IFS(T29=0,"未約定",T29=S29,"約定",T29<S29,"一部約定") -> 未約定 | AC29: =IF(Z29="応札",IF($AA29="未約定",IF(OR($G29=List!$F$2:$F$3), $O29*$S29, $M29*$S29),IF($AA29="一部約定",IF(OR($G29=List!$F$2:$F$3), $O29*($S29-$T29), $M29*($S29-$T29)),"")),"") ->  | AD29: 0
U30: 0 | V30: 0 | X30: =IF(ISNUMBER(B30), IF(COUNTIF($B30:$B$39, B30)=COUNTIF($B:$B, B30), "1", "0"), "") ->  | Y30: =IF(OR($C30=List!$C$5,$C30=List!$C$6,$C30=List!$C$11,$C30=List!$C$13), 1, 0) -> 0 | Z30: =_xlfn.IFS(S30="","未応札",S30>0,"応札") -> 未応札 | AA30: =_xlfn.IFS(T30=0,"未約定",T30=S30,"約定",T30<S30,"一部約定") -> 未約定 | AC30: =IF(Z30="応札",IF($AA30="未約定",IF(OR($G30=List!$F$2:$F$3), $O30*$S30, $M30*$S30),IF($AA30="一部約定",IF(OR($G30=List!$F$2:$F$3), $O30*($S30-$T30), $M30*($S30-$T30)),"")),"") ->  | AD30: 0
U31: 0 | V31: 0 | X31: =IF(ISNUMBER(B31), IF(COUNTIF($B31:$B$39, B31)=COUNTIF($B:$B, B31), "1", "0"), "") ->  | Y31: =IF(OR($C31=List!$C$5,$C31=List!$C$6,$C31=List!$C$11,$C31=List!$C$13), 1, 0) -> 0 | Z31: =_xlfn.IFS(S31="","未応札",S31>0,"応札") -> 未応札 | AA31: =_xlfn.IFS(T31=0,"未約定",T31=S31,"約定",T31<S31,"一部約定") -> 未約定 | AC31: =IF(Z31="応札",IF($AA31="未約定",IF(OR($G31=List!$F$2:$F$3), $O31*$S31, $M31*$S31),IF($AA31="一部約定",IF(OR($G31=List!$F$2:$F$3), $O31*($S31-$T31), $M31*($S31-$T31)),"")),"") ->  | AD31: 0
U32: 0 | V32: 0 | X32: =IF(ISNUMBER(B32), IF(COUNTIF($B32:$B$39, B32)=COUNTIF($B:$B, B32), "1", "0"), "") ->  | Y32: =IF(OR($C32=List!$C$5,$C32=List!$C$6,$C32=List!$C$11,$C32=List!$C$13), 1, 0) -> 0 | Z32: =_xlfn.IFS(S32="","未応札",S32>0,"応札") -> 未応札 | AA32: =_xlfn.IFS(T32=0,"未約定",T32=S32,"約定",T32<S32,"一部約定") -> 未約定 | AC32: =IF(Z32="応札",IF($AA32="未約定",IF(OR($G32=List!$F$2:$F$3), $O32*$S32, $M32*$S32),IF($AA32="一部約定",IF(OR($G32=List!$F$2:$F$3), $O32*($S32-$T32), $M32*($S32-$T32)),"")),"") ->  | AD32: 0
U33: 0 | V33: 0 | X33: =IF(ISNUMBER(B33), IF(COUNTIF($B33:$B$39, B33)=COUNTIF($B:$B, B33), "1", "0"), "") ->  | Y33: =IF(OR($C33=List!$C$5,$C33=List!$C$6,$C33=List!$C$11,$C33=List!$C$13), 1, 0) -> 0 | Z33: =_xlfn.IFS(S33="","未応札",S33>0,"応札") -> 未応札 | AA33: =_xlfn.IFS(T33=0,"未約定",T33=S33,"約定",T33<S33,"一部約定") -> 未約定 | AC33: =IF(Z33="応札",IF($AA33="未約定",IF(OR($G33=List!$F$2:$F$3), $O33*$S33, $M33*$S33),IF($AA33="一部約定",IF(OR($G33=List!$F$2:$F$3), $O33*($S33-$T33), $M33*($S33-$T33)),"")),"") ->  | AD33: 0
U34: 0 | V34: 0 | X34: =IF(ISNUMBER(B34), IF(COUNTIF($B34:$B$39, B34)=COUNTIF($B:$B, B34), "1", "0"), "") ->  | Y34: =IF(OR($C34=List!$C$5,$C34=List!$C$6,$C34=List!$C$11,$C34=List!$C$13), 1, 0) -> 0 | Z34: =_xlfn.IFS(S34="","未応札",S34>0,"応札") -> 未応札 | AA34: =_xlfn.IFS(T34=0,"未約定",T34=S34,"約定",T34<S34,"一部約定") -> 未約定 | AC34: =IF(Z34="応札",IF($AA34="未約定",IF(OR($G34=List!$F$2:$F$3), $O34*$S34, $M34*$S34),IF($AA34="一部約定",IF(OR($G34=List!$F$2:$F$3), $O34*($S34-$T34), $M34*($S34-$T34)),"")),"") ->  | AD34: 0
U35: 0 | V35: 0 | X35: =IF(ISNUMBER(B35), IF(COUNTIF($B35:$B$39, B35)=COUNTIF($B:$B, B35), "1", "0"), "") ->  | Y35: =IF(OR($C35=List!$C$5,$C35=List!$C$6,$C35=List!$C$11,$C35=List!$C$13), 1, 0) -> 0 | Z35: =_xlfn.IFS(S35="","未応札",S35>0,"応札") -> 未応札 | AA35: =_xlfn.IFS(T35=0,"未約定",T35=S35,"約定",T35<S35,"一部約定") -> 未約定 | AC35: =IF(Z35="応札",IF($AA35="未約定",IF(OR($G35=List!$F$2:$F$3), $O35*$S35, $M35*$S35),IF($AA35="一部約定",IF(OR($G35=List!$F$2:$F$3), $O35*($S35-$T35), $M35*($S35-$T35)),"")),"") ->  | AD35: 0
U36: 0 | V36: 0 | X36: =IF(ISNUMBER(B36), IF(COUNTIF($B36:$B$39, B36)=COUNTIF($B:$B, B36), "1", "0"), "") ->  | Y36: =IF(OR($C36=List!$C$5,$C36=List!$C$6,$C36=List!$C$11,$C36=List!$C$13), 1, 0) -> 0 | Z36: =_xlfn.IFS(S36="","未応札",S36>0,"応札") -> 未応札 | AA36: =_xlfn.IFS(T36=0,"未約定",T36=S36,"約定",T36<S36,"一部約定") -> 未約定 | AC36: =IF(Z36="応札",IF($AA36="未約定",IF(OR($G36=List!$F$2:$F$3), $O36*$S36, $M36*$S36),IF($AA36="一部約定",IF(OR($G36=List!$F$2:$F$3), $O36*($S36-$T36), $M36*($S36-$T36)),"")),"") ->  | AD36: 0
U37: 0 | V37: 0 | X37: =IF(ISNUMBER(B37), IF(COUNTIF($B37:$B$39, B37)=COUNTIF($B:$B, B37), "1", "0"), "") ->  | Y37: =IF(OR($C37=List!$C$5,$C37=List!$C$6,$C37=List!$C$11,$C37=List!$C$13), 1, 0) -> 0 | Z37: =_xlfn.IFS(S37="","未応札",S37>0,"応札") -> 未応札 | AA37: =_xlfn.IFS(T37=0,"未約定",T37=S37,"約定",T37<S37,"一部約定") -> 未約定 | AC37: =IF(Z37="応札",IF($AA37="未約定",IF(OR($G37=List!$F$2:$F$3), $O37*$S37, $M37*$S37),IF($AA37="一部約定",IF(OR($G37=List!$F$2:$F$3), $O37*($S37-$T37), $M37*($S37-$T37)),"")),"") ->  | AD37: 0
U38: 0 | V38: 0 | X38: =IF(ISNUMBER(B38), IF(COUNTIF($B38:$B$39, B38)=COUNTIF($B:$B, B38), "1", "0"), "") ->  | Y38: =IF(OR($C38=List!$C$5,$C38=List!$C$6,$C38=List!$C$11,$C38=List!$C$13), 1, 0) -> 0 | Z38: =_xlfn.IFS(S38="","未応札",S38>0,"応札") -> 未応札 | AA38: =_xlfn.IFS(T38=0,"未約定",T38=S38,"約定",T38<S38,"一部約定") -> 未約定 | AC38: =IF(Z38="応札",IF($AA38="未約定",IF(OR($G38=List!$F$2:$F$3), $O38*$S38, $M38*$S38),IF($AA38="一部約定",IF(OR($G38=List!$F$2:$F$3), $O38*($S38-$T38), $M38*($S38-$T38)),"")),"") ->  | AD38: 0
B39: 1 | C39: 9：持ち下げ・起動供出機：一部不落 | D39: 0：非対象 | E39: 20250401 | F39: 2 | G39: 2：該当（持ち下げ供出機） | H39: ○X○○○ | I39: 2：三次調整力② | J39: ○○○○○○ | K39: 2025040131CCC○○○○○○ | L39: ○○○○○○ | N39: 10 | O39: 70 | P39: 2.25 | S39: 50000 | T39: 30000 | U39: =P39*(S39-T39) -> 45000 | V39: 0 | X39: =IF(ISNUMBER(B39), IF(COUNTIF($B$39:$B39, B39)=COUNTIF($B:$B, B39), "1", "0"), "") -> 1 | Y39: =IF(OR($C39=List!$C$5,$C39=List!$C$6,$C39=List!$C$11,$C39=List!$C$13), 1, 0) -> 0 | Z39: =_xlfn.IFS(S39="","未応札",S39>0,"応札") -> 応札 | AA39: =_xlfn.IFS(T39=0,"未約定",T39=S39,"約定",T39<S39,"一部約定") -> 一部約定 | AB39: 1：並列 | AC39: =IF(Z39="応札",IF($AA39="未約定",IF(OR($G39=List!$F$2:$F$3), $O39*$S39, $M39*$S39),IF($AA39="一部約定",IF(OR($G39=List!$F$2:$F$3), $O39*($S39-$T39), $M39*($S39-$T39)),"")),"") -> 1400000 | AD39: 45000
B40: 2 | C40: 9：持ち下げ・起動供出機：一部不落 | D40: 0：非対象 | E40: 20250401 | F40: 2 | G40: 1：該当（起動供出機） | H40: ○Y○○○ | I40: 2：三次調整力② | J40: ○○○○○○ | K40: 2025040132CCC○○○○○○ | L40: ○○○○○○ | N40: 150 | O40: 77.75 | P40: 2.25 | Q40: 20000 | R40: 20000 | S40: 50000 | T40: 30000 | U40: =P40*(S40-T40) -> 45000 | V40: 0 | X40: =IF(ISNUMBER(B40), IF(COUNTIF($B$39:$B40, B40)=COUNTIF($B:$B, B40), "1", "0"), "") -> 1 | Y40: =IF(OR($C40=List!$C$5,$C40=List!$C$6,$C40=List!$C$11,$C40=List!$C$13), 1, 0) -> 0 | Z40: =_xlfn.IFS(S40="","未応札",S40>0,"応札") -> 応札 | AA40: =_xlfn.IFS(T40=0,"未約定",T40=S40,"約定",T40<S40,"一部約定") -> 一部約定 | AB40: 1：並列 | AC40: =IF(Z40="応札",IF($AA40="未約定",IF(OR($G40=List!$F$2:$F$3), $O40*$S40, $M40*$S40),IF($AA40="一部約定",IF(OR($G40=List!$F$2:$F$3), $O40*($S40-$T40), $M40*($S40-$T40)),"")),"") -> 1555000 | AD40: 45000
B41: 3 | C41: 8：持ち下げ・起動供出機：全量不落 | D41: 0：非対象 | E41: 20250402 | F41: 2 | G41: 2：該当（持ち下げ供出機） | H41: ○X○○○ | I41: 2：三次調整力② | J41: ○○○○○○ | K41: 2025040131AAA○○○○○○ | L41: ○○○○○○ | N41: 10 | O41: 70 | S41: 50000 | T41: 0 | U41: =P41*(S41-T41) -> 0 | V41: 0 | X41: =IF(ISNUMBER(B41), IF(COUNTIF($B$39:$B41, B41)=COUNTIF($B:$B, B41), "1", "0"), "") -> 1 | Y41: =IF(OR($C41=List!$C$5,$C41=List!$C$6,$C41=List!$C$11,$C41=List!$C$13), 1, 0) -> 0 | Z41: =_xlfn.IFS(S41="","未応札",S41>0,"応札") -> 応札 | AA41: =_xlfn.IFS(T41=0,"未約定",T41=S41,"約定",T41<S41,"一部約定") -> 未約定 | AB41: 1：並列 | AC41: =IF(Z41="応札",IF($AA41="未約定",IF(OR($G41=List!$F$2:$F$3), $O41*$S41, $M41*$S41),IF($AA41="一部約定",IF(OR($G41=List!$F$2:$F$3), $O41*($S41-$T41), $M41*($S41-$T41)),"")),"") -> 3500000 | AD41: 0
B42: 4 | C42: 8：持ち下げ・起動供出機：全量不落 | D42: 0：非対象 | E42: 20250402 | F42: 2 | G42: 1：該当（起動供出機） | H42: ○Y○○○ | I42: 2：三次調整力② | J42: ○○○○○○ | K42: 2025040132AAA○○○○○○ | L42: ○○○○○○ | N42: 150 | O42: 77.75 | Q42: 0 | R42: 0 | S42: 50000 | T42: 0 | U42: 0 | V42: =IF(W42 > 0, SUMIFS(U:U, B:B, B42, Y:Y, 1), 0) -> 0 | X42: =IF(ISNUMBER(B42), IF(COUNTIF($B$39:$B42, B42)=COUNTIF($B:$B, B42), "1", "0"), "") -> 1 | Y42: =IF(OR($C42=List!$C$5,$C42=List!$C$6,$C42=List!$C$11,$C42=List!$C$13), 1, 0) -> 0 | Z42: =_xlfn.IFS(S42="","未応札",S42>0,"応札") -> 応札 | AA42: =_xlfn.IFS(T42=0,"未約定",T42=S42,"約定",T42<S42,"一部約定") -> 未約定 | AB42: 1：並列 | AC42: =IF(Z42="応札",IF($AA42="未約定",IF(OR($G42=List!$F$2:$F$3), $O42*$S42, $M42*$S42),IF($AA42="一部約定",IF(OR($G42=List!$F$2:$F$3), $O42*($S42-$T42), $M42*($S42-$T42)),"")),"") -> 3887500
U43: 0 | V43: 0 | X43: =IF(ISNUMBER(B43), IF(COUNTIF($B$39:$B43, B43)=COUNTIF($B:$B, B43), "1", "0"), "") ->  | Y43: =IF(OR($C43=List!$C$5,$C43=List!$C$6,$C43=List!$C$11,$C43=List!$C$13), 1, 0) -> 0 | Z43: =_xlfn.IFS(S43="","未応札",S43>0,"応札") -> 未応札 | AA43: =_xlfn.IFS(T43=0,"未約定",T43=S43,"約定",T43<S43,"一部約定") -> 未約定 | AC43: =IF(Z43="応札",IF($AA43="未約定",IF(OR($G43=List!$F$2:$F$3), $O43*$S43, $M43*$S43),IF($AA43="一部約定",IF(OR($G43=List!$F$2:$F$3), $O43*($S43-$T43), $M43*($S43-$T43)),"")),"") ->  | AD43: 0
U44: 0 | V44: 0 | X44: =IF(ISNUMBER(B44), IF(COUNTIF($B$39:$B44, B44)=COUNTIF($B:$B, B44), "1", "0"), "") ->  | Y44: =IF(OR($C44=List!$C$5,$C44=List!$C$6,$C44=List!$C$11,$C44=List!$C$13), 1, 0) -> 0 | Z44: =_xlfn.IFS(S44="","未応札",S44>0,"応札") -> 未応札 | AA44: =_xlfn.IFS(T44=0,"未約定",T44=S44,"約定",T44<S44,"一部約定") -> 未約定 | AC44: =IF(Z44="応札",IF($AA44="未約定",IF(OR($G44=List!$F$2:$F$3), $O44*$S44, $M44*$S44),IF($AA44="一部約定",IF(OR($G44=List!$F$2:$F$3), $O44*($S44-$T44), $M44*($S44-$T44)),"")),"") ->  | AD44: 0
U45: 0 | V45: 0 | X45: =IF(ISNUMBER(B45), IF(COUNTIF($B$39:$B45, B45)=COUNTIF($B:$B, B45), "1", "0"), "") ->  | Y45: =IF(OR($C45=List!$C$5,$C45=List!$C$6,$C45=List!$C$11,$C45=List!$C$13), 1, 0) -> 0 | Z45: =_xlfn.IFS(S45="","未応札",S45>0,"応札") -> 未応札 | AA45: =_xlfn.IFS(T45=0,"未約定",T45=S45,"約定",T45<S45,"一部約定") -> 未約定 | AC45: =IF(Z45="応札",IF($AA45="未約定",IF(OR($G45=List!$F$2:$F$3), $O45*$S45, $M45*$S45),IF($AA45="一部約定",IF(OR($G45=List!$F$2:$F$3), $O45*($S45-$T45), $M45*($S45-$T45)),"")),"") ->  | AD45: 0
U46: 0 | V46: 0 | X46: =IF(ISNUMBER(B46), IF(COUNTIF($B$39:$B46, B46)=COUNTIF($B:$B, B46), "1", "0"), "") ->  | Y46: =IF(OR($C46=List!$C$5,$C46=List!$C$6,$C46=List!$C$11,$C46=List!$C$13), 1, 0) -> 0 | Z46: =_xlfn.IFS(S46="","未応札",S46>0,"応札") -> 未応札 | AA46: =_xlfn.IFS(T46=0,"未約定",T46=S46,"約定",T46<S46,"一部約定") -> 未約定 | AC46: =IF(Z46="応札",IF($AA46="未約定",IF(OR($G46=List!$F$2:$F$3), $O46*$S46, $M46*$S46),IF($AA46="一部約定",IF(OR($G46=List!$F$2:$F$3), $O46*($S46-$T46), $M46*($S46-$T46)),"")),"") ->  | AD46: 0
U47: 0 | V47: 0 | X47: =IF(ISNUMBER(B47), IF(COUNTIF($B$39:$B47, B47)=COUNTIF($B:$B, B47), "1", "0"), "") ->  | Y47: =IF(OR($C47=List!$C$5,$C47=List!$C$6,$C47=List!$C$11,$C47=List!$C$13), 1, 0) -> 0 | Z47: =_xlfn.IFS(S47="","未応札",S47>0,"応札") -> 未応札 | AA47: =_xlfn.IFS(T47=0,"未約定",T47=S47,"約定",T47<S47,"一部約定") -> 未約定 | AC47: =IF(Z47="応札",IF($AA47="未約定",IF(OR($G47=List!$F$2:$F$3), $O47*$S47, $M47*$S47),IF($AA47="一部約定",IF(OR($G47=List!$F$2:$F$3), $O47*($S47-$T47), $M47*($S47-$T47)),"")),"") ->  | AD47: 0
U48: 0 | V48: 0 | X48: =IF(ISNUMBER(B48), IF(COUNTIF($B$39:$B48, B48)=COUNTIF($B:$B, B48), "1", "0"), "") ->  | Y48: =IF(OR($C48=List!$C$5,$C48=List!$C$6,$C48=List!$C$11,$C48=List!$C$13), 1, 0) -> 0 | Z48: =_xlfn.IFS(S48="","未応札",S48>0,"応札") -> 未応札 | AA48: =_xlfn.IFS(T48=0,"未約定",T48=S48,"約定",T48<S48,"一部約定") -> 未約定 | AC48: =IF(Z48="応札",IF($AA48="未約定",IF(OR($G48=List!$F$2:$F$3), $O48*$S48, $M48*$S48),IF($AA48="一部約定",IF(OR($G48=List!$F$2:$F$3), $O48*($S48-$T48), $M48*($S48-$T48)),"")),"") ->  | AD48: 0
U49: 0 | V49: 0 | X49: =IF(ISNUMBER(B49), IF(COUNTIF($B$39:$B49, B49)=COUNTIF($B:$B, B49), "1", "0"), "") ->  | Y49: =IF(OR($C49=List!$C$5,$C49=List!$C$6,$C49=List!$C$11,$C49=List!$C$13), 1, 0) -> 0 | Z49: =_xlfn.IFS(S49="","未応札",S49>0,"応札") -> 未応札 | AA49: =_xlfn.IFS(T49=0,"未約定",T49=S49,"約定",T49<S49,"一部約定") -> 未約定 | AC49: =IF(Z49="応札",IF($AA49="未約定",IF(OR($G49=List!$F$2:$F$3), $O49*$S49, $M49*$S49),IF($AA49="一部約定",IF(OR($G49=List!$F$2:$F$3), $O49*($S49-$T49), $M49*($S49-$T49)),"")),"") ->  | AD49: 0
U50: 0 | V50: 0 | X50: =IF(ISNUMBER(B50), IF(COUNTIF($B$39:$B50, B50)=COUNTIF($B:$B, B50), "1", "0"), "") ->  | Y50: =IF(OR($C50=List!$C$5,$C50=List!$C$6,$C50=List!$C$11,$C50=List!$C$13), 1, 0) -> 0 | Z50: =_xlfn.IFS(S50="","未応札",S50>0,"応札") -> 未応札 | AA50: =_xlfn.IFS(T50=0,"未約定",T50=S50,"約定",T50<S50,"一部約定") -> 未約定 | AC50: =IF(Z50="応札",IF($AA50="未約定",IF(OR($G50=List!$F$2:$F$3), $O50*$S50, $M50*$S50),IF($AA50="一部約定",IF(OR($G50=List!$F$2:$F$3), $O50*($S50-$T50), $M50*($S50-$T50)),"")),"") ->  | AD50: 0
U51: 0 | V51: 0 | X51: =IF(ISNUMBER(B51), IF(COUNTIF($B$39:$B51, B51)=COUNTIF($B:$B, B51), "1", "0"), "") ->  | Y51: =IF(OR($C51=List!$C$5,$C51=List!$C$6,$C51=List!$C$11,$C51=List!$C$13), 1, 0) -> 0 | Z51: =_xlfn.IFS(S51="","未応札",S51>0,"応札") -> 未応札 | AA51: =_xlfn.IFS(T51=0,"未約定",T51=S51,"約定",T51<S51,"一部約定") -> 未約定 | AC51: =IF(Z51="応札",IF($AA51="未約定",IF(OR($G51=List!$F$2:$F$3), $O51*$S51, $M51*$S51),IF($AA51="一部約定",IF(OR($G51=List!$F$2:$F$3), $O51*($S51-$T51), $M51*($S51-$T51)),"")),"") ->  | AD51: 0
U52: 0 | V52: 0 | X52: =IF(ISNUMBER(B52), IF(COUNTIF($B$39:$B52, B52)=COUNTIF($B:$B, B52), "1", "0"), "") ->  | Y52: =IF(OR($C52=List!$C$5,$C52=List!$C$6,$C52=List!$C$11,$C52=List!$C$13), 1, 0) -> 0 | Z52: =_xlfn.IFS(S52="","未応札",S52>0,"応札") -> 未応札 | AA52: =_xlfn.IFS(T52=0,"未約定",T52=S52,"約定",T52<S52,"一部約定") -> 未約定 | AC52: =IF(Z52="応札",IF($AA52="未約定",IF(OR($G52=List!$F$2:$F$3), $O52*$S52, $M52*$S52),IF($AA52="一部約定",IF(OR($G52=List!$F$2:$F$3), $O52*($S52-$T52), $M52*($S52-$T52)),"")),"") ->  | AD52: 0
U53: 0 | V53: 0 | X53: =IF(ISNUMBER(B53), IF(COUNTIF($B$39:$B53, B53)=COUNTIF($B:$B, B53), "1", "0"), "") ->  | Y53: =IF(OR($C53=List!$C$5,$C53=List!$C$6,$C53=List!$C$11,$C53=List!$C$13), 1, 0) -> 0 | Z53: =_xlfn.IFS(S53="","未応札",S53>0,"応札") -> 未応札 | AA53: =_xlfn.IFS(T53=0,"未約定",T53=S53,"約定",T53<S53,"一部約定") -> 未約定 | AC53: =IF(Z53="応札",IF($AA53="未約定",IF(OR($G53=List!$F$2:$F$3), $O53*$S53, $M53*$S53),IF($AA53="一部約定",IF(OR($G53=List!$F$2:$F$3), $O53*($S53-$T53), $M53*($S53-$T53)),"")),"") ->  | AD53: 0
U54: 0 | V54: 0 | X54: =IF(ISNUMBER(B54), IF(COUNTIF($B$39:$B54, B54)=COUNTIF($B:$B, B54), "1", "0"), "") ->  | Y54: =IF(OR($C54=List!$C$5,$C54=List!$C$6,$C54=List!$C$11,$C54=List!$C$13), 1, 0) -> 0 | Z54: =_xlfn.IFS(S54="","未応札",S54>0,"応札") -> 未応札 | AA54: =_xlfn.IFS(T54=0,"未約定",T54=S54,"約定",T54<S54,"一部約定") -> 未約定 | AC54: =IF(Z54="応札",IF($AA54="未約定",IF(OR($G54=List!$F$2:$F$3), $O54*$S54, $M54*$S54),IF($AA54="一部約定",IF(OR($G54=List!$F$2:$F$3), $O54*($S54-$T54), $M54*($S54-$T54)),"")),"") ->  | AD54: 0
U55: 0 | V55: 0 | X55: =IF(ISNUMBER(B55), IF(COUNTIF($B$39:$B55, B55)=COUNTIF($B:$B, B55), "1", "0"), "") ->  | Y55: =IF(OR($C55=List!$C$5,$C55=List!$C$6,$C55=List!$C$11,$C55=List!$C$13), 1, 0) -> 0 | Z55: =_xlfn.IFS(S55="","未応札",S55>0,"応札") -> 未応札 | AA55: =_xlfn.IFS(T55=0,"未約定",T55=S55,"約定",T55<S55,"一部約定") -> 未約定 | AC55: =IF(Z55="応札",IF($AA55="未約定",IF(OR($G55=List!$F$2:$F$3), $O55*$S55, $M55*$S55),IF($AA55="一部約定",IF(OR($G55=List!$F$2:$F$3), $O55*($S55-$T55), $M55*($S55-$T55)),"")),"") ->  | AD55: 0
U56: 0 | V56: 0 | X56: =IF(ISNUMBER(B56), IF(COUNTIF($B$39:$B56, B56)=COUNTIF($B:$B, B56), "1", "0"), "") ->  | Y56: =IF(OR($C56=List!$C$5,$C56=List!$C$6,$C56=List!$C$11,$C56=List!$C$13), 1, 0) -> 0 | Z56: =_xlfn.IFS(S56="","未応札",S56>0,"応札") -> 未応札 | AA56: =_xlfn.IFS(T56=0,"未約定",T56=S56,"約定",T56<S56,"一部約定") -> 未約定 | AC56: =IF(Z56="応札",IF($AA56="未約定",IF(OR($G56=List!$F$2:$F$3), $O56*$S56, $M56*$S56),IF($AA56="一部約定",IF(OR($G56=List!$F$2:$F$3), $O56*($S56-$T56), $M56*($S56-$T56)),"")),"") ->  | AD56: 0
U57: 0 | V57: 0 | X57: =IF(ISNUMBER(B57), IF(COUNTIF($B$39:$B57, B57)=COUNTIF($B:$B, B57), "1", "0"), "") ->  | Y57: =IF(OR($C57=List!$C$5,$C57=List!$C$6,$C57=List!$C$11,$C57=List!$C$13), 1, 0) -> 0 | Z57: =_xlfn.IFS(S57="","未応札",S57>0,"応札") -> 未応札 | AA57: =_xlfn.IFS(T57=0,"未約定",T57=S57,"約定",T57<S57,"一部約定") -> 未約定 | AC57: =IF(Z57="応札",IF($AA57="未約定",IF(OR($G57=List!$F$2:$F$3), $O57*$S57, $M57*$S57),IF($AA57="一部約定",IF(OR($G57=List!$F$2:$F$3), $O57*($S57-$T57), $M57*($S57-$T57)),"")),"") ->  | AD57: 0
U58: 0 | V58: 0 | X58: =IF(ISNUMBER(B58), IF(COUNTIF($B$39:$B58, B58)=COUNTIF($B:$B, B58), "1", "0"), "") ->  | Y58: =IF(OR($C58=List!$C$5,$C58=List!$C$6,$C58=List!$C$11,$C58=List!$C$13), 1, 0) -> 0 | Z58: =_xlfn.IFS(S58="","未応札",S58>0,"応札") -> 未応札 | AA58: =_xlfn.IFS(T58=0,"未約定",T58=S58,"約定",T58<S58,"一部約定") -> 未約定 | AC58: =IF(Z58="応札",IF($AA58="未約定",IF(OR($G58=List!$F$2:$F$3), $O58*$S58, $M58*$S58),IF($AA58="一部約定",IF(OR($G58=List!$F$2:$F$3), $O58*($S58-$T58), $M58*($S58-$T58)),"")),"") ->  | AD58: 0
U59: 0 | V59: 0 | X59: =IF(ISNUMBER(B59), IF(COUNTIF($B$39:$B59, B59)=COUNTIF($B:$B, B59), "1", "0"), "") ->  | Y59: =IF(OR($C59=List!$C$5,$C59=List!$C$6,$C59=List!$C$11,$C59=List!$C$13), 1, 0) -> 0 | Z59: =_xlfn.IFS(S59="","未応札",S59>0,"応札") -> 未応札 | AA59: =_xlfn.IFS(T59=0,"未約定",T59=S59,"約定",T59<S59,"一部約定") -> 未約定 | AC59: =IF(Z59="応札",IF($AA59="未約定",IF(OR($G59=List!$F$2:$F$3), $O59*$S59, $M59*$S59),IF($AA59="一部約定",IF(OR($G59=List!$F$2:$F$3), $O59*($S59-$T59), $M59*($S59-$T59)),"")),"") ->  | AD59: 0
U60: 0 | V60: 0 | X60: =IF(ISNUMBER(B60), IF(COUNTIF($B$39:$B60, B60)=COUNTIF($B:$B, B60), "1", "0"), "") ->  | Y60: =IF(OR($C60=List!$C$5,$C60=List!$C$6,$C60=List!$C$11,$C60=List!$C$13), 1, 0) -> 0 | Z60: =_xlfn.IFS(S60="","未応札",S60>0,"応札") -> 未応札 | AA60: =_xlfn.IFS(T60=0,"未約定",T60=S60,"約定",T60<S60,"一部約定") -> 未約定 | AC60: =IF(Z60="応札",IF($AA60="未約定",IF(OR($G60=List!$F$2:$F$3), $O60*$S60, $M60*$S60),IF($AA60="一部約定",IF(OR($G60=List!$F$2:$F$3), $O60*($S60-$T60), $M60*($S60-$T60)),"")),"") ->  | AD60: 0
U61: 0 | V61: 0 | X61: =IF(ISNUMBER(B61), IF(COUNTIF($B$39:$B61, B61)=COUNTIF($B:$B, B61), "1", "0"), "") ->  | Y61: =IF(OR($C61=List!$C$5,$C61=List!$C$6,$C61=List!$C$11,$C61=List!$C$13), 1, 0) -> 0 | Z61: =_xlfn.IFS(S61="","未応札",S61>0,"応札") -> 未応札 | AA61: =_xlfn.IFS(T61=0,"未約定",T61=S61,"約定",T61<S61,"一部約定") -> 未約定 | AC61: =IF(Z61="応札",IF($AA61="未約定",IF(OR($G61=List!$F$2:$F$3), $O61*$S61, $M61*$S61),IF($AA61="一部約定",IF(OR($G61=List!$F$2:$F$3), $O61*($S61-$T61), $M61*($S61-$T61)),"")),"") ->  | AD61: 0
U62: 0 | V62: 0 | X62: =IF(ISNUMBER(B62), IF(COUNTIF($B$39:$B62, B62)=COUNTIF($B:$B, B62), "1", "0"), "") ->  | Y62: =IF(OR($C62=List!$C$5,$C62=List!$C$6,$C62=List!$C$11,$C62=List!$C$13), 1, 0) -> 0 | Z62: =_xlfn.IFS(S62="","未応札",S62>0,"応札") -> 未応札 | AA62: =_xlfn.IFS(T62=0,"未約定",T62=S62,"約定",T62<S62,"一部約定") -> 未約定 | AC62: =IF(Z62="応札",IF($AA62="未約定",IF(OR($G62=List!$F$2:$F$3), $O62*$S62, $M62*$S62),IF($AA62="一部約定",IF(OR($G62=List!$F$2:$F$3), $O62*($S62-$T62), $M62*($S62-$T62)),"")),"") ->  | AD62: 0
U63: 0 | V63: 0 | X63: =IF(ISNUMBER(B63), IF(COUNTIF($B$39:$B63, B63)=COUNTIF($B:$B, B63), "1", "0"), "") ->  | Y63: =IF(OR($C63=List!$C$5,$C63=List!$C$6,$C63=List!$C$11,$C63=List!$C$13), 1, 0) -> 0 | Z63: =_xlfn.IFS(S63="","未応札",S63>0,"応札") -> 未応札 | AA63: =_xlfn.IFS(T63=0,"未約定",T63=S63,"約定",T63<S63,"一部約定") -> 未約定 | AC63: =IF(Z63="応札",IF($AA63="未約定",IF(OR($G63=List!$F$2:$F$3), $O63*$S63, $M63*$S63),IF($AA63="一部約定",IF(OR($G63=List!$F$2:$F$3), $O63*($S63-$T63), $M63*($S63-$T63)),"")),"") ->  | AD63: 0
U64: 0 | V64: 0 | X64: =IF(ISNUMBER(B64), IF(COUNTIF($B$39:$B64, B64)=COUNTIF($B:$B, B64), "1", "0"), "") ->  | Y64: =IF(OR($C64=List!$C$5,$C64=List!$C$6,$C64=List!$C$11,$C64=List!$C$13), 1, 0) -> 0 | Z64: =_xlfn.IFS(S64="","未応札",S64>0,"応札") -> 未応札 | AA64: =_xlfn.IFS(T64=0,"未約定",T64=S64,"約定",T64<S64,"一部約定") -> 未約定 | AC64: =IF(Z64="応札",IF($AA64="未約定",IF(OR($G64=List!$F$2:$F$3), $O64*$S64, $M64*$S64),IF($AA64="一部約定",IF(OR($G64=List!$F$2:$F$3), $O64*($S64-$T64), $M64*($S64-$T64)),"")),"") ->  | AD64: 0
U65: 0 | V65: 0 | X65: =IF(ISNUMBER(B65), IF(COUNTIF($B$39:$B65, B65)=COUNTIF($B:$B, B65), "1", "0"), "") ->  | Y65: =IF(OR($C65=List!$C$5,$C65=List!$C$6,$C65=List!$C$11,$C65=List!$C$13), 1, 0) -> 0 | Z65: =_xlfn.IFS(S65="","未応札",S65>0,"応札") -> 未応札 | AA65: =_xlfn.IFS(T65=0,"未約定",T65=S65,"約定",T65<S65,"一部約定") -> 未約定 | AC65: =IF(Z65="応札",IF($AA65="未約定",IF(OR($G65=List!$F$2:$F$3), $O65*$S65, $M65*$S65),IF($AA65="一部約定",IF(OR($G65=List!$F$2:$F$3), $O65*($S65-$T65), $M65*($S65-$T65)),"")),"") ->  | AD65: 0
U66: 0 | V66: 0 | X66: =IF(ISNUMBER(B66), IF(COUNTIF($B$39:$B66, B66)=COUNTIF($B:$B, B66), "1", "0"), "") ->  | Y66: =IF(OR($C66=List!$C$5,$C66=List!$C$6,$C66=List!$C$11,$C66=List!$C$13), 1, 0) -> 0 | Z66: =_xlfn.IFS(S66="","未応札",S66>0,"応札") -> 未応札 | AA66: =_xlfn.IFS(T66=0,"未約定",T66=S66,"約定",T66<S66,"一部約定") -> 未約定 | AC66: =IF(Z66="応札",IF($AA66="未約定",IF(OR($G66=List!$F$2:$F$3), $O66*$S66, $M66*$S66),IF($AA66="一部約定",IF(OR($G66=List!$F$2:$F$3), $O66*($S66-$T66), $M66*($S66-$T66)),"")),"") ->  | AD66: 0
U67: 0 | V67: 0 | X67: =IF(ISNUMBER(B67), IF(COUNTIF($B$39:$B67, B67)=COUNTIF($B:$B, B67), "1", "0"), "") ->  | Y67: =IF(OR($C67=List!$C$5,$C67=List!$C$6,$C67=List!$C$11,$C67=List!$C$13), 1, 0) -> 0 | Z67: =_xlfn.IFS(S67="","未応札",S67>0,"応札") -> 未応札 | AA67: =_xlfn.IFS(T67=0,"未約定",T67=S67,"約定",T67<S67,"一部約定") -> 未約定 | AC67: =IF(Z67="応札",IF($AA67="未約定",IF(OR($G67=List!$F$2:$F$3), $O67*$S67, $M67*$S67),IF($AA67="一部約定",IF(OR($G67=List!$F$2:$F$3), $O67*($S67-$T67), $M67*($S67-$T67)),"")),"") ->  | AD67: 0
U68: 0 | V68: 0 | X68: =IF(ISNUMBER(B68), IF(COUNTIF($B$39:$B68, B68)=COUNTIF($B:$B, B68), "1", "0"), "") ->  | Y68: =IF(OR($C68=List!$C$5,$C68=List!$C$6,$C68=List!$C$11,$C68=List!$C$13), 1, 0) -> 0 | Z68: =_xlfn.IFS(S68="","未応札",S68>0,"応札") -> 未応札 | AA68: =_xlfn.IFS(T68=0,"未約定",T68=S68,"約定",T68<S68,"一部約定") -> 未約定 | AC68: =IF(Z68="応札",IF($AA68="未約定",IF(OR($G68=List!$F$2:$F$3), $O68*$S68, $M68*$S68),IF($AA68="一部約定",IF(OR($G68=List!$F$2:$F$3), $O68*($S68-$T68), $M68*($S68-$T68)),"")),"") ->  | AD68: 0
U69: 0 | V69: 0 | X69: =IF(ISNUMBER(B69), IF(COUNTIF($B$39:$B69, B69)=COUNTIF($B:$B, B69), "1", "0"), "") ->  | Y69: =IF(OR($C69=List!$C$5,$C69=List!$C$6,$C69=List!$C$11,$C69=List!$C$13), 1, 0) -> 0 | Z69: =_xlfn.IFS(S69="","未応札",S69>0,"応札") -> 未応札 | AA69: =_xlfn.IFS(T69=0,"未約定",T69=S69,"約定",T69<S69,"一部約定") -> 未約定 | AC69: =IF(Z69="応札",IF($AA69="未約定",IF(OR($G69=List!$F$2:$F$3), $O69*$S69, $M69*$S69),IF($AA69="一部約定",IF(OR($G69=List!$F$2:$F$3), $O69*($S69-$T69), $M69*($S69-$T69)),"")),"") ->  | AD69: 0
U70: 0 | V70: 0 | X70: =IF(ISNUMBER(B70), IF(COUNTIF($B$39:$B70, B70)=COUNTIF($B:$B, B70), "1", "0"), "") ->  | Y70: =IF(OR($C70=List!$C$5,$C70=List!$C$6,$C70=List!$C$11,$C70=List!$C$13), 1, 0) -> 0 | Z70: =_xlfn.IFS(S70="","未応札",S70>0,"応札") -> 未応札 | AA70: =_xlfn.IFS(T70=0,"未約定",T70=S70,"約定",T70<S70,"一部約定") -> 未約定 | AC70: =IF(Z70="応札",IF($AA70="未約定",IF(OR($G70=List!$F$2:$F$3), $O70*$S70, $M70*$S70),IF($AA70="一部約定",IF(OR($G70=List!$F$2:$F$3), $O70*($S70-$T70), $M70*($S70-$T70)),"")),"") ->  | AD70: 0
U71: 0 | V71: 0 | X71: =IF(ISNUMBER(B71), IF(COUNTIF($B$39:$B71, B71)=COUNTIF($B:$B, B71), "1", "0"), "") ->  | Y71: =IF(OR($C71=List!$C$5,$C71=List!$C$6,$C71=List!$C$11,$C71=List!$C$13), 1, 0) -> 0 | Z71: =_xlfn.IFS(S71="","未応札",S71>0,"応札") -> 未応札 | AA71: =_xlfn.IFS(T71=0,"未約定",T71=S71,"約定",T71<S71,"一部約定") -> 未約定 | AC71: =IF(Z71="応札",IF($AA71="未約定",IF(OR($G71=List!$F$2:$F$3), $O71*$S71, $M71*$S71),IF($AA71="一部約定",IF(OR($G71=List!$F$2:$F$3), $O71*($S71-$T71), $M71*($S71-$T71)),"")),"") ->  | AD71: 0
U72: 0 | V72: 0 | X72: =IF(ISNUMBER(B72), IF(COUNTIF($B$39:$B72, B72)=COUNTIF($B:$B, B72), "1", "0"), "") ->  | Y72: =IF(OR($C72=List!$C$5,$C72=List!$C$6,$C72=List!$C$11,$C72=List!$C$13), 1, 0) -> 0 | Z72: =_xlfn.IFS(S72="","未応札",S72>0,"応札") -> 未応札 | AA72: =_xlfn.IFS(T72=0,"未約定",T72=S72,"約定",T72<S72,"一部約定") -> 未約定 | AC72: =IF(Z72="応札",IF($AA72="未約定",IF(OR($G72=List!$F$2:$F$3), $O72*$S72, $M72*$S72),IF($AA72="一部約定",IF(OR($G72=List!$F$2:$F$3), $O72*($S72-$T72), $M72*($S72-$T72)),"")),"") ->  | AD72: 0
U73: 0 | V73: 0 | X73: =IF(ISNUMBER(B73), IF(COUNTIF($B$39:$B73, B73)=COUNTIF($B:$B, B73), "1", "0"), "") ->  | Y73: =IF(OR($C73=List!$C$5,$C73=List!$C$6,$C73=List!$C$11,$C73=List!$C$13), 1, 0) -> 0 | Z73: =_xlfn.IFS(S73="","未応札",S73>0,"応札") -> 未応札 | AA73: =_xlfn.IFS(T73=0,"未約定",T73=S73,"約定",T73<S73,"一部約定") -> 未約定 | AC73: =IF(Z73="応札",IF($AA73="未約定",IF(OR($G73=List!$F$2:$F$3), $O73*$S73, $M73*$S73),IF($AA73="一部約定",IF(OR($G73=List!$F$2:$F$3), $O73*($S73-$T73), $M73*($S73-$T73)),"")),"") ->  | AD73: 0
U74: 0 | V74: =IF(W74 > 0, SUMIFS(U:U, B:B, B74, Y:Y, 1), 0) -> 0 | X74: =IF(ISNUMBER(B74), IF(COUNTIF($B$39:$B74, B74)=COUNTIF($B:$B, B74), "1", "0"), "") ->  | Y74: =IF(OR($C74=List!$C$5,$C74=List!$C$6,$C74=List!$C$11,$C74=List!$C$13), 1, 0) -> 0 | Z74: =_xlfn.IFS(S74="","未応札",S74>0,"応札") -> 未応札 | AA74: =_xlfn.IFS(T74=0,"未約定",T74=S74,"約定",T74<S74,"一部約定") -> 未約定 | AC74: =IF(Z74="応札",IF($AA74="未約定",IF(OR($G74=List!$F$2:$F$3), $O74*$S74, $M74*$S74),IF($AA74="一部約定",IF(OR($G74=List!$F$2:$F$3), $O74*($S74-$T74), $M74*($S74-$T74)),"")),"") ->  | AD74: 0
U75: 0 | V75: 0 | X75: =IF(ISNUMBER(B75), IF(COUNTIF($B$39:$B75, B75)=COUNTIF($B:$B, B75), "1", "0"), "") ->  | Y75: =IF(OR($C75=List!$C$5,$C75=List!$C$6,$C75=List!$C$11,$C75=List!$C$13), 1, 0) -> 0 | Z75: =_xlfn.IFS(S75="","未応札",S75>0,"応札") -> 未応札 | AA75: =_xlfn.IFS(T75=0,"未約定",T75=S75,"約定",T75<S75,"一部約定") -> 未約定 | AC75: =IF(Z75="応札",IF($AA75="未約定",IF(OR($G75=List!$F$2:$F$3), $O75*$S75, $M75*$S75),IF($AA75="一部約定",IF(OR($G75=List!$F$2:$F$3), $O75*($S75-$T75), $M75*($S75-$T75)),"")),"") ->  | AD75: =IF(ISBLANK($Q75),IF(OR($AA75="一部約定",$AA75="未約定"),$P75*($S75-$T75),""),IF($Q75=0,"", IF(OR($AA75="一部約定", $AA75="未約定"), $P75*($S75-$T75), ""))) -> 0 | AE75: =IF(AND($Z75="応札",$AA75="未約定"), IF($V75<>0, IF($W75<$V75, IF($W75<>0, $W75, ""), IF($V75<>0, $V75, "")), IF($W75<>0, $W75, "")), "") -> 
U76: 0 | V76: 0 | X76: =IF(ISNUMBER(B76), IF(COUNTIF($B$39:$B76, B76)=COUNTIF($B:$B, B76), "1", "0"), "") ->  | Y76: =IF(OR($C76=List!$C$5,$C76=List!$C$6,$C76=List!$C$11,$C76=List!$C$13), 1, 0) -> 0 | Z76: =_xlfn.IFS(S76="","未応札",S76>0,"応札") -> 未応札 | AA76: =_xlfn.IFS(T76=0,"未約定",T76=S76,"約定",T76<S76,"一部約定") -> 未約定 | AC76: =IF(Z76="応札",IF($AA76="未約定",IF(OR($G76=List!$F$2:$F$3), $O76*$S76, $M76*$S76),IF($AA76="一部約定",IF(OR($G76=List!$F$2:$F$3), $O76*($S76-$T76), $M76*($S76-$T76)),"")),"") ->  | AD76: 0

Sheet 記載例_精算パターン⑧加重平均入札（余力活用契約で停止・再起動
B2: 取引年月 | C2: 202504
B3: MMSコード | C3: A000
B4: 対象エリア | C4: 3：東京
B5: ファイル名称 | C5: =$C$2&"_"&$C$3&"_"&LEFT($C$4,1)&"_不約定単価内訳兼起動費事後精算情報様式" -> 202504_A000_3_不約定単価内訳兼起動費事後精算情報様式
B7: =入力シート!B7 -> 事象NO | C7: =入力シート!C7 -> 精算パターン | D7: =入力シート!D7 -> 余力活用契約対象リソース区分 | E7: =入力シート!E7 -> 取引日 | F7: =入力シート!F7 -> 時刻コード | G7: =入力シート!G7 -> 持ち下げ供出機区分 | H7: =入力シート!H7 -> 系統コード | I7: =入力シート!I7 -> 商品区分 | J7: =入力シート!J7 -> 売り入札ID | K7: =入力シート!K7 -> 約定番号 | L7: =入力シート!L7 -> 約定識別ID | M7: =入力シート!M7 -> MMS起動費単価 | N7: =入力シート!N7 -> 加重平均前のΔkW単価 | O7: =入力シート!O7 -> 加重平均起動費未回収分相当額 | P7: =入力シート!P7 -> 最低出力までの発電電力量の機会費用単価 | Q7: =入力シート!Q7 -> 発電計画 | R7: =入力シート!R7 -> 最低出力 | S7: =入力シート!S7 -> 約定希望ΔkW | T7: =入力シート!T7 -> ΔkW約定量 | U7: =入力シート!U7 -> 最低出力までの発電電力量の機会費用単価×(約定希望ΔkW-ΔkW約定量) | V7: =入力シート!V7 -> 最低出力維持した場合の費用合計 | W7: =入力シート!W7 -> 停止・再起動にかかる費用 | X7: =入力シート!X7 -> 事象毎の最終行 | Y7: =入力シート!Y7 -> 妥当性確認 | Z7: =入力シート!Z7 -> 応札状況 | AA7: =入力シート!AA7 -> 約定状況 | AB7: =入力シート!AB7 -> 並解列状態(実績) | AC7: =入力シート!AC7 -> 起動費未回収分相当額 | AD7: =入力シート!AD7 -> 最低出力までの発電電力量の機会費用 | AE7: =入力シート!AE7 -> 停止・再起動にかかる費用 | AH7: =入力シート!AH7 -> 精算対象 申請小計 | AI7: =入力シート!AI7 -> 起動費未回収分相当額 | AJ7: =入力シート!AJ7 -> 最低出力までの発電電力量の機会費用 | AK7: =入力シート!AK7 -> 停止・再起動にかかる費用 | AL7: =入力シート!AL7 -> 合計
M8: （円/kW） | N8: （円/kW） | O8: （円/kW） | P8: （円/kW） | Q8: （kWh） | R8: （kWh） | S8: （kW） | T8: （kW） | U8: （円） | V8: （円） | W8: （円） | AC8: （円） | AD8: （円） | AE8: （円） | AI8: （円） | AJ8: （円） | AK8: （円） | AL8: （円）
B9: =IF(入力シート!B9<>"",入力シート!B9,"") -> ※起動費未回収が発生した事象ごとにNOを付定すること。 | C9: =IF(入力シート!C9<>"",入力シート!C9,"") ->  | D9: =IF(入力シート!D9<>"",入力シート!D9,"") -> ※対象の場合は「１」，非対象の場合は「０」を入力 | E9: =IF(入力シート!E9<>"",入力シート!E9,"") ->  | F9: =IF(入力シート!F9<>"",入力シート!F9,"") ->  | G9: =IF(入力シート!G9<>"",入力シート!G9,"") -> ※持ち下げ供出機を加重平均で入札した場合に選択 | H9: =IF(入力シート!H9<>"",入力シート!H9,"") ->  | I9: =IF(入力シート!I9<>"",入力シート!I9,"") ->  | J9: =IF(入力シート!J9<>"",入力シート!J9,"") ->  | K9: =IF(入力シート!K9<>"",入力シート!K9,"") -> ※１持ち下げ供出機区分が該当する場合，起動供出機の約定番号を記載すること ※２同一時刻コードにおいて，複数の約定番号がある場合は，いずれか1つを記載すること。 | L9: =IF(入力シート!L9<>"",入力シート!L9,"") -> ※1持ち下げ供出機区分に該当する場合，起動供出機の約定識別IDを記載すること ※2同一時刻コードにおいて，約定番号に紐づく約定識別IDが複数存在する場合は，いずれか1つを記載すること ※3電源差し替えを実施した場合，差替え元の約定識別IDを記載すること(持ち下げ供出機区分に該当する場合,起動供出機の初回約定識別IDを記載すること) | M9: =IF(入力シート!M9<>"",入力シート!M9,"") -> ※MMSに登録された起動費単価分を原則用いること | N9: =IF(入力シート!N9<>"",入力シート!N9,"") -> ※持ち下げ供出機区分が該当する場合に記載すること | O9: =IF(入力シート!O9<>"",入力シート!O9,"") -> ※ 持ち下げ供出機区分が該当する場合に記載すること | P9: =IF(入力シート!P9<>"",入力シート!P9,"") -> ※１卸電力市場価格（スポット市場価格：実績）と限界費用との差額を用いること ※２加重平均で入札した場合は，最低出力までの発電電力量の加重平均機会費用相当額を記載すること ※３加重平均で入札し，持ち下げ供出機の情報を記載する場合は，持ち下げ供出機のΔkW単価に含めた起動供出機の最低出力までの発電電力量の加重平均機会費用相当額を記載すること。ただし，精算パターンが「持ち下げ・起動供出機:全量不落」の場合は持ち下げ供出機のみが不落となったときに記載すること。 | Q9: =IF(入力シート!Q9<>"",入力シート!Q9,"") ->  | R9: =IF(入力シート!R9<>"",入力シート!R9,"") ->  | S9: =IF(入力シート!S9<>"",入力シート!S9,"") ->  | T9: =IF(入力シート!T9<>"",入力シート!T9,"") ->  | U9: =IF(入力シート!U9<>"",入力シート!U9,"") -> ※加重平均で入札した場合は，最低出力までの発電電力量の加重平均機会費用相当額×(約定希望ΔkW-ΔkW約定量) | V9: =IF(入力シート!V9<>"",入力シート!V9,"") -> ※精算パターン「約定間全量不落(約定間停止・再起動)」を選択した場合，事象NOごとの最終行に合計値表示 | W9: =IF(入力シート!W9<>"",入力シート!W9,"") -> ※１停止・再起動費は最後のブロックに記載すること ※２ 余力活用契約を締結している電源でBG計画上停止・再起動としていたが、実績は停止しなかった場合も、BG計画上の「停止・再起動費」を記載すること | X9: =IF(入力シート!X9<>"",入力シート!X9,"") ->  | Y9: =IF(入力シート!Y9<>"",入力シート!Y9,"") ->  | Z9: =IF(入力シート!Z9<>"",入力シート!Z9,"") ->  | AA9: =IF(入力シート!AA9<>"",入力シート!AA9,"") ->  | AB9: =IF(入力シート!AB9<>"",入力シート!AB9,"") ->  | AC9: =IF(入力シート!AC9<>"",入力シート!AC9,"") -> ※加重平均で入札した場合は，加重平均起動費未回収分相当額 | AD9: =IF(入力シート!AD9<>"",入力シート!AD9,"") -> ※加重平均で入札した場合は，最低出力までの発電電力量の加重平均機会費用相当額 | AE9: =IF(入力シート!AE9<>"",入力シート!AE9,"") -> ※約定間全量不落時において，停止・再起動するよりも，最低出力維持した方が経済的だった場合，後者を事後精算対象とする。 | AI9: =SUM($AC10:$AC2831) -> 7387500 | AJ9: =SUM($AD10:$AD2831) -> 225000 | AK9: =SUM($AE10:$AE2831) -> 0 | AL9: =ROUNDDOWN(SUM(AI9:AK9),0) -> 7612500
B10: 1 | C10: 11：持ち下げ・起動供出機：約定間全量不落（余力活用契約で停止・再起動） | D10: 1：対象 | E10: 20250401 | F10: 3 | G10: 1：該当（起動供出機） | H10: ○Y○○○ | I10: 2：三次調整力② | J10: ○○○○○○ | K10: 2025040132CCC○○○○○○ | L10: ○○○○○○ | N10: 150 | O10: 77.75 | P10: 2.25 | Q10: 20000 | R10: 20000 | S10: 50000 | T10: 0 | U10: =P10*(S10-T10) -> 112500 | V10: =IF(W10 > 0, SUMIFS(U:U, B:B, B10, Y:Y, 1), 0) -> 0 | X10: =IF(ISNUMBER(B10), IF(COUNTIF($B$10:$B10, B10)=COUNTIF($B:$B, B10), "1", "0"), "") -> 1 | Y10: =IF(OR($C10=List!$C$5,$C10=List!$C$6,$C10=List!$C$11,$C10=List!$C$13), 1, 0) -> 0 | Z10: =_xlfn.IFS(S10="","未応札",S10>0,"応札") -> 応札 | AA10: =_xlfn.IFS(T10=0,"未約定",T10=S10,"約定",T10<S10,"一部約定") -> 未約定 | AB10: 2：解列 | AC10: =IF(Z10="応札",IF($AA10="未約定",IF(OR($G10=List!$F$2:$F$3), $O10*$S10, $M10*$S10),IF($AA10="一部約定",IF(OR($G10=List!$F$2:$F$3), $O10*($S10-$T10), $M10*($S10-$T10)),"")),"") -> 3887500 | AD10: =IF(ISBLANK($Q10),IF(OR($AA10="一部約定",$AA10="未約定"),$P10*($S10-$T10),""),IF($Q10=0,"", IF(OR($AA10="一部約定", $AA10="未約定"), $P10*($S10-$T10), ""))) -> 112500 | AE10: =IF(AND($Z10="応札",$AA10="未約定"), IF($V10<>0, IF($W10<$V10, IF($W10<>0, $W10, ""), IF($V10<>0, $V10, "")), IF($W10<>0, $W10, "")), "") -> 
B11: 2 | C11: 11：持ち下げ・起動供出機：約定間全量不落（余力活用契約で停止・再起動） | D11: 1：対象 | E11: 20250401 | F11: 3 | G11: 2：該当（持ち下げ供出機） | H11: ○X○○○ | I11: 2：三次調整力② | J11: ○○○○○○ | K11: 2025040131CCC○○○○○○ | L11: ○○○○○○ | N11: 10 | O11: 70 | P11: 2.25 | S11: 50000 | T11: 0 | U11: =P11*(S11-T11) -> 112500 | V11: 0 | X11: =IF(ISNUMBER(B11), IF(COUNTIF($B$10:$B11, B11)=COUNTIF($B:$B, B11), "1", "0"), "") -> 1 | Y11: =IF(OR($C11=List!$C$5,$C11=List!$C$6,$C11=List!$C$11,$C11=List!$C$13), 1, 0) -> 0 | Z11: =_xlfn.IFS(S11="","未応札",S11>0,"応札") -> 応札 | AA11: =_xlfn.IFS(T11=0,"未約定",T11=S11,"約定",T11<S11,"一部約定") -> 未約定 | AB11: 1：並列 | AC11: =IF(Z11="応札",IF($AA11="未約定",IF(OR($G11=List!$F$2:$F$3), $O11*$S11, $M11*$S11),IF($AA11="一部約定",IF(OR($G11=List!$F$2:$F$3), $O11*($S11-$T11), $M11*($S11-$T11)),"")),"") -> 3500000 | AD11: 112500
U12: 0 | V12: 0 | X12: =IF(ISNUMBER(B12), IF(COUNTIF($B$10:$B12, B12)=COUNTIF($B:$B, B12), "1", "0"), "") ->  | Y12: =IF(OR($C12=List!$C$5,$C12=List!$C$6,$C12=List!$C$11,$C12=List!$C$13), 1, 0) -> 0 | Z12: =_xlfn.IFS(S12="","未応札",S12>0,"応札") -> 未応札 | AA12: =_xlfn.IFS(T12=0,"未約定",T12=S12,"約定",T12<S12,"一部約定") -> 未約定 | AC12: =IF(Z12="応札",IF($AA12="未約定",IF(OR($G12=List!$F$2:$F$3), $O12*$S12, $M12*$S12),IF($AA12="一部約定",IF(OR($G12=List!$F$2:$F$3), $O12*($S12-$T12), $M12*($S12-$T12)),"")),"") ->  | AD12: 0
U13: 0 | V13: 0 | X13: =IF(ISNUMBER(B13), IF(COUNTIF($B$10:$B13, B13)=COUNTIF($B:$B, B13), "1", "0"), "") ->  | Y13: =IF(OR($C13=List!$C$5,$C13=List!$C$6,$C13=List!$C$11,$C13=List!$C$13), 1, 0) -> 0 | Z13: =_xlfn.IFS(S13="","未応札",S13>0,"応札") -> 未応札 | AA13: =_xlfn.IFS(T13=0,"未約定",T13=S13,"約定",T13<S13,"一部約定") -> 未約定 | AC13: =IF(Z13="応札",IF($AA13="未約定",IF(OR($G13=List!$F$2:$F$3), $O13*$S13, $M13*$S13),IF($AA13="一部約定",IF(OR($G13=List!$F$2:$F$3), $O13*($S13-$T13), $M13*($S13-$T13)),"")),"") ->  | AD13: 0
U14: 0 | V14: 0 | X14: =IF(ISNUMBER(B14), IF(COUNTIF($B$10:$B14, B14)=COUNTIF($B:$B, B14), "1", "0"), "") ->  | Y14: =IF(OR($C14=List!$C$5,$C14=List!$C$6,$C14=List!$C$11,$C14=List!$C$13), 1, 0) -> 0 | Z14: =_xlfn.IFS(S14="","未応札",S14>0,"応札") -> 未応札 | AA14: =_xlfn.IFS(T14=0,"未約定",T14=S14,"約定",T14<S14,"一部約定") -> 未約定 | AC14: =IF(Z14="応札",IF($AA14="未約定",IF(OR($G14=List!$F$2:$F$3), $O14*$S14, $M14*$S14),IF($AA14="一部約定",IF(OR($G14=List!$F$2:$F$3), $O14*($S14-$T14), $M14*($S14-$T14)),"")),"") ->  | AD14: 0
U15: 0 | V15: 0 | X15: =IF(ISNUMBER(B15), IF(COUNTIF($B$10:$B15, B15)=COUNTIF($B:$B, B15), "1", "0"), "") ->  | Y15: =IF(OR($C15=List!$C$5,$C15=List!$C$6,$C15=List!$C$11,$C15=List!$C$13), 1, 0) -> 0 | Z15: =_xlfn.IFS(S15="","未応札",S15>0,"応札") -> 未応札 | AA15: =_xlfn.IFS(T15=0,"未約定",T15=S15,"約定",T15<S15,"一部約定") -> 未約定 | AC15: =IF(Z15="応札",IF($AA15="未約定",IF(OR($G15=List!$F$2:$F$3), $O15*$S15, $M15*$S15),IF($AA15="一部約定",IF(OR($G15=List!$F$2:$F$3), $O15*($S15-$T15), $M15*($S15-$T15)),"")),"") ->  | AD15: 0
U16: 0 | V16: 0 | X16: =IF(ISNUMBER(B16), IF(COUNTIF($B$10:$B16, B16)=COUNTIF($B:$B, B16), "1", "0"), "") ->  | Y16: =IF(OR($C16=List!$C$5,$C16=List!$C$6,$C16=List!$C$11,$C16=List!$C$13), 1, 0) -> 0 | Z16: =_xlfn.IFS(S16="","未応札",S16>0,"応札") -> 未応札 | AA16: =_xlfn.IFS(T16=0,"未約定",T16=S16,"約定",T16<S16,"一部約定") -> 未約定 | AC16: =IF(Z16="応札",IF($AA16="未約定",IF(OR($G16=List!$F$2:$F$3), $O16*$S16, $M16*$S16),IF($AA16="一部約定",IF(OR($G16=List!$F$2:$F$3), $O16*($S16-$T16), $M16*($S16-$T16)),"")),"") ->  | AD16: 0
U17: 0 | V17: 0 | X17: =IF(ISNUMBER(B17), IF(COUNTIF($B$10:$B17, B17)=COUNTIF($B:$B, B17), "1", "0"), "") ->  | Y17: =IF(OR($C17=List!$C$5,$C17=List!$C$6,$C17=List!$C$11,$C17=List!$C$13), 1, 0) -> 0 | Z17: =_xlfn.IFS(S17="","未応札",S17>0,"応札") -> 未応札 | AA17: =_xlfn.IFS(T17=0,"未約定",T17=S17,"約定",T17<S17,"一部約定") -> 未約定 | AC17: =IF(Z17="応札",IF($AA17="未約定",IF(OR($G17=List!$F$2:$F$3), $O17*$S17, $M17*$S17),IF($AA17="一部約定",IF(OR($G17=List!$F$2:$F$3), $O17*($S17-$T17), $M17*($S17-$T17)),"")),"") ->  | AD17: 0
U18: 0 | V18: 0 | X18: =IF(ISNUMBER(B18), IF(COUNTIF($B$10:$B18, B18)=COUNTIF($B:$B, B18), "1", "0"), "") ->  | Y18: =IF(OR($C18=List!$C$5,$C18=List!$C$6,$C18=List!$C$11,$C18=List!$C$13), 1, 0) -> 0 | Z18: =_xlfn.IFS(S18="","未応札",S18>0,"応札") -> 未応札 | AA18: =_xlfn.IFS(T18=0,"未約定",T18=S18,"約定",T18<S18,"一部約定") -> 未約定 | AC18: =IF(Z18="応札",IF($AA18="未約定",IF(OR($G18=List!$F$2:$F$3), $O18*$S18, $M18*$S18),IF($AA18="一部約定",IF(OR($G18=List!$F$2:$F$3), $O18*($S18-$T18), $M18*($S18-$T18)),"")),"") ->  | AD18: 0
U19: 0 | V19: 0 | X19: =IF(ISNUMBER(B19), IF(COUNTIF($B$10:$B19, B19)=COUNTIF($B:$B, B19), "1", "0"), "") ->  | Y19: =IF(OR($C19=List!$C$5,$C19=List!$C$6,$C19=List!$C$11,$C19=List!$C$13), 1, 0) -> 0 | Z19: =_xlfn.IFS(S19="","未応札",S19>0,"応札") -> 未応札 | AA19: =_xlfn.IFS(T19=0,"未約定",T19=S19,"約定",T19<S19,"一部約定") -> 未約定 | AC19: =IF(Z19="応札",IF($AA19="未約定",IF(OR($G19=List!$F$2:$F$3), $O19*$S19, $M19*$S19),IF($AA19="一部約定",IF(OR($G19=List!$F$2:$F$3), $O19*($S19-$T19), $M19*($S19-$T19)),"")),"") ->  | AD19: 0
U20: 0 | V20: 0 | X20: =IF(ISNUMBER(B20), IF(COUNTIF($B$10:$B20, B20)=COUNTIF($B:$B, B20), "1", "0"), "") ->  | Y20: =IF(OR($C20=List!$C$5,$C20=List!$C$6,$C20=List!$C$11,$C20=List!$C$13), 1, 0) -> 0 | Z20: =_xlfn.IFS(S20="","未応札",S20>0,"応札") -> 未応札 | AA20: =_xlfn.IFS(T20=0,"未約定",T20=S20,"約定",T20<S20,"一部約定") -> 未約定 | AC20: =IF(Z20="応札",IF($AA20="未約定",IF(OR($G20=List!$F$2:$F$3), $O20*$S20, $M20*$S20),IF($AA20="一部約定",IF(OR($G20=List!$F$2:$F$3), $O20*($S20-$T20), $M20*($S20-$T20)),"")),"") ->  | AD20: 0
U21: 0 | V21: 0 | X21: =IF(ISNUMBER(B21), IF(COUNTIF($B$10:$B21, B21)=COUNTIF($B:$B, B21), "1", "0"), "") ->  | Y21: =IF(OR($C21=List!$C$5,$C21=List!$C$6,$C21=List!$C$11,$C21=List!$C$13), 1, 0) -> 0 | Z21: =_xlfn.IFS(S21="","未応札",S21>0,"応札") -> 未応札 | AA21: =_xlfn.IFS(T21=0,"未約定",T21=S21,"約定",T21<S21,"一部約定") -> 未約定 | AC21: =IF(Z21="応札",IF($AA21="未約定",IF(OR($G21=List!$F$2:$F$3), $O21*$S21, $M21*$S21),IF($AA21="一部約定",IF(OR($G21=List!$F$2:$F$3), $O21*($S21-$T21), $M21*($S21-$T21)),"")),"") ->  | AD21: 0
U22: 0 | V22: 0 | X22: =IF(ISNUMBER(B22), IF(COUNTIF($B$10:$B22, B22)=COUNTIF($B:$B, B22), "1", "0"), "") ->  | Y22: =IF(OR($C22=List!$C$5,$C22=List!$C$6,$C22=List!$C$11,$C22=List!$C$13), 1, 0) -> 0 | Z22: =_xlfn.IFS(S22="","未応札",S22>0,"応札") -> 未応札 | AA22: =_xlfn.IFS(T22=0,"未約定",T22=S22,"約定",T22<S22,"一部約定") -> 未約定 | AC22: =IF(Z22="応札",IF($AA22="未約定",IF(OR($G22=List!$F$2:$F$3), $O22*$S22, $M22*$S22),IF($AA22="一部約定",IF(OR($G22=List!$F$2:$F$3), $O22*($S22-$T22), $M22*($S22-$T22)),"")),"") ->  | AD22: 0
U23: 0 | V23: 0 | X23: =IF(ISNUMBER(B23), IF(COUNTIF($B$10:$B23, B23)=COUNTIF($B:$B, B23), "1", "0"), "") ->  | Y23: =IF(OR($C23=List!$C$5,$C23=List!$C$6,$C23=List!$C$11,$C23=List!$C$13), 1, 0) -> 0 | Z23: =_xlfn.IFS(S23="","未応札",S23>0,"応札") -> 未応札 | AA23: =_xlfn.IFS(T23=0,"未約定",T23=S23,"約定",T23<S23,"一部約定") -> 未約定 | AC23: =IF(Z23="応札",IF($AA23="未約定",IF(OR($G23=List!$F$2:$F$3), $O23*$S23, $M23*$S23),IF($AA23="一部約定",IF(OR($G23=List!$F$2:$F$3), $O23*($S23-$T23), $M23*($S23-$T23)),"")),"") ->  | AD23: 0
U24: 0 | V24: 0 | X24: =IF(ISNUMBER(B24), IF(COUNTIF($B$10:$B24, B24)=COUNTIF($B:$B, B24), "1", "0"), "") ->  | Y24: =IF(OR($C24=List!$C$5,$C24=List!$C$6,$C24=List!$C$11,$C24=List!$C$13), 1, 0) -> 0 | Z24: =_xlfn.IFS(S24="","未応札",S24>0,"応札") -> 未応札 | AA24: =_xlfn.IFS(T24=0,"未約定",T24=S24,"約定",T24<S24,"一部約定") -> 未約定 | AC24: =IF(Z24="応札",IF($AA24="未約定",IF(OR($G24=List!$F$2:$F$3), $O24*$S24, $M24*$S24),IF($AA24="一部約定",IF(OR($G24=List!$F$2:$F$3), $O24*($S24-$T24), $M24*($S24-$T24)),"")),"") ->  | AD24: 0
U25: 0 | V25: 0 | X25: =IF(ISNUMBER(B25), IF(COUNTIF($B$10:$B25, B25)=COUNTIF($B:$B, B25), "1", "0"), "") ->  | Y25: =IF(OR($C25=List!$C$5,$C25=List!$C$6,$C25=List!$C$11,$C25=List!$C$13), 1, 0) -> 0 | Z25: =_xlfn.IFS(S25="","未応札",S25>0,"応札") -> 未応札 | AA25: =_xlfn.IFS(T25=0,"未約定",T25=S25,"約定",T25<S25,"一部約定") -> 未約定 | AC25: =IF(Z25="応札",IF($AA25="未約定",IF(OR($G25=List!$F$2:$F$3), $O25*$S25, $M25*$S25),IF($AA25="一部約定",IF(OR($G25=List!$F$2:$F$3), $O25*($S25-$T25), $M25*($S25-$T25)),"")),"") ->  | AD25: 0
U26: 0 | V26: 0 | X26: =IF(ISNUMBER(B26), IF(COUNTIF($B$10:$B26, B26)=COUNTIF($B:$B, B26), "1", "0"), "") ->  | Y26: =IF(OR($C26=List!$C$5,$C26=List!$C$6,$C26=List!$C$11,$C26=List!$C$13), 1, 0) -> 0 | Z26: =_xlfn.IFS(S26="","未応札",S26>0,"応札") -> 未応札 | AA26: =_xlfn.IFS(T26=0,"未約定",T26=S26,"約定",T26<S26,"一部約定") -> 未約定 | AC26: =IF(Z26="応札",IF($AA26="未約定",IF(OR($G26=List!$F$2:$F$3), $O26*$S26, $M26*$S26),IF($AA26="一部約定",IF(OR($G26=List!$F$2:$F$3), $O26*($S26-$T26), $M26*($S26-$T26)),"")),"") ->  | AD26: 0
U27: 0 | V27: 0 | X27: =IF(ISNUMBER(B27), IF(COUNTIF($B$10:$B27, B27)=COUNTIF($B:$B, B27), "1", "0"), "") ->  | Y27: =IF(OR($C27=List!$C$5,$C27=List!$C$6,$C27=List!$C$11,$C27=List!$C$13), 1, 0) -> 0 | Z27: =_xlfn.IFS(S27="","未応札",S27>0,"応札") -> 未応札 | AA27: =_xlfn.IFS(T27=0,"未約定",T27=S27,"約定",T27<S27,"一部約定") -> 未約定 | AC27: =IF(Z27="応札",IF($AA27="未約定",IF(OR($G27=List!$F$2:$F$3), $O27*$S27, $M27*$S27),IF($AA27="一部約定",IF(OR($G27=List!$F$2:$F$3), $O27*($S27-$T27), $M27*($S27-$T27)),"")),"") ->  | AD27: 0
U28: 0 | V28: 0 | X28: =IF(ISNUMBER(B28), IF(COUNTIF($B$10:$B28, B28)=COUNTIF($B:$B, B28), "1", "0"), "") ->  | Y28: =IF(OR($C28=List!$C$5,$C28=List!$C$6,$C28=List!$C$11,$C28=List!$C$13), 1, 0) -> 0 | Z28: =_xlfn.IFS(S28="","未応札",S28>0,"応札") -> 未応札 | AA28: =_xlfn.IFS(T28=0,"未約定",T28=S28,"約定",T28<S28,"一部約定") -> 未約定 | AC28: =IF(Z28="応札",IF($AA28="未約定",IF(OR($G28=List!$F$2:$F$3), $O28*$S28, $M28*$S28),IF($AA28="一部約定",IF(OR($G28=List!$F$2:$F$3), $O28*($S28-$T28), $M28*($S28-$T28)),"")),"") ->  | AD28: 0
U29: 0 | V29: 0 | X29: =IF(ISNUMBER(B29), IF(COUNTIF($B$10:$B29, B29)=COUNTIF($B:$B, B29), "1", "0"), "") ->  | Y29: =IF(OR($C29=List!$C$5,$C29=List!$C$6,$C29=List!$C$11,$C29=List!$C$13), 1, 0) -> 0 | Z29: =_xlfn.IFS(S29="","未応札",S29>0,"応札") -> 未応札 | AA29: =_xlfn.IFS(T29=0,"未約定",T29=S29,"約定",T29<S29,"一部約定") -> 未約定 | AC29: =IF(Z29="応札",IF($AA29="未約定",IF(OR($G29=List!$F$2:$F$3), $O29*$S29, $M29*$S29),IF($AA29="一部約定",IF(OR($G29=List!$F$2:$F$3), $O29*($S29-$T29), $M29*($S29-$T29)),"")),"") ->  | AD29: 0
U30: 0 | V30: 0 | X30: =IF(ISNUMBER(B30), IF(COUNTIF($B$10:$B30, B30)=COUNTIF($B:$B, B30), "1", "0"), "") ->  | Y30: =IF(OR($C30=List!$C$5,$C30=List!$C$6,$C30=List!$C$11,$C30=List!$C$13), 1, 0) -> 0 | Z30: =_xlfn.IFS(S30="","未応札",S30>0,"応札") -> 未応札 | AA30: =_xlfn.IFS(T30=0,"未約定",T30=S30,"約定",T30<S30,"一部約定") -> 未約定 | AC30: =IF(Z30="応札",IF($AA30="未約定",IF(OR($G30=List!$F$2:$F$3), $O30*$S30, $M30*$S30),IF($AA30="一部約定",IF(OR($G30=List!$F$2:$F$3), $O30*($S30-$T30), $M30*($S30-$T30)),"")),"") ->  | AD30: 0
U31: 0 | V31: 0 | X31: =IF(ISNUMBER(B31), IF(COUNTIF($B$10:$B31, B31)=COUNTIF($B:$B, B31), "1", "0"), "") ->  | Y31: =IF(OR($C31=List!$C$5,$C31=List!$C$6,$C31=List!$C$11,$C31=List!$C$13), 1, 0) -> 0 | Z31: =_xlfn.IFS(S31="","未応札",S31>0,"応札") -> 未応札 | AA31: =_xlfn.IFS(T31=0,"未約定",T31=S31,"約定",T31<S31,"一部約定") -> 未約定 | AC31: =IF(Z31="応札",IF($AA31="未約定",IF(OR($G31=List!$F$2:$F$3), $O31*$S31, $M31*$S31),IF($AA31="一部約定",IF(OR($G31=List!$F$2:$F$3), $O31*($S31-$T31), $M31*($S31-$T31)),"")),"") ->  | AD31: 0
U32: 0 | V32: 0 | X32: =IF(ISNUMBER(B32), IF(COUNTIF($B$10:$B32, B32)=COUNTIF($B:$B, B32), "1", "0"), "") ->  | Y32: =IF(OR($C32=List!$C$5,$C32=List!$C$6,$C32=List!$C$11,$C32=List!$C$13), 1, 0) -> 0 | Z32: =_xlfn.IFS(S32="","未応札",S32>0,"応札") -> 未応札 | AA32: =_xlfn.IFS(T32=0,"未約定",T32=S32,"約定",T32<S32,"一部約定") -> 未約定 | AC32: =IF(Z32="応札",IF($AA32="未約定",IF(OR($G32=List!$F$2:$F$3), $O32*$S32, $M32*$S32),IF($AA32="一部約定",IF(OR($G32=List!$F$2:$F$3), $O32*($S32-$T32), $M32*($S32-$T32)),"")),"") ->  | AD32: 0
U33: 0 | V33: 0 | X33: =IF(ISNUMBER(B33), IF(COUNTIF($B$10:$B33, B33)=COUNTIF($B:$B, B33), "1", "0"), "") ->  | Y33: =IF(OR($C33=List!$C$5,$C33=List!$C$6,$C33=List!$C$11,$C33=List!$C$13), 1, 0) -> 0 | Z33: =_xlfn.IFS(S33="","未応札",S33>0,"応札") -> 未応札 | AA33: =_xlfn.IFS(T33=0,"未約定",T33=S33,"約定",T33<S33,"一部約定") -> 未約定 | AC33: =IF(Z33="応札",IF($AA33="未約定",IF(OR($G33=List!$F$2:$F$3), $O33*$S33, $M33*$S33),IF($AA33="一部約定",IF(OR($G33=List!$F$2:$F$3), $O33*($S33-$T33), $M33*($S33-$T33)),"")),"") ->  | AD33: 0
U34: 0 | V34: 0 | X34: =IF(ISNUMBER(B34), IF(COUNTIF($B$10:$B34, B34)=COUNTIF($B:$B, B34), "1", "0"), "") ->  | Y34: =IF(OR($C34=List!$C$5,$C34=List!$C$6,$C34=List!$C$11,$C34=List!$C$13), 1, 0) -> 0 | Z34: =_xlfn.IFS(S34="","未応札",S34>0,"応札") -> 未応札 | AA34: =_xlfn.IFS(T34=0,"未約定",T34=S34,"約定",T34<S34,"一部約定") -> 未約定 | AC34: =IF(Z34="応札",IF($AA34="未約定",IF(OR($G34=List!$F$2:$F$3), $O34*$S34, $M34*$S34),IF($AA34="一部約定",IF(OR($G34=List!$F$2:$F$3), $O34*($S34-$T34), $M34*($S34-$T34)),"")),"") ->  | AD34: 0
U35: 0 | V35: 0 | X35: =IF(ISNUMBER(B35), IF(COUNTIF($B$10:$B35, B35)=COUNTIF($B:$B, B35), "1", "0"), "") ->  | Y35: =IF(OR($C35=List!$C$5,$C35=List!$C$6,$C35=List!$C$11,$C35=List!$C$13), 1, 0) -> 0 | Z35: =_xlfn.IFS(S35="","未応札",S35>0,"応札") -> 未応札 | AA35: =_xlfn.IFS(T35=0,"未約定",T35=S35,"約定",T35<S35,"一部約定") -> 未約定 | AC35: =IF(Z35="応札",IF($AA35="未約定",IF(OR($G35=List!$F$2:$F$3), $O35*$S35, $M35*$S35),IF($AA35="一部約定",IF(OR($G35=List!$F$2:$F$3), $O35*($S35-$T35), $M35*($S35-$T35)),"")),"") ->  | AD35: 0
U36: 0 | V36: 0 | X36: =IF(ISNUMBER(B36), IF(COUNTIF($B$10:$B36, B36)=COUNTIF($B:$B, B36), "1", "0"), "") ->  | Y36: =IF(OR($C36=List!$C$5,$C36=List!$C$6,$C36=List!$C$11,$C36=List!$C$13), 1, 0) -> 0 | Z36: =_xlfn.IFS(S36="","未応札",S36>0,"応札") -> 未応札 | AA36: =_xlfn.IFS(T36=0,"未約定",T36=S36,"約定",T36<S36,"一部約定") -> 未約定 | AC36: =IF(Z36="応札",IF($AA36="未約定",IF(OR($G36=List!$F$2:$F$3), $O36*$S36, $M36*$S36),IF($AA36="一部約定",IF(OR($G36=List!$F$2:$F$3), $O36*($S36-$T36), $M36*($S36-$T36)),"")),"") ->  | AD36: 0
U37: 0 | V37: 0 | X37: =IF(ISNUMBER(B37), IF(COUNTIF($B$10:$B37, B37)=COUNTIF($B:$B, B37), "1", "0"), "") ->  | Y37: =IF(OR($C37=List!$C$5,$C37=List!$C$6,$C37=List!$C$11,$C37=List!$C$13), 1, 0) -> 0 | Z37: =_xlfn.IFS(S37="","未応札",S37>0,"応札") -> 未応札 | AA37: =_xlfn.IFS(T37=0,"未約定",T37=S37,"約定",T37<S37,"一部約定") -> 未約定 | AC37: =IF(Z37="応札",IF($AA37="未約定",IF(OR($G37=List!$F$2:$F$3), $O37*$S37, $M37*$S37),IF($AA37="一部約定",IF(OR($G37=List!$F$2:$F$3), $O37*($S37-$T37), $M37*($S37-$T37)),"")),"") ->  | AD37: 0
U38: 0 | V38: 0 | X38: =IF(ISNUMBER(B38), IF(COUNTIF($B$10:$B38, B38)=COUNTIF($B:$B, B38), "1", "0"), "") ->  | Y38: =IF(OR($C38=List!$C$5,$C38=List!$C$6,$C38=List!$C$11,$C38=List!$C$13), 1, 0) -> 0 | Z38: =_xlfn.IFS(S38="","未応札",S38>0,"応札") -> 未応札 | AA38: =_xlfn.IFS(T38=0,"未約定",T38=S38,"約定",T38<S38,"一部約定") -> 未約定 | AC38: =IF(Z38="応札",IF($AA38="未約定",IF(OR($G38=List!$F$2:$F$3), $O38*$S38, $M38*$S38),IF($AA38="一部約定",IF(OR($G38=List!$F$2:$F$3), $O38*($S38-$T38), $M38*($S38-$T38)),"")),"") ->  | AD38: 0
U39: 0 | V39: 0 | X39: =IF(ISNUMBER(B39), IF(COUNTIF($B$10:$B39, B39)=COUNTIF($B:$B, B39), "1", "0"), "") ->  | Y39: =IF(OR($C39=List!$C$5,$C39=List!$C$6,$C39=List!$C$11,$C39=List!$C$13), 1, 0) -> 0 | Z39: =_xlfn.IFS(S39="","未応札",S39>0,"応札") -> 未応札 | AA39: =_xlfn.IFS(T39=0,"未約定",T39=S39,"約定",T39<S39,"一部約定") -> 未約定 | AC39: =IF(Z39="応札",IF($AA39="未約定",IF(OR($G39=List!$F$2:$F$3), $O39*$S39, $M39*$S39),IF($AA39="一部約定",IF(OR($G39=List!$F$2:$F$3), $O39*($S39-$T39), $M39*($S39-$T39)),"")),"") ->  | AD39: 0
U40: 0 | V40: 0 | X40: =IF(ISNUMBER(B40), IF(COUNTIF($B$10:$B40, B40)=COUNTIF($B:$B, B40), "1", "0"), "") ->  | Y40: =IF(OR($C40=List!$C$5,$C40=List!$C$6,$C40=List!$C$11,$C40=List!$C$13), 1, 0) -> 0 | Z40: =_xlfn.IFS(S40="","未応札",S40>0,"応札") -> 未応札 | AA40: =_xlfn.IFS(T40=0,"未約定",T40=S40,"約定",T40<S40,"一部約定") -> 未約定 | AC40: =IF(Z40="応札",IF($AA40="未約定",IF(OR($G40=List!$F$2:$F$3), $O40*$S40, $M40*$S40),IF($AA40="一部約定",IF(OR($G40=List!$F$2:$F$3), $O40*($S40-$T40), $M40*($S40-$T40)),"")),"") ->  | AD40: 0
U41: 0 | V41: 0 | X41: =IF(ISNUMBER(B41), IF(COUNTIF($B$10:$B41, B41)=COUNTIF($B:$B, B41), "1", "0"), "") ->  | Y41: =IF(OR($C41=List!$C$5,$C41=List!$C$6,$C41=List!$C$11,$C41=List!$C$13), 1, 0) -> 0 | Z41: =_xlfn.IFS(S41="","未応札",S41>0,"応札") -> 未応札 | AA41: =_xlfn.IFS(T41=0,"未約定",T41=S41,"約定",T41<S41,"一部約定") -> 未約定 | AC41: =IF(Z41="応札",IF($AA41="未約定",IF(OR($G41=List!$F$2:$F$3), $O41*$S41, $M41*$S41),IF($AA41="一部約定",IF(OR($G41=List!$F$2:$F$3), $O41*($S41-$T41), $M41*($S41-$T41)),"")),"") ->  | AD41: 0
U42: 0 | V42: 0 | X42: =IF(ISNUMBER(B42), IF(COUNTIF($B$10:$B42, B42)=COUNTIF($B:$B, B42), "1", "0"), "") ->  | Y42: =IF(OR($C42=List!$C$5,$C42=List!$C$6,$C42=List!$C$11,$C42=List!$C$13), 1, 0) -> 0 | Z42: =_xlfn.IFS(S42="","未応札",S42>0,"応札") -> 未応札 | AA42: =_xlfn.IFS(T42=0,"未約定",T42=S42,"約定",T42<S42,"一部約定") -> 未約定 | AC42: =IF(Z42="応札",IF($AA42="未約定",IF(OR($G42=List!$F$2:$F$3), $O42*$S42, $M42*$S42),IF($AA42="一部約定",IF(OR($G42=List!$F$2:$F$3), $O42*($S42-$T42), $M42*($S42-$T42)),"")),"") ->  | AD42: 0
U43: 0 | V43: 0 | X43: =IF(ISNUMBER(B43), IF(COUNTIF($B$10:$B43, B43)=COUNTIF($B:$B, B43), "1", "0"), "") ->  | Y43: =IF(OR($C43=List!$C$5,$C43=List!$C$6,$C43=List!$C$11,$C43=List!$C$13), 1, 0) -> 0 | Z43: =_xlfn.IFS(S43="","未応札",S43>0,"応札") -> 未応札 | AA43: =_xlfn.IFS(T43=0,"未約定",T43=S43,"約定",T43<S43,"一部約定") -> 未約定 | AC43: =IF(Z43="応札",IF($AA43="未約定",IF(OR($G43=List!$F$2:$F$3), $O43*$S43, $M43*$S43),IF($AA43="一部約定",IF(OR($G43=List!$F$2:$F$3), $O43*($S43-$T43), $M43*($S43-$T43)),"")),"") ->  | AD43: 0
U44: 0 | V44: 0 | X44: =IF(ISNUMBER(B44), IF(COUNTIF($B$10:$B44, B44)=COUNTIF($B:$B, B44), "1", "0"), "") ->  | Y44: =IF(OR($C44=List!$C$5,$C44=List!$C$6,$C44=List!$C$11,$C44=List!$C$13), 1, 0) -> 0 | Z44: =_xlfn.IFS(S44="","未応札",S44>0,"応札") -> 未応札 | AA44: =_xlfn.IFS(T44=0,"未約定",T44=S44,"約定",T44<S44,"一部約定") -> 未約定 | AC44: =IF(Z44="応札",IF($AA44="未約定",IF(OR($G44=List!$F$2:$F$3), $O44*$S44, $M44*$S44),IF($AA44="一部約定",IF(OR($G44=List!$F$2:$F$3), $O44*($S44-$T44), $M44*($S44-$T44)),"")),"") ->  | AD44: 0

Sheet 入力方法等の規制
B1: 〇入力方法等の規制
B2: No. | C2: 項目 | D2: 入力方法規制 | E2: 入力内容規制 | F2: 備考
B3: 1 | C3: 取引年月 | D3: 数字６桁 | E3: 無 | F3: YYYYMM 整数
B4: 2 | C4: MMSコード | D4: 英数字４桁 | E4: 無
B5: 3 | C5: 対象エリア | D5: 選択式 | E5: 無 | F5: 【選択リスト】 １：北海道 ２：東北 ３：東京 ４：中部 ５：北陸 ６：関西 ７：中国 ８：四国 ９：九州
B6: 4 | C6: 事象NO | D6: 数字のみ | E6: 無 | F6: 整数
B7: 5 | C7: 精算パターン | D7: 選択式 | E7: 無 | F7: 【選択リスト】 １：約定間全量不落（最低出力維持） ２：全量不落 ３：一部不落 ４：約定間全量不落（約定間停止・再起動） ５：約定間全量不落（余力活用契約で最低出力維持） ６：約定間全量不落（余力活用契約で停止・再起動） ７：持ち下げ・起動供出機：約定間全量不落（最低出力維持） ８：持ち下げ・起動供出機：全量不落 ９：持ち下げ・起動供出機：一部不落 １０：持ち下げ・起動供出機：約定間全量不落（約定間停止・再起動） １１：持ち下げ・起動供出機：約定間全量不落（余力活用契約で停止・再起動） １２：持ち下げ・起動供出機：約定間全量不落（余力活用契約で最低出力維持） １３：その他
B8: 6 | C8: 余力活用契約対象リソース区分 | D8: 選択式 | E8: 有 | F8: 【選択リスト】 １：対象 ２：非対象
B9: 7 | C9: 取引日 | D9: 数字８桁 | E9: 無 | F9: YYYYMMDD 整数
B10: 8 | C10: 時刻コード | D10: 数字２桁 | E10: 無 | F10: 整数
B11: 9 | C11: 持ち下げ供出機区分 | D11: 選択式 | E11: 無 | F11: 【選択リスト】 １：該当（起動供出機） ２：該当（持ち下げ供出機） ※精算パターン１～６の場合は選択不可
B12: 10 | C12: 系統コード | D12: 英数字５桁 | E12: 無
B13: 11 | C13: 商品区分 | D13: 選択式 | E13: 無 | F13: 【選択リスト】 １：週間市場商品 ２：三次調整力②
B14: 12 | C14: 売り入札ID | D14: 英数字１５桁 | E14: 無
B15: 13 | C15: 約定番号 | D15: 英数字１９桁 | E15: 無
B16: 14 | C16: 約定識別ID | D16: 英数字のみ | E16: 無
B17: 15 | C17: MMS起動費単価 | D17: 数字のみ | E17: 無 | F17: 小数点２桁まで
B18: 16 | C18: 加重平均前のΔkW単価 | D18: 数字のみ | E18: 無 | F18: 小数点２桁まで
B19: 17 | C19: 加重平均起動費未回収分相当額 | D19: 数字のみ | E19: 無 | F19: 小数点２桁まで
B20: 18 | C20: 最低出力までの発電電力量の機会費用単価 | D20: 数字のみ | E20: 無 | F20: 小数点２桁まで
B21: 19 | C21: 発電計画 | D21: 数字のみ | E21: 有 | F21: 整数
B22: 20 | C22: 最低出力 | D22: 数字のみ | E22: 有 | F22: 整数
B23: 21 | C23: 約定希望ΔkW | D23: 数字のみ | E23: 有 | F23: 整数
B24: 22 | C24: ΔkW約定量 | D24: 数字のみ | E24: 有 | F24: 整数
B25: 23 | C25: 最低出力までの発電電力量の機会費用単価×(約定希望ΔkW-ΔkW約定量) | D25: － | E25: 無 | F25: 入力不可
B26: 24 | C26: 最低出力維持した場合の費用合計 | D26: － | E26: 無 | F26: 入力不可
B27: 25 | C27: 停止・再起動にかかる費用 | D27: 数字のみ | E27: 無 | F27: 小数点２桁まで
B28: 26 | C28: 事象毎の最終行 | D28: － | E28: 無 | F28: 入力不可
B29: 27 | C29: 妥当性確認 | D29: － | E29: 無 | F29: 入力不可
B30: 28 | C30: 応札状況 | D30: － | E30: 有 | F30: 入力不可
B31: 29 | C31: 約定状況 | D31: － | E31: 有 | F31: 入力不可
B32: 30 | C32: 並解列状態(実績) | D32: 選択式 | E32: 有 | F32: 【選択リスト】 １：並列 ２：解列
B33: 31 | C33: 起動費未回収分相当額 | D33: － | E33: 無 | F33: 入力不可
B34: 32 | C34: 最低出力までの発電電力量の機会費用 | D34: － | E34: 無 | F34: 入力不可
B35: 33 | C35: 停止・再起動にかかる費用 | D35: － | E35: 無 | F35: 入力不可
B36: 34 | C36: ＜精算対象申請小計＞ 起動費未回収分相当額 | D36: － | E36: 無 | F36: 入力不可
B37: 35 | C37: ＜精算対象申請小計＞ 最低出力までの発電電力量の機会費用 | D37: － | E37: 無 | F37: 入力不可
B38: 36 | C38: ＜精算対象申請小計＞ 停止・再起動にかかる費用 | D38: － | E38: 無 | F38: 入力不可
B39: 37 | C39: 合計 | D39: － | E39: 無 | F39: 入力不可

Sheet 精算パターン（持ち下げ供出機区分）毎の入力内容規制
B1: 〇精算パターン（持ち下げ供出機区分）毎の入力内容規制
B2: 精算パターン | C2: 持ち下げ供給機区分 | D2: 余力活用契約対象リソース区分 | E2: 約定希望ΔkW and ΔkW約定量 | F2: ΔkW約定量 | G2: 発電計画 | H2: 最低出力 | I2: 応札状況 | J2: 約定状況 | K2: 並解列状態（実績）
B3: 1:約定間全量不落（最低出力維持） | C3: 入力対象外 | D3: １または０ | E3: 応札ΔkW≧約定量 | F3: 0 | G3: １以上 | H3: １以上 | I3: 応札 | J3: 未約定 | K3: 並列
B4: 2:全量不落 | C4: 入力対象外 | D4: １または０ | E4: 応札ΔkW≧約定量 | F4: 0 | G4: 0以上 | H4: ０以上 | I4: 応札 | J4: 未約定 | K4: 並列または解列
B5: 3:一部不落 | C5: 入力対象外 | D5: １または０ | E5: 応札ΔkW≧約定量 | F5: １以上 | G5: ０以上 | H5: ０以上 | I5: 応札 | J5: 一部約定 | K5: 並列または解列
B6: 4:約定間全量不落（約定間停止・再起動） | C6: 入力対象外 | D6: １または０ | E6: 応札ΔkW≧約定量 | F6: 0 | G6: 0 | H6: 0 | I6: 応札 | J6: 未約定 | K6: 解列
B7: 5:約定間全量不落（余力活用契約で最低出力維持） | C7: 入力対象外 | D7: 1 | E7: 応札ΔkW≧約定量 | F7: 0 | G7: 0 | H7: 0 | I7: 応札 | J7: 未約定 | K7: 並列
B8: 6:約定間全量不落（余力活用契約で停止・再起動） | C8: 入力対象外 | D8: 1 | E8: 応札ΔkW≧約定量 | F8: 0 | G8: １以上 | H8: １以上 | I8: 応札 | J8: 未約定 | K8: 解列
B9: 7:持ち下げ・起動供出機：約定間全量不落（最低出力維持） | C9: 該当（起動供出機） | D9: １または０ | E9: 応札ΔkW≧約定量 | F9: 0 | G9: １以上 | H9: １以上 | I9: 応札 | J9: 未約定 | K9: 並列
C10: 該当（持ち下げ供出機） | D10: １または０ | E10: 応札ΔkW≧約定量 | F10: 0 | G10: 入力対象外 | H10: 入力対象外 | I10: 応札 | J10: 未約定 | K10: 並列
B11: 8:持ち下げ・起動費供出機：全量不落 | C11: 該当（起動供出機） | D11: １または０ | E11: 応札ΔkW≧約定量 | F11: 0 | G11: 0以上 | H11: 0以上 | I11: 応札 | J11: 未約定 | K11: 並列または解列
C12: 該当（持ち下げ供出機） | D12: １または０ | E12: 応札ΔkW≧約定量 | F12: 0 | G12: 入力対象外 | H12: 入力対象外 | I12: 応札 | J12: 未約定 | K12: 並列または解列
B13: 9:持ち下げ・起動費供出機：一部不落 | C13: 該当（起動供出機） | D13: １または０ | E13: 応札ΔkW≧約定量 | F13: １以上 | G13: １以上 | H13: １以上 | I13: 応札 | J13: 一部約定 | K13: 並列
C14: 該当（持ち下げ供出機） | D14: １または０ | E14: 応札ΔkW≧約定量 | F14: １以上 | G14: 入力対象外 | H14: 入力対象外 | I14: 応札 | J14: 一部約定 | K14: 並列
B15: 10:持ち下げ・起動費供出機：全量不落（約定間停止・再起動） | C15: 該当（起動供出機） | D15: １または０ | E15: 応札ΔkW≧約定量 | F15: 0 | G15: 0 | H15: 0 | I15: 応札 | J15: 未約定 | K15: 解列
C16: 該当（持ち下げ供出機） | D16: １または０ | E16: 応札ΔkW≧約定量 | F16: 0 | G16: 入力対象外 | H16: 入力対象外 | I16: 応札 | J16: 未約定 | K16: 並列または解列
B17: 11:持ち下げ・起動費供出機：全量不落（余力活用契約で停止・再起動） | C17: 該当（起動供出機） | D17: 1 | E17: 応札ΔkW≧約定量 | F17: 0 | G17: １以上 | H17: １以上 | I17: 応札 | J17: 未約定 | K17: 解列
C18: 該当（持ち下げ供出機） | D18: １または０ | E18: 応札ΔkW≧約定量 | F18: 0 | G18: 入力対象外 | H18: 入力対象外 | I18: 応札 | J18: 未約定 | K18: 並列または解列
B19: 12:持ち下げ・起動費供出機：全量不落（余力活用契約で最低出力維持） | C19: 該当（起動供出機） | D19: 1 | E19: 応札ΔkW≧約定量 | F19: 0 | G19: 0 | H19: 0 | I19: 応札 | J19: 未約定 | K19: 並列
C20: 該当（持ち下げ供出機） | D20: １または０ | E20: 応札ΔkW≧約定量 | F20: 0 | G20: 入力対象外 | H20: 入力対象外 | I20: 応札 | J20: 未約定 | K20: 並列または解列
B21: 13:その他 | C21: 未選択 | D21: １または０ | E21: 応札ΔkW≧約定量 | F21: ０以上 | G21: ０以上 | H21: ０以上 | I21: 応札 | J21: 未約定または一部約定 | K21: 並列または解列
C22: 該当（起動供出機） | D22: １または０ | E22: 応札ΔkW≧約定量 | F22: ０以上 | G22: ０以上 | H22: ０以上 | I22: 応札 | J22: 未約定または一部約定 | K22: 並列または解列
C23: 該当（持ち下げ供出機） | D23: １または０ | E23: 応札ΔkW≧約定量 | F23: ０以上 | G23: ０以上 | H23: ０以上 | I23: 応札 | J23: 未約定または一部約定 | K23: 並列または解列

Sheet エラーメッセージ一覧
B1: 〇不約定単価内訳兼起動費事後精算情報様式_エラーメッセージ一覧
B2: No. | C2: 操作 | D2: エラー種別 | E2: エラーメッセージ | F2: 対処方法
B3: 1 | C3: 「CSV変換」ボタン押下 | D3: 入力エラー | E3: 取引年月を規制に従って入力願います。 | F3: 「入力方法等の規制」シートに基づき、数字6桁で入力してください。 ■入力例：2025年4月の場合→202504
B4: 2 | C4: 「CSV変換」ボタン押下 | D4: 入力エラー | E4: MMSコードを規制に従って入力願います。 | F4: 「入力方法等の規制」シートに基づき、英数字4桁で入力してください。
B5: 3 | C5: 「CSV変換」ボタン押下 | D5: 入力エラー | E5: 対象エリアを選択願います。 | F5: 対象エリアを選択してください。
B6: 4 | C6: 「CSV変換」ボタン押下 | D6: 入力エラー | E6: 未入力の行が存在します。行数の減少または必要情報を入力願います。 | F6: 空白行がないよう、不要行の削除または必要情報を入力してください。
B7: 5 | C7: 「CSV変換」ボタン押下 | D7: 相関エラー | E7: 設定された「取引年月」に適応しない取引日が含まれておりますので、確認願います。 | F7: 「取引年月」に適応する「取引日」となるよう修正してください。 ■例：「取引年月:202504」の場合 正→「取引日:20250401」 誤→「取引日:20250501」
B8: 6 | C8: 「CSV変換」ボタン押下 | D8: 相関エラー | E8: 設定された「対象エリア」に適応しない系統コードが含まれておりますので、確認願います。 | F8: 「対象エリア」に適応する「系統コード」となるよう修正してください。 ■例：「対象エリア:1:北海道」の場合 正→「系統コード:1****」 誤→「系統コード:2****」 ※「*」は英数字を入力
B9: 7 | C9: 「CSV変換」ボタン押下 | D9: 入力エラー | E9: 入力方法規制に適合しない入力内容があります。赤字箇所を確認のうえ修正願います。 | F9: 「入力方法等の規制」シートを参照のうえ、修正してください。
B10: 8 | C10: 「CSV変換」ボタン押下 | D10: 入力エラー | E10: 入力方法等の規制チェック中にエラーが発生しました。処理を中止します。 | F10: 「入力方法等の規制」シートを参照のうえ、修正してください。修正後も当該エラーメッセージが継続する場合は、対象データを属地エリアの一般送配電事業者へ送付してください。
B11: 9 | C11: 「CSV変換」ボタン押下 | D11: 入力エラー | E11: 入力漏れもしくは入力方法規制に抵触する入力内容があります。黄色表示箇所を確認願います。 | F11: 精算パターンに応じた『入力必要箇所への未入力』または『「入力方法等の規制」シートに適合しない入力内容』が存在するため、黄色表示箇所の入力もしくは修正をしてください。
B12: 10 | C12: 「CSV変換」ボタン押下 | D12: 入力エラー | E12: エラーになっている式があります。ピンク色表示箇所を確認願います。 | F12: 自動算定のための引用元となる項目の入力内容を「入力方法等の規制」シートに基づき、修正してください。
B13: 11 | C13: 「CSV変換」ボタン押下 | D13: 入力エラー | E13: 入力必須項目チェック中にエラーが発生しました。処理を中止します。 | F13: 「入力方法等の規制」シートまたは「精算パターン（持ち下げ供出機区分）毎の入力内容規制」シートを参照のうえ、修正してください。修正後も当該エラーメッセージが継続する場合は、対象データを属地エリアの一般送配電事業者へ送付してください。
B14: 12 | C14: 「CSV変換」ボタン押下 | D14: 入力エラー | E14: 入力内容規制に存在しない組み合わせがありますので、確認願います。 | F14: 「精算パターン（持ち下げ供出機区分）毎の入力内容規制」シートをもとに精算パターンに応じた入力内容に修正してください。
B15: 13 | C15: 「CSV変換」ボタン押下 | D15: 入力エラー | E15: 精算パターンに適合しない入力内容があります。赤字表示箇所を確認のうえ修正願います。 | F15: 「精算パターン（持ち下げ供出機区分）毎の入力内容規制」シートをもとに精算パターンに応じた入力内容に修正してください。
B16: 14 | C16: 「CSV変換」ボタン押下 | D16: 入力エラー | E16: 入力内容規制チェック中にエラーが発生しました。処理を中止します。 | F16: 「入力方法等の規制」シートまたは「精算パターン（持ち下げ供出機区分）毎の入力内容規制」シートを参照のうえ、修正してください。修正後も当該エラーメッセージが継続する場合は、対象データを属地エリアの一般送配電事業者へ送付してください。
B17: 15 | C17: 「CSV変換」ボタン押下 | D17: 入力エラー | E17: 事象№チェック中にエラーが発生しました。処理を中止します。 | F17: 「精算パターン・持ち下げ供出機区分・系統コード」単位で１つの事象No.を設定するよう修正してください。修正後も当該エラーメッセージが継続する場合は、対象データを属地エリアの一般送配電事業者へ送付してください。
B18: 16 | C18: 「CSV変換」ボタン押下 | D18: 相関エラー | E18: 事象No.は、連続入札単位で同一の「精算パターン・持ち下げ供出機区分・系統コード」単位で１つの事象No.の設定が必要となります。赤字表示箇所を確認願います。 | F18: 連続入札単位においては、同一の「精算パターン」・「持ち下げ供出機区分」・「系統コード」単位で１つの事象№を設定するよう修正してください。
B19: 17 | C19: 「CSV変換」ボタン押下 | D19: 相関エラー | E19: 事象No.は、連続入札単位で同一の「精算パターン・持ち下げ供出機区分・系統コード」単位で１つの事象No.の設定が必要となります。赤字表示箇所を確認願います。 | F19: 同一の「精算パターン」・「持ち下げ供出機区分」・「系統コード」単位で、「取引日」および「時刻コード」が連続している場合、事象№は同じ№を設定するよう修正してください。
B20: 18 | C20: 「CSV変換」ボタン押下 | D20: 入力エラー | E20: CSV作製中にエラーが発生しました。処理を中止します。 | F20: 「入力方法等の規制」シートまたは「精算パターン（持ち下げ供出機区分）毎の入力内容規制」シートを参照のうえ、修正してください。修正後も当該エラーメッセージが継続する場合は、対象データを属地エリアの一般送配電事業者へ送付してください。

Sheet 入力内容規制 (hidden)
A1: 精算パターン | B1: 持ち下げ供給機区分 | C1: 余力活用契約対象リソース区分 | D1: 発電計画 | F1: 最低出力 | H1: ΔkW約定量 | J1: 約定希望ΔkW | M1: 応札状況 | N1: 約定状況 | O1: 並解列状態(実績)
D2: 等号不等号 | E2: 値 | F2: 等号不等号 | G2: 値 | H2: 等号不等号 | I2: 値 | J2: 約定希望ΔkW | K2: 等号不等号 | L2: ΔkW約定量
A3: 1：約定間全量不落（最低出力維持） | B3: NULL | C3: 1：対象または0：非対象 | D3: ≧ | E3: 1 | F3: ≧ | G3: 1 | H3: = | I3: 0 | J3: 約定希望ΔkW | K3: ≧ | L3: ΔkW約定量 | M3: 応札 | N3: 未約定 | O3: 1：並列
A4: 2：全量不落 | B4: NULL | C4: 1：対象または0：非対象 | D4: ≧ | E4: 0 | F4: ≧ | G4: 0 | H4: = | I4: 0 | J4: 約定希望ΔkW | K4: ≧ | L4: ΔkW約定量 | M4: 応札 | N4: 未約定 | O4: 1：並列または2：解列
A5: 3：一部不落 | B5: NULL | C5: 1：対象または0：非対象 | D5: ≧ | E5: 0 | F5: ≧ | G5: 0 | H5: ≧ | I5: 1 | J5: 約定希望ΔkW | K5: ≧ | L5: ΔkW約定量 | M5: 応札 | N5: 一部約定 | O5: 1：並列または2：解列
A6: 4：約定間全量不落（約定間停止・再起動） | B6: NULL | C6: 1：対象または0：非対象 | D6: = | E6: 0 | F6: = | G6: 0 | H6: = | I6: 0 | J6: 約定希望ΔkW | K6: ≧ | L6: ΔkW約定量 | M6: 応札 | N6: 未約定 | O6: 2：解列
A7: 5：約定間全量不落（余力活用契約で最低出力維持） | B7: NULL | C7: 1：対象 | D7: = | E7: 0 | F7: = | G7: 0 | H7: = | I7: 0 | J7: 約定希望ΔkW | K7: ≧ | L7: ΔkW約定量 | M7: 応札 | N7: 未約定 | O7: 1：並列
A8: 6：約定間全量不落（余力活用契約で停止・再起動） | B8: NULL | C8: 1：対象 | D8: ≧ | E8: 1 | F8: ≧ | G8: 1 | H8: = | I8: 0 | J8: 約定希望ΔkW | K8: ≧ | L8: ΔkW約定量 | M8: 応札 | N8: 未約定 | O8: 2：解列
A9: 7：持ち下げ・起動供出機：約定間全量不落（最低出力維持） | B9: 1：該当（起動供出機） | C9: 1：対象または0：非対象 | D9: ≧ | E9: 1 | F9: ≧ | G9: 1 | H9: = | I9: 0 | J9: 約定希望ΔkW | K9: ≧ | L9: ΔkW約定量 | M9: 応札 | N9: 未約定 | O9: 1：並列
A10: 7：持ち下げ・起動供出機：約定間全量不落（最低出力維持） | B10: 2：該当（持ち下げ供出機） | C10: 1：対象または0：非対象 | D10: = | E10: NULL | F10: = | G10: NULL | H10: = | I10: 0 | J10: 約定希望ΔkW | K10: ≧ | L10: ΔkW約定量 | M10: 応札 | N10: 未約定 | O10: 1：並列
A11: 8：持ち下げ・起動供出機：全量不落 | B11: 1：該当（起動供出機） | C11: 1：対象または0：非対象 | D11: ≧ | E11: 0 | F11: ≧ | G11: 0 | H11: = | I11: 0 | J11: 約定希望ΔkW | K11: ≧ | L11: ΔkW約定量 | M11: 応札 | N11: 未約定 | O11: 1：並列または2：解列
A12: 8：持ち下げ・起動供出機：全量不落 | B12: 2：該当（持ち下げ供出機） | C12: 1：対象または0：非対象 | D12: = | E12: NULL | F12: = | G12: NULL | H12: = | I12: 0 | J12: 約定希望ΔkW | K12: ≧ | L12: ΔkW約定量 | M12: 応札 | N12: 未約定 | O12: 1：並列または2：解列
A13: 9：持ち下げ・起動供出機：一部不落 | B13: 1：該当（起動供出機） | C13: 1：対象または0：非対象 | D13: ≧ | E13: 1 | F13: ≧ | G13: 1 | H13: ≧ | I13: 1 | J13: 約定希望ΔkW | K13: ≧ | L13: ΔkW約定量 | M13: 応札 | N13: 一部約定 | O13: 1：並列
A14: 9：持ち下げ・起動供出機：一部不落 | B14: 2：該当（持ち下げ供出機） | C14: 1：対象または0：非対象 | D14: = | E14: NULL | F14: = | G14: NULL | H14: ≧ | I14: 1 | J14: 約定希望ΔkW | K14: ≧ | L14: ΔkW約定量 | M14: 応札 | N14: 一部約定 | O14: 1：並列
A15: 10：持ち下げ・起動供出機：約定間全量不落（約定間停止・再起動） | B15: 1：該当（起動供出機） | C15: 1：対象または0：非対象 | D15: = | E15: 0 | F15: = | G15: 0 | H15: = | I15: 0 | J15: 約定希望ΔkW | K15: ≧ | L15: ΔkW約定量 | M15: 応札 | N15: 未約定 | O15: 2：解列
A16: 10：持ち下げ・起動供出機：約定間全量不落（約定間停止・再起動） | B16: 2：該当（持ち下げ供出機） | C16: 1：対象または0：非対象 | D16: = | E16: NULL | F16: = | G16: NULL | H16: = | I16: 0 | J16: 約定希望ΔkW | K16: ≧ | L16: ΔkW約定量 | M16: 応札 | N16: 未約定 | O16: 1：並列または2：解列
A17: 11：持ち下げ・起動供出機：約定間全量不落（余力活用契約で停止・再起動） | B17: 1：該当（起動供出機） | C17: 1：対象 | D17: ≧ | E17: 1 | F17: ≧ | G17: 1 | H17: = | I17: 0 | J17: 約定希望ΔkW | K17: ≧ | L17: ΔkW約定量 | M17: 応札 | N17: 未約定 | O17: 2：解列
A18: 11：持ち下げ・起動供出機：約定間全量不落（余力活用契約で停止・再起動） | B18: 2：該当（持ち下げ供出機） | C18: 1：対象または0：非対象 | D18: = | E18: NULL | F18: = | G18: NULL | H18: = | I18: 0 | J18: 約定希望ΔkW | K18: ≧ | L18: ΔkW約定量 | M18: 応札 | N18: 未約定 | O18: 1：並列または2：解列
A19: 12：持ち下げ・起動供出機：約定間全量不落（余力活用契約で最低出力維持） | B19: 1：該当（起動供出機） | C19: 1：対象 | D19: = | E19: 0 | F19: = | G19: 0 | H19: = | I19: 0 | J19: 約定希望ΔkW | K19: ≧ | L19: ΔkW約定量 | M19: 応札 | N19: 未約定 | O19: 1：並列
A20: 12：持ち下げ・起動供出機：約定間全量不落（余力活用契約で最低出力維持） | B20: 2：該当（持ち下げ供出機） | C20: 1：対象または0：非対象 | D20: = | E20: NULL | F20: = | G20: NULL | H20: = | I20: 0 | J20: 約定希望ΔkW | K20: ≧ | L20: ΔkW約定量 | M20: 応札 | N20: 未約定 | O20: 1：並列または2：解列
A21: 13：その他 | B21: NULL | C21: 1：対象または0：非対象 | D21: ≧ | E21: 0 | F21: ≧ | G21: 0 | H21: ≧ | I21: 0 | J21: 約定希望ΔkW | K21: ≧ | L21: ΔkW約定量 | M21: 応札 | N21: 未約定または一部約定 | O21: 1：並列または2：解列
A22: 13：その他 | B22: 1：該当（起動供出機） | C22: 1：対象または0：非対象 | D22: ≧ | E22: 0 | F22: ≧ | G22: 0 | H22: ≧ | I22: 0 | J22: 約定希望ΔkW | K22: ≧ | L22: ΔkW約定量 | M22: 応札 | N22: 未約定または一部約定 | O22: 1：並列または2：解列
A23: 13：その他 | B23: 2：該当（持ち下げ供出機） | C23: 1：対象または0：非対象 | D23: ≧ | E23: 0 | F23: ≧ | G23: 0 | H23: ≧ | I23: 0 | J23: 約定希望ΔkW | K23: ≧ | L23: ΔkW約定量 | M23: 応札 | N23: 未約定または一部約定 | O23: 1：並列または2：解列

Sheet Format (hidden)
A3: 1 | B3: 2 | C3: 3 | D3: 4 | E3: 5 | F3: 6 | G3: 7 | H3: 8 | I3: 9 | J3: 10 | K3: 11 | L3: 12 | M3: 13 | N3: 14 | O3: 15 | P3: 16 | Q3: 17 | R3: 18 | S3: 19 | T3: 20 | U3: 21 | V3: 22 | W3: 23 | X3: 24 | Y3: 25 | Z3: 26 | AA3: 27 | AB3: 28 | AC3: 29 | AD3: 30 | AE3: 31
B4: 1 | C4: 2 | D4: 3 | E4: 4 | F4: 5 | G4: 6 | H4: 7 | I4: 8 | J4: 9 | K4: 10 | L4: 11 | M4: 12 | N4: 13 | O4: 14 | P4: 15 | Q4: 16 | R4: 17 | S4: 18 | T4: 19 | U4: 20 | V4: 21 | W4: 22 | X4: 23 | Y4: 24 | Z4: 25 | AA4: 26 | AB4: 27 | AC4: 28 | AD4: 29 | AE4: 30
B5: 数字のみ | C5: リスト | D5: リスト | E5: 数字8桁 | F5: 数字2桁 | G5: リスト | H5: 英数字5桁 | I5: リスト | J5: 英数字15桁 | K5: 英数字19桁 | L5: 英数字のみ | M5: 小数点２桁まで | N5: 小数点２桁まで | O5: 小数点２桁まで | P5: 小数点２桁まで | Q5: 数字のみ | R5: 数字のみ | S5: 数字のみ | T5: 数字のみ | U5: 関数 | V5: 関数 | W5: 小数点２桁まで | X5: 関数 | Y5: 関数 | Z5: 関数 | AA5: 関数 | AB5: リスト | AC5: 関数 | AD5: 関数 | AE5: 関数
E6: 文字列 | F6: 文字列 | H6: 文字列 | J6: 文字列 | K6: 文字列 | L6: 文字列 | Q6: 桁区切り | R6: 桁区切り | S6: 桁区切り | T6: 桁区切り | U6: 桁区切り | V6: 桁区切り | W6: 桁区切り | AC6: 桁区切り | AD6: 桁区切り | AE6: 桁区切り
B7: 事象NO | C7: 精算パターン | D7: 余力活用契約対象リソース区分 | E7: 取引日 | F7: 時刻コード | G7: 持ち下げ供出機区分 | H7: 系統コード | I7: 商品区分 | J7: 売り入札ID | K7: 約定番号 | L7: 約定識別ID | M7: MMS起動費単価 | N7: 加重平均前のΔkW単価 | O7: 加重平均起動費未回収分相当額 | P7: 最低出力までの発電電力量の機会費用単価 | Q7: 発電計画 | R7: 最低出力 | S7: 約定希望ΔkW | T7: ΔkW約定量 | U7: 最低出力までの発電電力量の機会費用単価×(約定希望ΔkW-ΔkW約定量) | V7: 最低出力維持した場合の費用合計 | W7: 停止・再起動にかかる費用 | X7: 事象毎の最終行 | Y7: 妥当性確認 | Z7: 応札状況 | AA7: 約定状況 | AB7: 並解列状態(実績) | AC7: 起動費未回収分相当額 | AD7: 最低出力までの発電電力量の機会費用 | AE7: 停止・再起動にかかる費用
M8: （円/kW） | N8: （円/kW） | O8: （円/kW） | P8: （円/kW） | Q8: （kWh） | R8: （kWh） | S8: （kW） | T8: （kW） | U8: （円） | V8: （円） | W8: （円） | AC8: （円） | AD8: （円） | AE8: （円）
B9: ※起動費未回収が発生した事象ごとにNOを付定すること。 | D9: ※対象の場合は「１」，非対象の場合は「０」を入力 | G9: ※持ち下げ供出機を加重平均で入札した場合に選択 | K9: ※１持ち下げ供出機区分が該当する場合，起動供出機の約定番号を記載すること ※２同一時刻コードにおいて，複数の約定番号がある場合は，全て記載すること。 | L9: ※持ち下げ供出機区分に該当する場合，起動供出機の約定IDを記載すること | M9: ※MMSに登録された起動費単価分を原則用いること | N9: ※持ち下げ供出機区分が該当する場合に記載すること | O9: ※ 持ち下げ供出機区分が該当する場合に記載すること | P9: ※１卸電力市場価格（スポット市場価格：実績）と限界費用との差額を用いること ※２加重平均で入札した場合は，最低出力までの発電電力量の加重平均機会費用相当額を記載すること | U9: ※加重平均で入札した場合は，最低出力までの発電電力量の加重平均機会費用相当額×(約定希望ΔkW-ΔkW約定量) | V9: ※精算パターン「約定間全量不落(約定間停止・再起動)」を選択した場合，事象NOごとの最終行に合計値表示 | W9: ※１停止・再起動費は最後のブロックに記載すること ※２ 余力活用契約を締結している電源でBG計画上停止・再起動としていたが、実績は停止しなかった場合も、BG計画上の「停止・再起動費」を記載すること | AC9: ※加重平均で入札した場合は，加重平均起動費未回収分相当額 | AD9: ※加重平均で入札した場合は，最低出力までの発電電力量の加重平均機会費用相当額 | AE9: ※約定間全量不落時において，停止・再起動するよりも，最低出力維持した方が経済的だった場合，後者を事後精算対象とする。
U10: =$P10*($S10-$T10) -> 0 | V10: =IF($W10>0, SUMIFS($U:$U, $B:$B, $B10, $Y:$Y, 1), 0) -> 0 | X10: =IF(ISNUMBER($B10), IF(COUNTIF($B$10:$B10, $B10)=COUNTIF($B:$B, $B10), 1, 0), "") ->  | Y10: =IF(OR($C10=List!$C$5,$C10=List!$C$6,$C10=List!$C$11,$C10=List!$C$13), 1, 0) -> 0 | Z10: =_xlfn.IFS($S10="","未応札",$S10>0,"応札") -> 未応札 | AA10: =_xlfn.IFS($T10=0,"未約定",$T10=$S10,"約定",$T10<$S10,"一部約定") -> 未約定 | AC10: =IF(Z10="応札",IF($AA10="未約定",IF(OR($G10=List!$F$2:$F$3), $O10*$S10, $M10*$S10),IF($AA10="一部約定",IF(OR($G10=List!$F$2:$F$3), $O10*($S10-$T10), $M10*($S10-$T10)),"")),"") ->  | AD10: =IF(ISBLANK($Q10),IF(OR($AA10="一部約定",$AA10="未約定"),$P10*($S10-$T10),""),IF($Q10=0,"", IF(OR($AA10="一部約定", $AA10="未約定"), $P10*($S10-$T10), ""))) -> 0 | AE10: =IF(AND($Z10="応札",$AA10="未約定"), IF($V10<>0, IF($W10<$V10, IF($W10<>0, $W10, ""), IF($V10<>0, $V10, "")), IF($W10<>0, $W10, "")), "") -> 

Sheet List (hidden)
A1: 対象エリア | C1: 精算パターン | E1: 精算パターン | F1: 持ち下げ供給機区分 | H1: 精算パターン&持ち下げ供給機区分 | I1: 余力活用契約対象リソース区分 | K1: 精算パターン&持ち下げ供給機区分 | L1: 並解列状態(実績) | N1: 商品区分
A2: 1：北海道 | C2: 1：約定間全量不落（最低出力維持） | F2: 1：該当（起動供出機） | I2: 1：対象 | L2: 1：並列 | N2: 1：週間市場商品
A3: 2：東北 | C3: 2：全量不落 | F3: 2：該当（持ち下げ供出機） | I3: 0：非対象 | L3: 2：解列 | N3: 2：三次調整力②
A4: 3：東京 | C4: 3：一部不落 | E4: 1：約定間全量不落（最低出力維持） | H4: 1：約定間全量不落（最低出力維持） | I4: =I$2 -> 1：対象 | K4: 1：約定間全量不落（最低出力維持） | L4: =L$2 -> 1：並列
A5: 4：中部 | C5: 4：約定間全量不落（約定間停止・再起動） | E5: 2：全量不落 | H5: 1：約定間全量不落（最低出力維持） | I5: =I$3 -> 0：非対象 | K5: 2：全量不落 | L5: =L$2 -> 1：並列
A6: 5：北陸 | C6: 5：約定間全量不落（余力活用契約で最低出力維持） | E6: 3：一部不落 | H6: 2：全量不落 | I6: =I$2 -> 1：対象 | K6: 2：全量不落 | L6: =L$3 -> 2：解列
A7: 6：関西 | C7: 6：約定間全量不落（余力活用契約で停止・再起動） | E7: 4：約定間全量不落（約定間停止・再起動） | H7: 2：全量不落 | I7: =I$3 -> 0：非対象 | K7: 3：一部不落 | L7: =L$2 -> 1：並列
A8: 7：中国 | C8: 7：持ち下げ・起動供出機：約定間全量不落（最低出力維持） | E8: 5：約定間全量不落（余力活用契約で最低出力維持） | H8: 3：一部不落 | I8: =I$2 -> 1：対象 | K8: 3：一部不落 | L8: =L$3 -> 2：解列
A9: 8：四国 | C9: 8：持ち下げ・起動供出機：全量不落 | E9: 6：約定間全量不落（余力活用契約で停止・再起動） | H9: 3：一部不落 | I9: =I$3 -> 0：非対象 | K9: 4：約定間全量不落（約定間停止・再起動） | L9: 2：解列
A10: 9：九州 | C10: 9：持ち下げ・起動供出機：一部不落 | E10: 7：持ち下げ・起動供出機：約定間全量不落（最低出力維持） | F10: =F$2 -> 1：該当（起動供出機） | H10: 4：約定間全量不落（約定間停止・再起動） | I10: =I$2 -> 1：対象 | K10: 5：約定間全量不落（余力活用契約で最低出力維持） | L10: =L$2 -> 1：並列
C11: 10：持ち下げ・起動供出機：約定間全量不落（約定間停止・再起動） | E11: 7：持ち下げ・起動供出機：約定間全量不落（最低出力維持） | F11: =F$3 -> 2：該当（持ち下げ供出機） | H11: 4：約定間全量不落（約定間停止・再起動） | I11: =I$3 -> 0：非対象 | K11: 6：約定間全量不落（余力活用契約で停止・再起動） | L11: =L$3 -> 2：解列
C12: 11：持ち下げ・起動供出機：約定間全量不落（余力活用契約で停止・再起動） | E12: 8：持ち下げ・起動供出機：全量不落 | F12: =F$2 -> 1：該当（起動供出機） | H12: 5：約定間全量不落（余力活用契約で最低出力維持） | I12: =I$2 -> 1：対象 | K12: 7：持ち下げ・起動供出機：約定間全量不落（最低出力維持）1：該当（起動供出機） | L12: =L$2 -> 1：並列
C13: 12：持ち下げ・起動供出機：約定間全量不落（余力活用契約で最低出力維持） | E13: 8：持ち下げ・起動供出機：全量不落 | F13: =F$3 -> 2：該当（持ち下げ供出機） | H13: 6：約定間全量不落（余力活用契約で停止・再起動） | I13: =I$2 -> 1：対象 | K13: 7：持ち下げ・起動供出機：約定間全量不落（最低出力維持）2：該当（持ち下げ供出機） | L13: 1：並列
C14: 13：その他 | E14: 9：持ち下げ・起動供出機：一部不落 | F14: =F$2 -> 1：該当（起動供出機） | H14: 7：持ち下げ・起動供出機：約定間全量不落（最低出力維持）1：該当（起動供出機） | I14: =I$2 -> 1：対象 | K14: 8：持ち下げ・起動供出機：全量不落1：該当（起動供出機） | L14: 1：並列
E15: 9：持ち下げ・起動供出機：一部不落 | F15: =F$3 -> 2：該当（持ち下げ供出機） | H15: 7：持ち下げ・起動供出機：約定間全量不落（最低出力維持）1：該当（起動供出機） | I15: =I$3 -> 0：非対象 | K15: 8：持ち下げ・起動供出機：全量不落1：該当（起動供出機） | L15: =L$3 -> 2：解列
E16: 10：持ち下げ・起動供出機：約定間全量不落（約定間停止・再起動） | F16: =F$2 -> 1：該当（起動供出機） | H16: 7：持ち下げ・起動供出機：約定間全量不落（最低出力維持）2：該当（持ち下げ供出機） | I16: =I$2 -> 1：対象 | K16: 8：持ち下げ・起動供出機：全量不落2：該当（持ち下げ供出機） | L16: =L$2 -> 1：並列
E17: 10：持ち下げ・起動供出機：約定間全量不落（約定間停止・再起動） | F17: =F$3 -> 2：該当（持ち下げ供出機） | H17: 7：持ち下げ・起動供出機：約定間全量不落（最低出力維持）2：該当（持ち下げ供出機） | I17: =I$3 -> 0：非対象 | K17: 8：持ち下げ・起動供出機：全量不落2：該当（持ち下げ供出機） | L17: =L$3 -> 2：解列
E18: 11：持ち下げ・起動供出機：約定間全量不落（余力活用契約で停止・再起動） | F18: =F$2 -> 1：該当（起動供出機） | H18: 8：持ち下げ・起動供出機：全量不落1：該当（起動供出機） | I18: =I$2 -> 1：対象 | K18: 9：持ち下げ・起動供出機：一部不落1：該当（起動供出機） | L18: =L$2 -> 1：並列
E19: 11：持ち下げ・起動供出機：約定間全量不落（余力活用契約で停止・再起動） | F19: =F$3 -> 2：該当（持ち下げ供出機） | H19: 8：持ち下げ・起動供出機：全量不落1：該当（起動供出機） | I19: =I$3 -> 0：非対象 | K19: 9：持ち下げ・起動供出機：一部不落2：該当（持ち下げ供出機） | L19: 1：並列
E20: 12：持ち下げ・起動供出機：約定間全量不落（余力活用契約で最低出力維持） | F20: =F$2 -> 1：該当（起動供出機） | H20: 8：持ち下げ・起動供出機：全量不落2：該当（持ち下げ供出機） | I20: =I$2 -> 1：対象 | K20: 10：持ち下げ・起動供出機：約定間全量不落（約定間停止・再起動）1：該当（起動供出機） | L20: =L$3 -> 2：解列
E21: 12：持ち下げ・起動供出機：約定間全量不落（余力活用契約で最低出力維持） | F21: =F$3 -> 2：該当（持ち下げ供出機） | H21: 8：持ち下げ・起動供出機：全量不落2：該当（持ち下げ供出機） | I21: =I$3 -> 0：非対象 | K21: 10：持ち下げ・起動供出機：約定間全量不落（約定間停止・再起動）2：該当（持ち下げ供出機） | L21: =L$2 -> 1：並列
E22: 13：その他 | H22: 9：持ち下げ・起動供出機：一部不落1：該当（起動供出機） | I22: =I$2 -> 1：対象 | K22: 10：持ち下げ・起動供出機：約定間全量不落（約定間停止・再起動）2：該当（持ち下げ供出機） | L22: =L$3 -> 2：解列
E23: 13：その他 | F23: =F$2 -> 1：該当（起動供出機） | H23: 9：持ち下げ・起動供出機：一部不落1：該当（起動供出機） | I23: =I$3 -> 0：非対象 | K23: 11：持ち下げ・起動供出機：約定間全量不落（余力活用契約で停止・再起動）1：該当（起動供出機） | L23: 2：解列
E24: 13：その他 | F24: =F$3 -> 2：該当（持ち下げ供出機） | H24: 9：持ち下げ・起動供出機：一部不落2：該当（持ち下げ供出機） | I24: =I$2 -> 1：対象 | K24: 11：持ち下げ・起動供出機：約定間全量不落（余力活用契約で停止・再起動）2：該当（持ち下げ供出機） | L24: =L$2 -> 1：並列
H25: 9：持ち下げ・起動供出機：一部不落2：該当（持ち下げ供出機） | I25: =I$3 -> 0：非対象 | K25: 11：持ち下げ・起動供出機：約定間全量不落（余力活用契約で停止・再起動）2：該当（持ち下げ供出機） | L25: =L$3 -> 2：解列
H26: 10：持ち下げ・起動供出機：約定間全量不落（約定間停止・再起動）1：該当（起動供出機） | I26: =I$2 -> 1：対象 | K26: 12：持ち下げ・起動供出機：約定間全量不落（余力活用契約で最低出力維持）1：該当（起動供出機） | L26: =L$2 -> 1：並列
H27: 10：持ち下げ・起動供出機：約定間全量不落（約定間停止・再起動）1：該当（起動供出機） | I27: =I$3 -> 0：非対象 | K27: 12：持ち下げ・起動供出機：約定間全量不落（余力活用契約で最低出力維持）2：該当（持ち下げ供出機） | L27: 1：並列
H28: 10：持ち下げ・起動供出機：約定間全量不落（約定間停止・再起動）2：該当（持ち下げ供出機） | I28: =I$2 -> 1：対象 | K28: 12：持ち下げ・起動供出機：約定間全量不落（余力活用契約で最低出力維持）2：該当（持ち下げ供出機） | L28: =L$3 -> 2：解列
H29: 10：持ち下げ・起動供出機：約定間全量不落（約定間停止・再起動）2：該当（持ち下げ供出機） | I29: =I$3 -> 0：非対象 | K29: 13：その他 | L29: =L$2 -> 1：並列
H30: 11：持ち下げ・起動供出機：約定間全量不落（余力活用契約で停止・再起動）1：該当（起動供出機） | I30: =I$2 -> 1：対象 | K30: 13：その他 | L30: =L$3 -> 2：解列
H31: 11：持ち下げ・起動供出機：約定間全量不落（余力活用契約で停止・再起動）2：該当（持ち下げ供出機） | I31: =I$2 -> 1：対象 | K31: 13：その他1：該当（起動供出機） | L31: =L$2 -> 1：並列
H32: 11：持ち下げ・起動供出機：約定間全量不落（余力活用契約で停止・再起動）2：該当（持ち下げ供出機） | I32: =I$3 -> 0：非対象 | K32: 13：その他1：該当（起動供出機） | L32: =L$3 -> 2：解列
H33: 12：持ち下げ・起動供出機：約定間全量不落（余力活用契約で最低出力維持）1：該当（起動供出機） | I33: =I$2 -> 1：対象 | K33: 13：その他2：該当（持ち下げ供出機） | L33: =L$2 -> 1：並列
H34: 12：持ち下げ・起動供出機：約定間全量不落（余力活用契約で最低出力維持）2：該当（持ち下げ供出機） | I34: =I$2 -> 1：対象 | K34: 13：その他2：該当（持ち下げ供出機） | L34: =L$3 -> 2：解列
H35: 12：持ち下げ・起動供出機：約定間全量不落（余力活用契約で最低出力維持）2：該当（持ち下げ供出機） | I35: =I$3 -> 0：非対象
H36: 13：その他 | I36: =I$2 -> 1：対象
H37: 13：その他 | I37: =I$3 -> 0：非対象
H38: =E23&F23 -> 13：その他1：該当（起動供出機） | I38: =I$2 -> 1：対象
H39: =E23&F23 -> 13：その他1：該当（起動供出機） | I39: =I$3 -> 0：非対象
H40: =E24&F24 -> 13：その他2：該当（持ち下げ供出機） | I40: =I$2 -> 1：対象
H41: =E24&F24 -> 13：その他2：該当（持ち下げ供出機） | I41: =I$3 -> 0：非対象

Sheet tmpData (hidden)
